Workbook

Sheet SolCotizacion
B1: Solicitud de Cotización Software Microsoft OPEN-CSP Gobierno y Educativo
B3: Versión: 16 | C3: 2021-03-30
B4: Información de la Entidad Compradora
B6: Nombre de la Entidad | E6: Secretaría General de la Alcaldía Mayor de Bogotá D.C | K6: NIT | M6: 899999061
B8: Dirección de la Entidad | E8: Carrera 8 No 10-65 | K8: Correo de contacto | M8: ojasprilla@alcaldiabogota.gov.co
B10: Municipio | E10: Bogotá D.C | K10: Teléfono de contacto | M10: 3803000 ext 1168
B12: Nombre funcionario Comprador | E12: Oscar Javier Asprilla Cruz
B16: Solicitud de Cotización
B18: Categoría | E18: OPEN-CSP GOBIERNO | I18: Valor TRM | J18: 3665.49 | M18: Fecha de lanzamiento del evento de cotización | N18: 2021-04-23
I19: Escribir hasta dos cifras decimales. Tenga en cuenta que el simulador aproxima al entero más cercano.
B20: Productos
A22: *Libros, revistas, cartillas y/o catálogo Segmento 1. | B22: =E18 -> OPEN-CSP GOBIERNO
B24: Cantidad de filas:
B25: 1
B27: Item | C27: Código Catálogo | E27: Descripción del Producto | I27: Tipo | J27: Unidad | K27: Zona | L27: Asistencia | M27: Perfil | N27: Número de parte | O27: Forma de Pago | P27: cantidad
A28: =E28&L28 -> Microsoft®O365E3Open ShrdSvr MonthlySubscriptions-VolumeLicense Government OLP 1License NoLevel Qualified AnnualN/A | B28: 1 | C28: Q5Y-00006 | E28: =IFERROR(VLOOKUP($C28&$E$18,Consolidado!$B:$U,9,0),VLOOKUP($C28&"Canal",Consolidado!$B:$U,9,0)) -> Microsoft®O365E3Open ShrdSvr MonthlySubscriptions-VolumeLicense Government OLP 1License NoLevel Qualified Annual | I28: =IFERROR(VLOOKUP($C28&$E$18,Consolidado!$B:$U,12,0),VLOOKUP($C28&"Canal",Consolidado!$B:$U,12,0)) -> Producto | J28: =IFERROR(VLOOKUP($C28&$E$18,Consolidado!$B:$U,10,0),VLOOKUP($C28&"Canal",Consolidado!$B:$U,10,0)) -> Unidad | K28: =IFERROR(VLOOKUP($C28&$E$18,Consolidado!$B:$U,13,0),VLOOKUP($C28&"Canal",Consolidado!$B:$U,13,0)) -> N/A | L28: =IFERROR(VLOOKUP($C28&$E$18,Consolidado!$B:$U,14,0),VLOOKUP($C28&"Canal",Consolidado!$B:$U,14,0)) -> N/A | M28: =IFERROR(VLOOKUP($C28&$E$18,Consolidado!$B:$U,15,0),VLOOKUP($C28&"Canal",Consolidado!$B:$U,15,0)) -> N/A | N28: =IFERROR(VLOOKUP($C28&$E$18,Consolidado!$B:$U,16,0),VLOOKUP($C28&"Canal",Consolidado!$B:$U,16,0)) -> Q5Y-00006 | O28: =IFERROR(VLOOKUP($C28&$E$18,Consolidado!$B:$U,17,0),VLOOKUP($C28&"Canal",Consolidado!$B:$U,17,0)) -> Suscripción Anual | P28: 590 | Q28: =IFERROR(VLOOKUP($C28&$E$18,Consolidado!$B:$U,5,0),VLOOKUP($C28&"Canal",Consolidado!$B:$U,5,0)) -> OPEN-CSP GOBIERNO
A29: =E29&L29 -> Microsoft®O365PlanE1Archiving ShrdSvr MonthlySubscriptions-VolumeLicense Government OLP 1License NoLevel Qualified AnnualN/A | B29: 2 | C29: 7JT-00003 | E29: =IFERROR(VLOOKUP($C29&$E$18,Consolidado!$B:$U,9,0),VLOOKUP($C29&"Canal",Consolidado!$B:$U,9,0)) -> Microsoft®O365PlanE1Archiving ShrdSvr MonthlySubscriptions-VolumeLicense Government OLP 1License NoLevel Qualified Annual | I29: =IFERROR(VLOOKUP($C29&$E$18,Consolidado!$B:$U,12,0),VLOOKUP($C29&"Canal",Consolidado!$B:$U,12,0)) -> Producto | J29: =IFERROR(VLOOKUP($C29&$E$18,Consolidado!$B:$U,10,0),VLOOKUP($C29&"Canal",Consolidado!$B:$U,10,0)) -> Unidad | K29: =IFERROR(VLOOKUP($C29&$E$18,Consolidado!$B:$U,13,0),VLOOKUP($C29&"Canal",Consolidado!$B:$U,13,0)) -> N/A | L29: =IFERROR(VLOOKUP($C29&$E$18,Consolidado!$B:$U,14,0),VLOOKUP($C29&"Canal",Consolidado!$B:$U,14,0)) -> N/A | M29: =IFERROR(VLOOKUP($C29&$E$18,Consolidado!$B:$U,15,0),VLOOKUP($C29&"Canal",Consolidado!$B:$U,15,0)) -> N/A | N29: =IFERROR(VLOOKUP($C29&$E$18,Consolidado!$B:$U,16,0),VLOOKUP($C29&"Canal",Consolidado!$B:$U,16,0)) -> 7JT-00003 | O29: =IFERROR(VLOOKUP($C29&$E$18,Consolidado!$B:$U,17,0),VLOOKUP($C29&"Canal",Consolidado!$B:$U,17,0)) -> Suscripción Anual | P29: 886 | Q29: =IFERROR(VLOOKUP($C29&$E$18,Consolidado!$B:$U,5,0),VLOOKUP($C29&"Canal",Consolidado!$B:$U,5,0)) -> OPEN-CSP GOBIERNO
A30: =E30&L30 -> Microsoft®PowerBIProOpen ShrdSvr MonthlySubscriptions-VolumeLicense Government OLP 1License NoLevel Qualified AnnualN/A | B30: 3 | C30: DW6-00006 | E30: =IFERROR(VLOOKUP($C30&$E$18,Consolidado!$B:$U,9,0),VLOOKUP($C30&"Canal",Consolidado!$B:$U,9,0)) -> Microsoft®PowerBIProOpen ShrdSvr MonthlySubscriptions-VolumeLicense Government OLP 1License NoLevel Qualified Annual | I30: =IFERROR(VLOOKUP($C30&$E$18,Consolidado!$B:$U,12,0),VLOOKUP($C30&"Canal",Consolidado!$B:$U,12,0)) -> Producto | J30: =IFERROR(VLOOKUP($C30&$E$18,Consolidado!$B:$U,10,0),VLOOKUP($C30&"Canal",Consolidado!$B:$U,10,0)) -> Unidad | K30: =IFERROR(VLOOKUP($C30&$E$18,Consolidado!$B:$U,13,0),VLOOKUP($C30&"Canal",Consolidado!$B:$U,13,0)) -> N/A | L30: =IFERROR(VLOOKUP($C30&$E$18,Consolidado!$B:$U,14,0),VLOOKUP($C30&"Canal",Consolidado!$B:$U,14,0)) -> N/A | M30: =IFERROR(VLOOKUP($C30&$E$18,Consolidado!$B:$U,15,0),VLOOKUP($C30&"Canal",Consolidado!$B:$U,15,0)) -> N/A | N30: =IFERROR(VLOOKUP($C30&$E$18,Consolidado!$B:$U,16,0),VLOOKUP($C30&"Canal",Consolidado!$B:$U,16,0)) -> DW6-00006 | O30: =IFERROR(VLOOKUP($C30&$E$18,Consolidado!$B:$U,17,0),VLOOKUP($C30&"Canal",Consolidado!$B:$U,17,0)) -> Suscripción Anual | P30: 20 | Q30: =IFERROR(VLOOKUP($C30&$E$18,Consolidado!$B:$U,5,0),VLOOKUP($C30&"Canal",Consolidado!$B:$U,5,0)) -> OPEN-CSP GOBIERNO
A31: =E31&L31 -> Soporte técnico proactivo Remoto | B31: 4 | C31: IT-SW-10-03 | E31: =IFERROR(VLOOKUP($C31&$E$18,Consolidado!$B:$U,9,0),VLOOKUP($C31&"Canal",Consolidado!$B:$U,9,0)) -> Soporte técnico proactivo | I31: =IFERROR(VLOOKUP($C31&$E$18,Consolidado!$B:$U,12,0),VLOOKUP($C31&"Canal",Consolidado!$B:$U,12,0)) -> Servicio | J31: =IFERROR(VLOOKUP($C31&$E$18,Consolidado!$B:$U,10,0),VLOOKUP($C31&"Canal",Consolidado!$B:$U,10,0)) -> Hora | K31: =IFERROR(VLOOKUP($C31&$E$18,Consolidado!$B:$U,13,0),VLOOKUP($C31&"Canal",Consolidado!$B:$U,13,0)) -> Zona 1 | L31: =IFERROR(VLOOKUP($C31&$E$18,Consolidado!$B:$U,14,0),VLOOKUP($C31&"Canal",Consolidado!$B:$U,14,0)) -> Remoto | M31: =IFERROR(VLOOKUP($C31&$E$18,Consolidado!$B:$U,15,0),VLOOKUP($C31&"Canal",Consolidado!$B:$U,15,0)) -> Técnico/Tecnólogo ó Profesional | N31: =IFERROR(VLOOKUP($C31&$E$18,Consolidado!$B:$U,16,0),VLOOKUP($C31&"Canal",Consolidado!$B:$U,16,0)) -> IT-SW-10-03 | O31: =IFERROR(VLOOKUP($C31&$E$18,Consolidado!$B:$U,17,0),VLOOKUP($C31&"Canal",Consolidado!$B:$U,17,0)) -> Mensual por servicios efectivamente prestados | P31: 5 | Q31: =IFERROR(VLOOKUP($C31&$E$18,Consolidado!$B:$U,5,0),VLOOKUP($C31&"Canal",Consolidado!$B:$U,5,0)) -> Canal
A32: =E32&L32 -> Soporte técnico reactivo Remoto | B32: 5 | C32: IT-SW-11-06 | E32: =IFERROR(VLOOKUP($C32&$E$18,Consolidado!$B:$U,9,0),VLOOKUP($C32&"Canal",Consolidado!$B:$U,9,0)) -> Soporte técnico reactivo | I32: =IFERROR(VLOOKUP($C32&$E$18,Consolidado!$B:$U,12,0),VLOOKUP($C32&"Canal",Consolidado!$B:$U,12,0)) -> Servicio | J32: =IFERROR(VLOOKUP($C32&$E$18,Consolidado!$B:$U,10,0),VLOOKUP($C32&"Canal",Consolidado!$B:$U,10,0)) -> Hora | K32: =IFERROR(VLOOKUP($C32&$E$18,Consolidado!$B:$U,13,0),VLOOKUP($C32&"Canal",Consolidado!$B:$U,13,0)) -> Zona 1 | L32: =IFERROR(VLOOKUP($C32&$E$18,Consolidado!$B:$U,14,0),VLOOKUP($C32&"Canal",Consolidado!$B:$U,14,0)) -> Remoto | M32: =IFERROR(VLOOKUP($C32&$E$18,Consolidado!$B:$U,15,0),VLOOKUP($C32&"Canal",Consolidado!$B:$U,15,0)) -> Técnico/Tecnólogo ó Profesional | N32: =IFERROR(VLOOKUP($C32&$E$18,Consolidado!$B:$U,16,0),VLOOKUP($C32&"Canal",Consolidado!$B:$U,16,0)) -> IT-SW-11-06 | O32: =IFERROR(VLOOKUP($C32&$E$18,Consolidado!$B:$U,17,0),VLOOKUP($C32&"Canal",Consolidado!$B:$U,17,0)) -> Mensual por servicios efectivamente prestados | P32: 6 | Q32: =IFERROR(VLOOKUP($C32&$E$18,Consolidado!$B:$U,5,0),VLOOKUP($C32&"Canal",Consolidado!$B:$U,5,0)) -> Canal
B33: 1. Si requiere agregue o elimine fila
B36: Gravámenes adicionales*
B37: Si los hay, indique los gravámenes adicionales a los que está sujeta la Orden de Compra. Son gravámenes adicionales por ejemplo; estampillas y demás impuestos territoriales. Los impuestos como ICA y retención en la fuente NO son gravámenes adicionales.
B38: Gravámenes adicionales (estampillas)
B39: No | C39: Descripción | H39: Porcentaje
B40: 1 | C40: ESTAMPILLA DISTRITAL - PROADULTO MAYOR | H40: 0.02
B41: 2 | C41: ESTAMPILLA DISTRITAL - PROCULTURA | H41: 0.005
B42: 3 | C42: ESTAMPILLA DISTRITAL - UNIVERSIDAD DISTRITAL FRANCISCO JOSE DE CALDAS | H42: 0.011
F43: Total porcentaje: | H43: =SUM(H40:H42) -> 0.036
D44: Filas a agregar o eliminar Gravámenes:
D45: 1

Sheet Anexo
B1: Con el objetivo de complementar el entendimiento sobre la solicitud de Productos y Servicios Microsoft , por favor diligencie la totalidad de la información que se pide a continuación.
B3: Tenga en cuenta que esta información es de utilidad para que el Proveedor pueda cotizar de la manera más precisa posible los Productos y Servicios Microsoft solicitados, por lo cual la exactitud y completitud es muy importante.
A4: No | B4: Requerimiento adicional | C4: Descripción | D4: INFORMACION SUMINISTRADA POR LA ENTIDAD COMPRADORA
B5: Nombre y Nit de la Entidad Estatal a la cual se le entregará la titularidad de las licencias adquiridas.
A6: 1 | B6: Lugar de entrega de los Productos y Servicios Microsoft. (Especificar dirección y ciudad de entrega).
A7: 2 | B7: Datos Contacto de entrega (Especificar nombre, teléfono y correo electrónico).
A8: 3 | B8: Funciones a realizar el soporte en sitio.
A9: 4 | B9: Área de conocimiento de las personas que prestan el servicio de soporte técnico proactivo.
A10: 5 | B10: Área de conocimiento de las personas que prestan el servicio de soporte técnico reactivo.
A11: 6 | B11: Mecanismo de solicitud del soporte reactivo.
A12: 7 | B12: Especificar que información o que bases de datos se van a migrar. Aplica en el caso que la Entidad Compradora solicite el servicio de migración de información o de bases de datos.
A13: 8 | B13: Actividades del gerente de cuenta.
A14: 9 | B14: Indique número de personas que requieren de capacitación. En caso que la Entidad Compradora solicite el servicio de capacitación usuario final o usuario técnico.
A15: 10 | B15: Especificar características de configuración y descripción de las tareas a realizar. En caso que la Entidad Compradora solicite el servicio de configuración y parametrización.
A16: 12 | B16: Establecer las políticas de respaldo de información.

Sheet ResumenCotizacion
B1: Solicitud de Cotización Software Microsoft OPEN-CSP Gobierno y Educativo
B3: =SolCotizacion!B3 -> Versión: 16
B4: Información de la Entidad Compradora
B6: Nombre de la Entidad | E6: Secretaría General de la Alcaldía Mayor de Bogotá D.C | K6: NIT | M6: 899999061
B8: Dirección de la Entidad | E8: Carrera 8 No 10-65 | K8: Correo de contacto | M8: ojasprilla@alcaldiabogota.gov.co
B10: Municipio | E10: Bogotá D.C | K10: Teléfono de contacto | M10: 3803000 ext 1168
B12: Nombre funcionario Comprador | E12: Oscar Javier Asprilla Cruz
B16: Solicitud de Cotización
B18: Categoría | E18: OPEN-CSP GOBIERNO | I18: Valor TRM | J18: =SolCotizacion!J18 -> 3665.49 | M18: Fecha | N18: =SolCotizacion!N18 -> 2021-04-23
B20: Productos
A22: *Libros, revistas, cartillas y/o catálogo Segmento 1. | B22: =SolCotizacion!B22 -> OPEN-CSP GOBIERNO
B24: Cantidad de filas:
B25: 1
B27: Item | C27: Código Catálogo | E27: Descripción del Producto | I27: Tipo | J27: Unidad | K27: Zona | L27: Asistencia | M27: Perfil | N27: Número de parte | O27: Forma de Pago | P27: cantidad | Q27: Precio Unitario | R27: Precio Unitario + Gravamen | S27: Subtotal | T27: IVA | U27: Precio Total
A28: Microsoft®O365E3Open ShrdSvr MonthlySubscriptions-VolumeLicense Government OLP 1License NoLevel Qualified AnnualN/A | B28: 1 | C28: Q5Y-00006 | E28: Microsoft®O365E3Open ShrdSvr MonthlySubscriptions-VolumeLicense Government OLP 1License NoLevel Qualified Annual | I28: Producto | J28: Unidad | K28: N/A | L28: N/A | M28: N/A | N28: Q5Y-00006 | O28: Suscripción Anual | P28: 590 | Q28: =IFERROR(VLOOKUP("UT Soft-IG"&$V28&$C28,temp!$A:$Y,19,0)*$J$18,VLOOKUP("Catalogo principal"&$V28&$C28,temp!$A:$Y,19,0)*$J$18) -> 880084.149 | R28: =ROUND(Q28/(1-(VLOOKUP("Total porcentaje:",$F:$H,3))),2) -> 912950.36 | S28: =ROUND(P28*R28,2) -> 538640712.4 | T28: =IFERROR(ROUND(S28*IF(VLOOKUP("UT Soft-IG"&$V28&$C28,Consolidado!$A:$U,21,0)=1,19%,0),2),ROUND(S28*IF(VLOOKUP("Catalogo principal"&$V28&$C28,Consolidado!$A:$U,21,0)=1,19%,0),2)) -> 102341735.4 | U28: =S28+T28 -> 640982447.8 | V28: =IFERROR(VLOOKUP($C28&$E$18,Consolidado!$B:$U,5,0),VLOOKUP($C28&"Canal",Consolidado!$B:$U,5,0)) -> OPEN-CSP GOBIERNO | W28: =VLOOKUP($C28,Consolidado!$E:$G,3,0) -> Catalogo principal
A29: Microsoft®O365PlanE1Archiving ShrdSvr MonthlySubscriptions-VolumeLicense Government OLP 1License NoLevel Qualified AnnualN/A | B29: 2 | C29: 7JT-00003 | E29: Microsoft®O365PlanE1Archiving ShrdSvr MonthlySubscriptions-VolumeLicense Government OLP 1License NoLevel Qualified Annual | I29: Producto | J29: Unidad | K29: N/A | L29: N/A | M29: N/A | N29: 7JT-00003 | O29: Suscripción Anual | P29: 886 | Q29: =IFERROR(VLOOKUP("UT Soft-IG"&$V29&$C29,temp!$A:$Y,19,0)*$J$18,VLOOKUP("Catalogo principal"&$V29&$C29,temp!$A:$Y,19,0)*$J$18) -> 401737.704 | R29: =ROUND(Q29/(1-(VLOOKUP("Total porcentaje:",$F:$H,3))),2) -> 416740.36 | S29: =ROUND(P29*R29,2) -> 369231959 | T29: =IFERROR(ROUND(S29*IF(VLOOKUP("UT Soft-IG"&$V29&$C29,Consolidado!$A:$U,21,0)=1,19%,0),2),ROUND(S29*IF(VLOOKUP("Catalogo principal"&$V29&$C29,Consolidado!$A:$U,21,0)=1,19%,0),2)) -> 70154072.2 | U29: =S29+T29 -> 439386031.2 | V29: =IFERROR(VLOOKUP($C29&$E$18,Consolidado!$B:$U,5,0),VLOOKUP($C29&"Canal",Consolidado!$B:$U,5,0)) -> OPEN-CSP GOBIERNO | W29: =VLOOKUP($C29,Consolidado!$E:$G,3,0) -> Catalogo principal
A30: Microsoft®PowerBIProOpen ShrdSvr MonthlySubscriptions-VolumeLicense Government OLP 1License NoLevel Qualified AnnualN/A | B30: 3 | C30: DW6-00006 | E30: Microsoft®PowerBIProOpen ShrdSvr MonthlySubscriptions-VolumeLicense Government OLP 1License NoLevel Qualified Annual | I30: Producto | J30: Unidad | K30: N/A | L30: N/A | M30: N/A | N30: DW6-00006 | O30: Suscripción Anual | P30: 20 | Q30: =IFERROR(VLOOKUP("UT Soft-IG"&$V30&$C30,temp!$A:$Y,19,0)*$J$18,VLOOKUP("Catalogo principal"&$V30&$C30,temp!$A:$Y,19,0)*$J$18) -> 439492.251 | R30: =ROUND(Q30/(1-(VLOOKUP("Total porcentaje:",$F:$H,3))),2) -> 455904.82 | S30: =ROUND(P30*R30,2) -> 9118096.4 | T30: =IFERROR(ROUND(S30*IF(VLOOKUP("UT Soft-IG"&$V30&$C30,Consolidado!$A:$U,21,0)=1,19%,0),2),ROUND(S30*IF(VLOOKUP("Catalogo principal"&$V30&$C30,Consolidado!$A:$U,21,0)=1,19%,0),2)) -> 1732438.32 | U30: =S30+T30 -> 10850534.72 | V30: =IFERROR(VLOOKUP($C30&$E$18,Consolidado!$B:$U,5,0),VLOOKUP($C30&"Canal",Consolidado!$B:$U,5,0)) -> OPEN-CSP GOBIERNO | W30: =VLOOKUP($C30,Consolidado!$E:$G,3,0) -> Catalogo principal
A31: Soporte técnico proactivo Remoto | B31: 4 | C31: IT-SW-10-03 | E31: Soporte técnico proactivo | I31: Servicio | J31: Hora | K31: Zona 1 | L31: Remoto | M31: Técnico/Tecnólogo ó Profesional | N31: IT-SW-10-03 | O31: Mensual por servicios efectivamente prestados | P31: 5 | Q31: =IFERROR(VLOOKUP("UT Soft-IG"&$V31&$C31,temp!$A:$Y,19,0),VLOOKUP("Catalogo principal"&$V31&$C31,temp!$A:$Y,19,0)) -> 93000 | R31: =ROUND(Q31/(1-(VLOOKUP("Total porcentaje:",$F:$H,3))),2) -> 96473.03 | S31: =ROUND(P31*R31,2) -> 482365.15 | T31: =IFERROR(ROUND(S31*IF(VLOOKUP("UT Soft-IG"&$V31&$C31,Consolidado!$A:$U,21,0)=1,19%,0),2),ROUND(S31*IF(VLOOKUP("Catalogo principal"&$V31&$C31,Consolidado!$A:$U,21,0)=1,19%,0),2)) -> 91649.38 | U31: =S31+T31 -> 574014.53 | V31: =IFERROR(VLOOKUP($C31&$E$18,Consolidado!$B:$U,5,0),VLOOKUP($C31&"Canal",Consolidado!$B:$U,5,0)) -> Canal
A32: Soporte técnico reactivo Remoto | B32: 5 | C32: IT-SW-11-06 | E32: Soporte técnico reactivo | I32: Servicio | J32: Hora | K32: Zona 1 | L32: Remoto | M32: Técnico/Tecnólogo ó Profesional | N32: IT-SW-11-06 | O32: Mensual por servicios efectivamente prestados | P32: 6 | Q32: =IFERROR(VLOOKUP("UT Soft-IG"&$V32&$C32,temp!$A:$Y,19,0),VLOOKUP("Catalogo principal"&$V32&$C32,temp!$A:$Y,19,0)) -> 84000 | R32: =ROUND(Q32/(1-(VLOOKUP("Total porcentaje:",$F:$H,3))),2) -> 87136.93 | S32: =ROUND(P32*R32,2) -> 522821.58 | T32: =IFERROR(ROUND(S32*IF(VLOOKUP("UT Soft-IG"&$V32&$C32,Consolidado!$A:$U,21,0)=1,19%,0),2),ROUND(S32*IF(VLOOKUP("Catalogo principal"&$V32&$C32,Consolidado!$A:$U,21,0)=1,19%,0),2)) -> 99336.1 | U32: =S32+T32 -> 622157.68 | V32: =IFERROR(VLOOKUP($C32&$E$18,Consolidado!$B:$U,5,0),VLOOKUP($C32&"Canal",Consolidado!$B:$U,5,0)) -> Canal
B33: 1. Si requiere agregue o elimine fila | T33: Valor Total | U33: =ROUND(SUM($U$28:$U$32),2) -> 1092415186
B36: Gravámenes adicionales*
B37: Si los hay, indique los gravámenes adicionales a los que está sujeta la Orden de Compra. Son gravámenes adicionales por ejemplo; estampillas y demás impuestos territoriales. Los impuestos como ICA y retención en la fuente NO son gravámenes adicionales.
B38: Gravámenes adicionales (estampillas)
B39: No | C39: Descripción | H39: Porcentaje
B40: 1 | C40: ESTAMPILLA DISTRITAL - PROADULTO MAYOR | H40: 0.02
B41: 2 | C41: ESTAMPILLA DISTRITAL - PROCULTURA | H41: 0.005
B42: 3 | C42: ESTAMPILLA DISTRITAL - UNIVERSIDAD DISTRITAL FRANCISCO JOSE DE CALDAS | H42: 0.011
F43: Total porcentaje: | H43: =SUM(H40:H42) -> 0.036
D44: Filas a agregar o eliminar Gravámenes:
D45: 1
... 1 more rows

Sheet Cotizacion
B1: Solicitud de Cotización Software Microsoft OPEN-CSP Gobierno y Educativo
B3: =SolCotizacion!B3 -> Versión: 16 | C3: =SolCotizacion!C3 -> 2021-03-30
B4: Información de la Entidad Compradora
B6: Nombre de la Entidad | E6: Secretaría General de la Alcaldía Mayor de Bogotá D.C | K6: NIT | M6: 899999061
B8: Dirección de la Entidad | E8: Carrera 8 No 10-65 | K8: Correo de contacto | M8: ojasprilla@alcaldiabogota.gov.co
B10: Municipio | E10: Bogotá D.C | K10: Teléfono de contacto | M10: 3803000 ext 1168
B12: Nombre funcionario Comprador | E12: Oscar Javier Asprilla Cruz
B16: Solicitud de Cotización
B18: Categoría | E18: OPEN-CSP GOBIERNO | I18: Valor TRM | J18: =SolCotizacion!J18 -> 3665.49 | M18: Fecha | N18: =SolCotizacion!N18 -> 2021-04-23
B20: Productos
A22: *Libros, revistas, cartillas y/o catálogo Segmento 1. | B22: =SolCotizacion!B22 -> OPEN-CSP GOBIERNO
B24: Cantidad de filas:
B25: 1 | L25: Proveedor
B27: Item | C27: Código Catálogo | E27: Descripción del Producto | I27: Tipo | J27: Unidad | K27: Zona | L27: Asistencia | M27: Perfil | N27: Número de parte | O27: Forma de Pago | P27: cantidad | Q27: Precio Unitario | R27: Precio Unitario + Gravamen | S27: Descuento adicional | T27: Precio con Descuento | U27: Subtotal | V27: IVA | W27: Vr IVA | X27: Precio Total
A28: Microsoft®O365E3Open ShrdSvr MonthlySubscriptions-VolumeLicense Government OLP 1License NoLevel Qualified AnnualN/A | B28: 1 | C28: Q5Y-00006 | E28: Microsoft®O365E3Open ShrdSvr MonthlySubscriptions-VolumeLicense Government OLP 1License NoLevel Qualified Annual | I28: Producto | J28: Unidad | K28: N/A | L28: N/A | M28: N/A | N28: Q5Y-00006 | O28: Suscripción Anual | P28: 590 | Q28: =IFERROR(VLOOKUP($N$25&$Y28&$C28,temp!$A:$Y,19,0)*$J$18,VLOOKUP("Catalogo principal"&$Y28&$C28,temp!$A:$Y,19,0)*$J$18) -> 880084.149 | R28: =ROUND(Q28/(1-(VLOOKUP("Total porcentaje:",$F:$H,3))),2) -> 912950.36 | T28: =ROUND(R28*(1-S28),2) -> 912950.36 | U28: =ROUND(P28*T28,2) -> 538640712.4 | W28: =IF(V28="Si",U28*19%,0) -> 0 | X28: =U28+W28 -> 538640712.4 | Y28: =IFERROR(VLOOKUP($C28&$E$18,Consolidado!$B:$U,5,0),VLOOKUP($C28&"Canal",Consolidado!$B:$U,5,0)) -> OPEN-CSP GOBIERNO | Z28: =VLOOKUP($C28,Consolidado!$E:$G,3,0) -> Catalogo principal
A29: Microsoft®O365PlanE1Archiving ShrdSvr MonthlySubscriptions-VolumeLicense Government OLP 1License NoLevel Qualified AnnualN/A | B29: 2 | C29: 7JT-00003 | E29: Microsoft®O365PlanE1Archiving ShrdSvr MonthlySubscriptions-VolumeLicense Government OLP 1License NoLevel Qualified Annual | I29: Producto | J29: Unidad | K29: N/A | L29: N/A | M29: N/A | N29: 7JT-00003 | O29: Suscripción Anual | P29: 886 | Q29: =IFERROR(VLOOKUP($N$25&$Y29&$C29,temp!$A:$Y,19,0)*$J$18,VLOOKUP("Catalogo principal"&$Y29&$C29,temp!$A:$Y,19,0)*$J$18) -> 401737.704 | R29: =ROUND(Q29/(1-(VLOOKUP("Total porcentaje:",$F:$H,3))),2) -> 416740.36 | T29: =ROUND(R29*(1-S29),2) -> 416740.36 | U29: =ROUND(P29*T29,2) -> 369231959 | W29: =IF(V29="Si",U29*19%,0) -> 0 | X29: =U29+W29 -> 369231959 | Y29: =IFERROR(VLOOKUP($C29&$E$18,Consolidado!$B:$U,5,0),VLOOKUP($C29&"Canal",Consolidado!$B:$U,5,0)) -> OPEN-CSP GOBIERNO | Z29: =VLOOKUP($C29,Consolidado!$E:$G,3,0) -> Catalogo principal
A30: Microsoft®PowerBIProOpen ShrdSvr MonthlySubscriptions-VolumeLicense Government OLP 1License NoLevel Qualified AnnualN/A | B30: 3 | C30: DW6-00006 | E30: Microsoft®PowerBIProOpen ShrdSvr MonthlySubscriptions-VolumeLicense Government OLP 1License NoLevel Qualified Annual | I30: Producto | J30: Unidad | K30: N/A | L30: N/A | M30: N/A | N30: DW6-00006 | O30: Suscripción Anual | P30: 20 | Q30: =IFERROR(VLOOKUP($N$25&$Y30&$C30,temp!$A:$Y,19,0)*$J$18,VLOOKUP("Catalogo principal"&$Y30&$C30,temp!$A:$Y,19,0)*$J$18) -> 439492.251 | R30: =ROUND(Q30/(1-(VLOOKUP("Total porcentaje:",$F:$H,3))),2) -> 455904.82 | T30: =ROUND(R30*(1-S30),2) -> 455904.82 | U30: =ROUND(P30*T30,2) -> 9118096.4 | W30: =IF(V30="Si",U30*19%,0) -> 0 | X30: =U30+W30 -> 9118096.4 | Y30: =IFERROR(VLOOKUP($C30&$E$18,Consolidado!$B:$U,5,0),VLOOKUP($C30&"Canal",Consolidado!$B:$U,5,0)) -> OPEN-CSP GOBIERNO | Z30: =VLOOKUP($C30,Consolidado!$E:$G,3,0) -> Catalogo principal
A31: Soporte técnico proactivo Remoto | B31: 4 | C31: IT-SW-10-03 | E31: Soporte técnico proactivo | I31: Servicio | J31: Hora | K31: Zona 1 | L31: Remoto | M31: Técnico/Tecnólogo ó Profesional | N31: IT-SW-10-03 | O31: Mensual por servicios efectivamente prestados | P31: 5 | Q31: =IFERROR(VLOOKUP($N$25&$Y31&$C31,temp!$A:$Y,19,0),VLOOKUP("Catalogo principal"&$Y31&$C31,temp!$A:$Y,19,0)) ->  | R31: =ROUND(Q31/(1-(VLOOKUP("Total porcentaje:",$F:$H,3))),2) ->  | T31: =ROUND(R31*(1-S31),2) ->  | U31: =ROUND(P31*T31,2) ->  | W31: =IF(V31="Si",U31*19%,0) -> 0 | X31: =U31+W31 ->  | Y31: =IFERROR(VLOOKUP($C31&$E$18,Consolidado!$B:$U,5,0),VLOOKUP($C31&"Canal",Consolidado!$B:$U,5,0)) -> Canal | Z31: =VLOOKUP($C31,Consolidado!$E:$G,3,0) -> Controles Empresariales
A32: Soporte técnico reactivo Remoto | B32: 5 | C32: IT-SW-11-06 | E32: Soporte técnico reactivo | I32: Servicio | J32: Hora | K32: Zona 1 | L32: Remoto | M32: Técnico/Tecnólogo ó Profesional | N32: IT-SW-11-06 | O32: Mensual por servicios efectivamente prestados | P32: 6 | Q32: =IFERROR(VLOOKUP($N$25&$Y32&$C32,temp!$A:$Y,19,0),VLOOKUP("Catalogo principal"&$Y32&$C32,temp!$A:$Y,19,0)) ->  | R32: =ROUND(Q32/(1-(VLOOKUP("Total porcentaje:",$F:$H,3))),2) ->  | T32: =ROUND(R32*(1-S32),2) ->  | U32: =ROUND(P32*T32,2) ->  | W32: =IF(V32="Si",U32*19%,0) -> 0 | X32: =U32+W32 ->  | Y32: =IFERROR(VLOOKUP($C32&$E$18,Consolidado!$B:$U,5,0),VLOOKUP($C32&"Canal",Consolidado!$B:$U,5,0)) -> Canal | Z32: =VLOOKUP($C32,Consolidado!$E:$G,3,0) -> Controles Empresariales
B33: 1. Si requiere agregue o elimine fila | W33: Valor Total | X33: =ROUND(SUM($X$28:$X$32),2) -> 
B36: Gravámenes adicionales*
B37: Si los hay, indique los gravámenes adicionales a los que está sujeta la Orden de Compra. Son gravámenes adicionales por ejemplo; estampillas y demás impuestos territoriales. Los impuestos como ICA y retención en la fuente NO son gravámenes adicionales.
B38: Gravámenes adicionales (estampillas)
B39: No | C39: Descripción | H39: Porcentaje
B40: 1 | C40: ESTAMPILLA DISTRITAL - PROADULTO MAYOR | H40: 0.02
B41: 2 | C41: ESTAMPILLA DISTRITAL - PROCULTURA | H41: 0.005
B42: 3 | C42: ESTAMPILLA DISTRITAL - UNIVERSIDAD DISTRITAL FRANCISCO JOSE DE CALDAS | H42: 0.011
F43: Total porcentaje: | H43: =SUM(H40:H42) -> 0.036
D44: Filas a agregar o eliminar Gravámenes:
D45: 1

Sheet CSV (hidden)
A1: Tipo | B1: Cantidad | C1: Código de unidad de medida* | D1: Posición | E1: Precio base | F1: Divisa | G1: Descripción | H1: Mercancía
A2: item | B2: 240 | C2: Und | E2: 691846,2 | F2: COP | G2: wms01--a43fadf6-c52c-469f-899b-4e7fb0f597d9 Dynamics 365 Finance
A3: item | B3: 36 | C3: Und | E3: 691846,2 | F3: COP | G3: wms01--2f3a9d62-81a9-4613-94f1-681951f40f25 Dynamics 365 Supply Chain Management
A4: item | B4: 96 | C4: Und | E4: 288269,25 | F4: COP | G4: wms01--16e05c5c-b536-42a0-a26e-d920c267d723 Dynamics 365 Unified Operations – Device
A5: item | B5: 960 | C5: Und | E5: 30748,72 | F5: COP | G5: wms01--b2ccb51a-43c2-47d4-92db-dbf14553a185 Dynamics 365 Team Members
A6: item | B6: 300 | C6: Und | E6: 38435,9 | F6: COP | G6: wms01--800f4f3b-cfe1-42c1-9cea-675512810488 Power BI Pro
A7: item | B7: 1 | C7: Und | E7: 49337858,68 | F7: COP | G7: wms01--IVA

Sheet Categorias (hidden)
A1: Categoría 1 | B1: Sistema Operativo, Plataforma, Nube e Infraestructura y Desarrollo Aplicaciones (Open – CSP)
A2: Categoría 2 | B2: Productividad Administración y análisis de datos (Open - CSP)
A3: Categoría 3 | B3: Movilidad (Open - CSP)
A4: Categoría 4 | B4: Aplicaciones empresariales (Open - CSP)
A5: Categoría 5 | B5: Campus (Educativo)
A6: Categoría 6 | B6: OVS (Educativo)
A7: Categoría 7 | B7: Open - CSP (Educativo)

Sheet Consolidado (hidden)
A1: LLAVE | B1: TEMP1 | C1: TEMP2 | D1: PROVEEDOR | E1: Código matriz Colombia Compra Eficiente | F1: categoria | G1: PROVEEDOR2 | H1: Moneda | I1: Parametrización de los Servicios | J1: Nombre Producto | K1: Unidad de Medida | L1: Unidad TVEC | M1: Tipo | N1: Zona | O1: Asistencia | P1: Perfil | Q1: Número de parte | R1: Forma de Pago | S1: Precio | T1: Activo | U1: IVA | V1: Moneda | X1: Familia
A2: =D2&F2&E2 -> Catalogo principalOPEN-CSP GOBIERNO021-07160 | B2: =E2&F2 -> 021-07160OPEN-CSP GOBIERNO | D2: Catalogo principal | E2: 021-07160 | F2: OPEN-CSP GOBIERNO | G2: Catalogo principal | H2: USD | I2: N/A | J2: Microsoft®Office License/SoftwareAssurancePack Government OLP 1License NoLevel | K2: Unidad | L2: Und | M2: Producto | N2: N/A | O2: N/A | P2: N/A | Q2: =+E2 -> 021-07160 | R2: Licencia | S2: 591.76 | T2: 1 | U2: 1 | V2: USD
A3: Catalogo principalOPEN-CSP GOBIERNO021-07161 | B3: 021-07161OPEN-CSP GOBIERNO | D3: Catalogo principal | E3: 021-07161 | F3: OPEN-CSP GOBIERNO | G3: Catalogo principal | H3: USD | I3: N/A | J3: Microsoft®Office SoftwareAssurance Government OLP 1License NoLevel | K3: Unidad | L3: Und | M3: Producto | N3: N/A | O3: N/A | P3: N/A | Q3: 021-07161 | R3: Licencia | S3: 217.2 | T3: 1 | U3: 1 | V3: USD
A4: Catalogo principalOPEN-CSP GOBIERNO021-10618 | B4: 021-10618OPEN-CSP GOBIERNO | D4: Catalogo principal | E4: 021-10618 | F4: OPEN-CSP GOBIERNO | G4: Catalogo principal | H4: USD | I4: N/A | J4: Microsoft®Office 2019 Government OLP 1License NoLevel | K4: Unidad | L4: Und | M4: Producto | N4: N/A | O4: N/A | P4: N/A | Q4: 021-10618 | R4: Licencia | S4: 374.56 | T4: 1 | U4: 1 | V4: USD
A5: Catalogo principalOPEN-CSP GOBIERNO076-03299 | B5: 076-03299OPEN-CSP GOBIERNO | D5: Catalogo principal | E5: 076-03299 | F5: OPEN-CSP GOBIERNO | G5: Catalogo principal | H5: USD | I5: N/A | J5: Microsoft®ProjectStandard License/SoftwareAssurancePack Government OLP 1License NoLevel | K5: Unidad | L5: Und | M5: Producto | N5: N/A | O5: N/A | P5: N/A | Q5: 076-03299 | R5: Licencia | S5: 895.8 | T5: 1 | U5: 1 | V5: USD
A6: Catalogo principalOPEN-CSP GOBIERNO076-03300 | B6: 076-03300OPEN-CSP GOBIERNO | D6: Catalogo principal | E6: 076-03300 | F6: OPEN-CSP GOBIERNO | G6: Catalogo principal | H6: USD | I6: N/A | J6: Microsoft®ProjectStandard SoftwareAssurance Government OLP 1License NoLevel | K6: Unidad | L6: Und | M6: Producto | N6: N/A | O6: N/A | P6: N/A | Q6: 076-03300 | R6: Licencia | S6: 328.8 | T6: 1 | U6: 1 | V6: USD
A7: Catalogo principalOPEN-CSP GOBIERNO076-05838 | B7: 076-05838OPEN-CSP GOBIERNO | D7: Catalogo principal | E7: 076-05838 | F7: OPEN-CSP GOBIERNO | G7: Catalogo principal | H7: USD | I7: N/A | J7: Microsoft®ProjectStandard 2019 Government OLP 1License NoLevel | K7: Unidad | L7: Und | M7: Producto | N7: N/A | O7: N/A | P7: N/A | Q7: 076-05838 | R7: Licencia | S7: 567.01 | T7: 1 | U7: 1 | V7: USD
A8: Catalogo principalOPEN-CSP GOBIERNO077-03412 | B8: 077-03412OPEN-CSP GOBIERNO | D8: Catalogo principal | E8: 077-03412 | F8: OPEN-CSP GOBIERNO | G8: Catalogo principal | H8: USD | I8: N/A | J8: Microsoft®Access License/SoftwareAssurancePack Government OLP 1License NoLevel | K8: Unidad | L8: Und | M8: Producto | N8: N/A | O8: N/A | P8: N/A | Q8: 077-03412 | R8: Licencia | S8: 186.89 | T8: 1 | U8: 1 | V8: USD
A9: Catalogo principalOPEN-CSP GOBIERNO077-03413 | B9: 077-03413OPEN-CSP GOBIERNO | D9: Catalogo principal | E9: 077-03413 | F9: OPEN-CSP GOBIERNO | G9: Catalogo principal | H9: USD | I9: N/A | J9: Microsoft®Access SoftwareAssurance Government OLP 1License NoLevel | K9: Unidad | L9: Und | M9: Producto | N9: N/A | O9: N/A | P9: N/A | Q9: 077-03413 | R9: Licencia | S9: 68.57 | T9: 1 | U9: 1 | V9: USD
A10: Catalogo principalOPEN-CSP GOBIERNO077-07242 | B10: 077-07242OPEN-CSP GOBIERNO | D10: Catalogo principal | E10: 077-07242 | F10: OPEN-CSP GOBIERNO | G10: Catalogo principal | H10: USD | I10: N/A | J10: Microsoft®Access 2019 Government OLP 1License NoLevel | K10: Unidad | L10: Und | M10: Producto | N10: N/A | O10: N/A | P10: N/A | Q10: 077-07242 | R10: Licencia | S10: 118.32 | T10: 1 | U10: 1 | V10: USD
A11: Catalogo principalOPEN-CSP GOBIERNO125-00162 | B11: 125-00162OPEN-CSP GOBIERNO | D11: Catalogo principal | E11: 125-00162 | F11: OPEN-CSP GOBIERNO | G11: Catalogo principal | H11: USD | I11: N/A | J11: Microsoft®AzureDevOpsServer License/SoftwareAssurancePack Government OLP 1License NoLevel | K11: Unidad | L11: Und | M11: Producto | N11: N/A | O11: N/A | P11: N/A | Q11: 125-00162 | R11: Licencia | S11: 584.22 | T11: 1 | U11: 1 | V11: USD
A12: Catalogo principalOPEN-CSP GOBIERNO125-00181 | B12: 125-00181OPEN-CSP GOBIERNO | D12: Catalogo principal | E12: 125-00181 | F12: OPEN-CSP GOBIERNO | G12: Catalogo principal | H12: USD | I12: N/A | J12: Microsoft®AzureDevOpsServer SoftwareAssurance Government OLP 1License NoLevel | K12: Unidad | L12: Und | M12: Producto | N12: N/A | O12: N/A | P12: N/A | Q12: 125-00181 | R12: Licencia | S12: 194.74 | T12: 1 | U12: 1 | V12: USD
A13: Catalogo principalOPEN-CSP GOBIERNO126-00257 | B13: 126-00257OPEN-CSP GOBIERNO | D13: Catalogo principal | E13: 126-00257 | F13: OPEN-CSP GOBIERNO | G13: Catalogo principal | H13: USD | I13: N/A | J13: Microsoft®AzureDevOpsServerCAL License/SoftwareAssurancePack Government OLP 1License NoLevel DvcCAL | K13: Unidad | L13: Und | M13: Producto | N13: N/A | O13: N/A | P13: N/A | Q13: 126-00257 | R13: Licencia | S13: 584.22 | T13: 1 | U13: 1 | V13: USD
A14: Catalogo principalOPEN-CSP GOBIERNO126-00260 | B14: 126-00260OPEN-CSP GOBIERNO | D14: Catalogo principal | E14: 126-00260 | F14: OPEN-CSP GOBIERNO | G14: Catalogo principal | H14: USD | I14: N/A | J14: Microsoft®AzureDevOpsServerCAL License/SoftwareAssurancePack Government OLP 1License NoLevel UsrCAL | K14: Unidad | L14: Und | M14: Producto | N14: N/A | O14: N/A | P14: N/A | Q14: 126-00260 | R14: Licencia | S14: 671.93 | T14: 1 | U14: 1 | V14: USD
A15: Catalogo principalOPEN-CSP GOBIERNO126-00295 | B15: 126-00295OPEN-CSP GOBIERNO | D15: Catalogo principal | E15: 126-00295 | F15: OPEN-CSP GOBIERNO | G15: Catalogo principal | H15: USD | I15: N/A | J15: Microsoft®AzureDevOpsServerCAL SoftwareAssurance Government OLP 1License NoLevel DvcCAL | K15: Unidad | L15: Und | M15: Producto | N15: N/A | O15: N/A | P15: N/A | Q15: 126-00295 | R15: Licencia | S15: 194.74 | T15: 1 | U15: 1 | V15: USD
A16: Catalogo principalOPEN-CSP GOBIERNO126-00298 | B16: 126-00298OPEN-CSP GOBIERNO | D16: Catalogo principal | E16: 126-00298 | F16: OPEN-CSP GOBIERNO | G16: Catalogo principal | H16: USD | I16: N/A | J16: Microsoft®AzureDevOpsServerCAL SoftwareAssurance Government OLP 1License NoLevel UsrCAL | K16: Unidad | L16: Und | M16: Producto | N16: N/A | O16: N/A | P16: N/A | Q16: 126-00298 | R16: Licencia | S16: 223.98 | T16: 1 | U16: 1 | V16: USD
A17: Catalogo principalOPEN-CSP GOBIERNO228-04510 | B17: 228-04510OPEN-CSP GOBIERNO | D17: Catalogo principal | E17: 228-04510 | F17: OPEN-CSP GOBIERNO | G17: Catalogo principal | H17: USD | I17: N/A | J17: Microsoft®SQLServerStandardEdition SoftwareAssurance Government OLP 1License NoLevel | K17: Unidad | L17: Und | M17: Producto | N17: N/A | O17: N/A | P17: N/A | Q17: 228-04510 | R17: Licencia | S17: 451.59 | T17: 1 | U17: 1 | V17: USD
A18: Catalogo principalOPEN-CSP GOBIERNO228-04513 | B18: 228-04513OPEN-CSP GOBIERNO | D18: Catalogo principal | E18: 228-04513 | F18: OPEN-CSP GOBIERNO | G18: Catalogo principal | H18: USD | I18: N/A | J18: Microsoft®SQLServerStandardEdition License/SoftwareAssurancePack Government OLP 1License NoLevel | K18: Unidad | L18: Und | M18: Producto | N18: N/A | O18: N/A | P18: N/A | Q18: 228-04513 | R18: Licencia | S18: 1354.91 | T18: 1 | U18: 1 | V18: USD
A19: Catalogo principalOPEN-CSP GOBIERNO228-11487 | B19: 228-11487OPEN-CSP GOBIERNO | D19: Catalogo principal | E19: 228-11487 | F19: OPEN-CSP GOBIERNO | G19: Catalogo principal | H19: USD | I19: N/A | J19: Microsoft®SQLServerStandardEdition 2019 Government OLP 1License NoLevel | K19: Unidad | L19: Und | M19: Producto | N19: N/A | O19: N/A | P19: N/A | Q19: 228-11487 | R19: Licencia | S19: 903.33 | T19: 1 | U19: 1 | V19: USD
A20: Catalogo principalOPEN-CSP GOBIERNO269-08812 | B20: 269-08812OPEN-CSP GOBIERNO | D20: Catalogo principal | E20: 269-08812 | F20: OPEN-CSP GOBIERNO | G20: Catalogo principal | H20: USD | I20: N/A | J20: Microsoft®OfficeProfessionalPlus License/SoftwareAssurancePack Government OLP 1License NoLevel | K20: Unidad | L20: Und | M20: Producto | N20: N/A | O20: N/A | P20: N/A | Q20: 269-08812 | R20: Licencia | S20: 807.26 | T20: 1 | U20: 1 | V20: USD
A21: Catalogo principalOPEN-CSP GOBIERNO269-08814 | B21: 269-08814OPEN-CSP GOBIERNO | D21: Catalogo principal | E21: 269-08814 | F21: OPEN-CSP GOBIERNO | G21: Catalogo principal | H21: USD | I21: N/A | J21: Microsoft®OfficeProfessionalPlus SoftwareAssurance Government OLP 1License NoLevel | K21: Unidad | L21: Und | M21: Producto | N21: N/A | O21: N/A | P21: N/A | Q21: 269-08814 | R21: Licencia | S21: 296.32 | T21: 1 | U21: 1 | V21: USD
A22: Catalogo principalOPEN-CSP GOBIERNO2PM-00006 | B22: 2PM-00006OPEN-CSP GOBIERNO | D22: Catalogo principal | E22: 2PM-00006 | F22: OPEN-CSP GOBIERNO | G22: Catalogo principal | H22: USD | I22: N/A | J22: Microsoft®CloudAppSecurityOpen MonthlySubscriptions-VolumeLicense Government OLP 1License NoLevel Qualified Annual | K22: Unidad | L22: Und | M22: Producto | N22: N/A | O22: N/A | P22: N/A | Q22: 2PM-00006 | R22: Suscripción Anual | S22: 42 | T22: 1 | U22: 1 | V22: USD
A23: Catalogo principalOPEN-CSP GOBIERNO312-02971 | B23: 312-02971OPEN-CSP GOBIERNO | D23: Catalogo principal | E23: 312-02971 | F23: OPEN-CSP GOBIERNO | G23: Catalogo principal | H23: USD | I23: N/A | J23: Microsoft®ExchangeServerStandard SoftwareAssurance Government OLP 1License NoLevel | K23: Unidad | L23: Und | M23: Producto | N23: N/A | O23: N/A | P23: N/A | Q23: 312-02971 | R23: Licencia | S23: 356.12 | T23: 1 | U23: 1 | V23: USD
A24: Catalogo principalOPEN-CSP GOBIERNO312-02972 | B24: 312-02972OPEN-CSP GOBIERNO | D24: Catalogo principal | E24: 312-02972 | F24: OPEN-CSP GOBIERNO | G24: Catalogo principal | H24: USD | I24: N/A | J24: Microsoft®ExchangeServerStandard License/SoftwareAssurancePack Government OLP 1License NoLevel | K24: Unidad | L24: Und | M24: Producto | N24: N/A | O24: N/A | P24: N/A | Q24: 312-02972 | R24: Licencia | S24: 1068.63 | T24: 1 | U24: 1 | V24: USD
A25: Catalogo principalOPEN-CSP GOBIERNO312-04413 | B25: 312-04413OPEN-CSP GOBIERNO | D25: Catalogo principal | E25: 312-04413 | F25: OPEN-CSP GOBIERNO | G25: Catalogo principal | H25: USD | I25: N/A | J25: Microsoft®ExchangeServerStandard 2019 Government OLP 1License NoLevel | K25: Unidad | L25: Und | M25: Producto | N25: N/A | O25: N/A | P25: N/A | Q25: 312-04413 | R25: Licencia | S25: 712.5 | T25: 1 | U25: 1 | V25: USD
A26: Catalogo principalOPEN-CSP GOBIERNO359-01384 | B26: 359-01384OPEN-CSP GOBIERNO | D26: Catalogo principal | E26: 359-01384 | F26: OPEN-CSP GOBIERNO | G26: Catalogo principal | H26: USD | I26: N/A | J26: Microsoft®SQLCAL SoftwareAssurance Government OLP 1License NoLevel UsrCAL | K26: Unidad | L26: Und | M26: Producto | N26: N/A | O26: N/A | P26: N/A | Q26: 359-01384 | R26: Licencia | S26: 104.88 | T26: 1 | U26: 1 | V26: USD
A27: Catalogo principalOPEN-CSP GOBIERNO359-01385 | B27: 359-01385OPEN-CSP GOBIERNO | D27: Catalogo principal | E27: 359-01385 | F27: OPEN-CSP GOBIERNO | G27: Catalogo principal | H27: USD | I27: N/A | J27: Microsoft®SQLCAL SoftwareAssurance Government OLP 1License NoLevel DvcCAL | K27: Unidad | L27: Und | M27: Producto | N27: N/A | O27: N/A | P27: N/A | Q27: 359-01385 | R27: Licencia | S27: 104.88 | T27: 1 | U27: 1 | V27: USD
A28: Catalogo principalOPEN-CSP GOBIERNO359-01386 | B28: 359-01386OPEN-CSP GOBIERNO | D28: Catalogo principal | E28: 359-01386 | F28: OPEN-CSP GOBIERNO | G28: Catalogo principal | H28: USD | I28: N/A | J28: Microsoft®SQLCAL License/SoftwareAssurancePack Government OLP 1License NoLevel UsrCAL | K28: Unidad | L28: Und | M28: Producto | N28: N/A | O28: N/A | P28: N/A | Q28: 359-01386 | R28: Licencia | S28: 314.65 | T28: 1 | U28: 1 | V28: USD
A29: Catalogo principalOPEN-CSP GOBIERNO359-01387 | B29: 359-01387OPEN-CSP GOBIERNO | D29: Catalogo principal | E29: 359-01387 | F29: OPEN-CSP GOBIERNO | G29: Catalogo principal | H29: USD | I29: N/A | J29: Microsoft®SQLCAL License/SoftwareAssurancePack Government OLP 1License NoLevel DvcCAL | K29: Unidad | L29: Und | M29: Producto | N29: N/A | O29: N/A | P29: N/A | Q29: 359-01387 | R29: Licencia | S29: 314.65 | T29: 1 | U29: 1 | V29: USD
A30: Catalogo principalOPEN-CSP GOBIERNO359-06885 | B30: 359-06885OPEN-CSP GOBIERNO | D30: Catalogo principal | E30: 359-06885 | F30: OPEN-CSP GOBIERNO | G30: Catalogo principal | H30: USD | I30: N/A | J30: Microsoft®SQLCAL 2019 Government OLP 1License NoLevel DvcCAL | K30: Unidad | L30: Und | M30: Producto | N30: N/A | O30: N/A | P30: N/A | Q30: 359-06885 | R30: Licencia | S30: 209.77 | T30: 1 | U30: 1 | V30: USD
A31: Catalogo principalOPEN-CSP GOBIERNO359-06886 | B31: 359-06886OPEN-CSP GOBIERNO | D31: Catalogo principal | E31: 359-06886 | F31: OPEN-CSP GOBIERNO | G31: Catalogo principal | H31: USD | I31: N/A | J31: Microsoft®SQLCAL 2019 Government OLP 1License NoLevel UsrCAL | K31: Unidad | L31: Und | M31: Producto | N31: N/A | O31: N/A | P31: N/A | Q31: 359-06886 | R31: Licencia | S31: 209.77 | T31: 1 | U31: 1 | V31: USD
A32: Catalogo principalOPEN-CSP GOBIERNO381-02587 | B32: 381-02587OPEN-CSP GOBIERNO | D32: Catalogo principal | E32: 381-02587 | F32: OPEN-CSP GOBIERNO | G32: Catalogo principal | H32: USD | I32: N/A | J32: Microsoft®ExchangeStandardCAL SoftwareAssurance Government OLP 1License NoLevel UsrCAL | K32: Unidad | L32: Und | M32: Producto | N32: N/A | O32: N/A | P32: N/A | Q32: 381-02587 | R32: Licencia | S32: 43.64 | T32: 1 | U32: 1 | V32: USD
A33: Catalogo principalOPEN-CSP GOBIERNO381-02588 | B33: 381-02588OPEN-CSP GOBIERNO | D33: Catalogo principal | E33: 381-02588 | F33: OPEN-CSP GOBIERNO | G33: Catalogo principal | H33: USD | I33: N/A | J33: Microsoft®ExchangeStandardCAL SoftwareAssurance Government OLP 1License NoLevel DvcCAL | K33: Unidad | L33: Und | M33: Producto | N33: N/A | O33: N/A | P33: N/A | Q33: 381-02588 | R33: Licencia | S33: 33.75 | T33: 1 | U33: 1 | V33: USD
A34: Catalogo principalOPEN-CSP GOBIERNO381-02590 | B34: 381-02590OPEN-CSP GOBIERNO | D34: Catalogo principal | E34: 381-02590 | F34: OPEN-CSP GOBIERNO | G34: Catalogo principal | H34: USD | I34: N/A | J34: Microsoft®ExchangeStandardCAL License/SoftwareAssurancePack Government OLP 1License NoLevel DvcCAL | K34: Unidad | L34: Und | M34: Producto | N34: N/A | O34: N/A | P34: N/A | Q34: 381-02590 | R34: Licencia | S34: 101.11 | T34: 1 | U34: 1 | V34: USD
A35: Catalogo principalOPEN-CSP GOBIERNO381-02592 | B35: 381-02592OPEN-CSP GOBIERNO | D35: Catalogo principal | E35: 381-02592 | F35: OPEN-CSP GOBIERNO | G35: Catalogo principal | H35: USD | I35: N/A | J35: Microsoft®ExchangeStandardCAL License/SoftwareAssurancePack Government OLP 1License NoLevel UsrCAL | K35: Unidad | L35: Und | M35: Producto | N35: N/A | O35: N/A | P35: N/A | Q35: 381-02592 | R35: Licencia | S35: 130.81 | T35: 1 | U35: 1 | V35: USD
A36: Catalogo principalOPEN-CSP GOBIERNO381-04507 | B36: 381-04507OPEN-CSP GOBIERNO | D36: Catalogo principal | E36: 381-04507 | F36: OPEN-CSP GOBIERNO | G36: Catalogo principal | H36: USD | I36: N/A | J36: Microsoft®ExchangeStandardCAL 2019 Government OLP 1License NoLevel DvcCAL | K36: Unidad | L36: Und | M36: Producto | N36: N/A | O36: N/A | P36: N/A | Q36: 381-04507 | R36: Licencia | S36: 67.37 | T36: 1 | U36: 1 | V36: USD
A37: Catalogo principalOPEN-CSP GOBIERNO381-04508 | B37: 381-04508OPEN-CSP GOBIERNO | D37: Catalogo principal | E37: 381-04508 | F37: OPEN-CSP GOBIERNO | G37: Catalogo principal | H37: USD | I37: N/A | J37: Microsoft®ExchangeStandardCAL 2019 Government OLP 1License NoLevel UsrCAL | K37: Unidad | L37: Und | M37: Producto | N37: N/A | O37: N/A | P37: N/A | Q37: 381-04508 | R37: Licencia | S37: 87.17 | T37: 1 | U37: 1 | V37: USD
A38: Catalogo principalOPEN-CSP GOBIERNO395-03180 | B38: 395-03180OPEN-CSP GOBIERNO | D38: Catalogo principal | E38: 395-03180 | F38: OPEN-CSP GOBIERNO | G38: Catalogo principal | H38: USD | I38: N/A | J38: Microsoft®ExchangeServerEnterprise License/SoftwareAssurancePack Government OLP 1License NoLevel | K38: Unidad | L38: Und | M38: Producto | N38: N/A | O38: N/A | P38: N/A | Q38: 395-03180 | R38: Licencia | S38: 6121.31 | T38: 1 | U38: 1 | V38: USD
A39: Catalogo principalOPEN-CSP GOBIERNO395-03181 | B39: 395-03181OPEN-CSP GOBIERNO | D39: Catalogo principal | E39: 395-03181 | F39: OPEN-CSP GOBIERNO | G39: Catalogo principal | H39: USD | I39: N/A | J39: Microsoft®ExchangeServerEnterprise SoftwareAssurance Government OLP 1License NoLevel | K39: Unidad | L39: Und | M39: Producto | N39: N/A | O39: N/A | P39: N/A | Q39: 395-03181 | R39: Licencia | S39: 2040.52 | T39: 1 | U39: 1 | V39: USD
A40: Catalogo principalOPEN-CSP GOBIERNO395-04612 | B40: 395-04612OPEN-CSP GOBIERNO | D40: Catalogo principal | E40: 395-04612 | F40: OPEN-CSP GOBIERNO | G40: Catalogo principal | H40: USD | I40: N/A | J40: Microsoft®ExchangeServerEnterprise 2019 Government OLP 1License NoLevel | K40: Unidad | L40: Und | M40: Producto | N40: N/A | O40: N/A | P40: N/A | Q40: 395-04612 | R40: Licencia | S40: 4080.79 | T40: 1 | U40: 1 | V40: USD
A41: Catalogo principalOPEN-CSP GOBIERNO3LN-00010 | B41: 3LN-00010OPEN-CSP GOBIERNO | D41: Catalogo principal | E41: 3LN-00010 | F41: OPEN-CSP GOBIERNO | G41: Catalogo principal | H41: USD | I41: N/A | J41: Microsoft®IntuneOpen ShrdSvr MonthlySubscriptions-VolumeLicense Government OLP 1License NoLevel Qualified Annual | K41: Unidad | L41: Und | M41: Producto | N41: N/A | O41: N/A | P41: N/A | Q41: 3LN-00010 | R41: Suscripción Anual | S41: 72 | T41: 1 | U41: 1 | V41: USD
A42: Catalogo principalOPEN-CSP GOBIERNO3ND-00436 | B42: 3ND-00436OPEN-CSP GOBIERNO | D42: Catalogo principal | E42: 3ND-00436 | F42: OPEN-CSP GOBIERNO | G42: Catalogo principal | H42: USD | I42: N/A | J42: Microsoft®SysCtrServiceMgrCltMgmtLic License/SoftwareAssurancePack Government OLP 1License NoLevel PerOSE | K42: Unidad | L42: Und | M42: Producto | N42: N/A | O42: N/A | P42: N/A | Q42: 3ND-00436 | R42: Licencia | S42: 27.29 | T42: 1 | U42: 1 | V42: USD
A43: Catalogo principalOPEN-CSP GOBIERNO3ND-00437 | B43: 3ND-00437OPEN-CSP GOBIERNO | D43: Catalogo principal | E43: 3ND-00437 | F43: OPEN-CSP GOBIERNO | G43: Catalogo principal | H43: USD | I43: N/A | J43: Microsoft®SysCtrServiceMgrCltMgmtLic License/SoftwareAssurancePack Government OLP 1License NoLevel PerUsr | K43: Unidad | L43: Und | M43: Producto | N43: N/A | O43: N/A | P43: N/A | Q43: 3ND-00437 | R43: Licencia | S43: 35.5 | T43: 1 | U43: 1 | V43: USD
A44: Catalogo principalOPEN-CSP GOBIERNO3ND-00438 | B44: 3ND-00438OPEN-CSP GOBIERNO | D44: Catalogo principal | E44: 3ND-00438 | F44: OPEN-CSP GOBIERNO | G44: Catalogo principal | H44: USD | I44: N/A | J44: Microsoft®SysCtrServiceMgrCltMgmtLic SoftwareAssurance Government OLP 1License NoLevel PerOSE | K44: Unidad | L44: Und | M44: Producto | N44: N/A | O44: N/A | P44: N/A | Q44: 3ND-00438 | R44: Licencia | S44: 9.05 | T44: 1 | U44: 1 | V44: USD
A45: Catalogo principalOPEN-CSP GOBIERNO3ND-00439 | B45: 3ND-00439OPEN-CSP GOBIERNO | D45: Catalogo principal | E45: 3ND-00439 | F45: OPEN-CSP GOBIERNO | G45: Catalogo principal | H45: USD | I45: N/A | J45: Microsoft®SysCtrServiceMgrCltMgmtLic SoftwareAssurance Government OLP 1License NoLevel PerUsr | K45: Unidad | L45: Und | M45: Producto | N45: N/A | O45: N/A | P45: N/A | Q45: 3ND-00439 | R45: Licencia | S45: 11.79 | T45: 1 | U45: 1 | V45: USD
A46: Catalogo principalOPEN-CSP GOBIERNO3NN-00024 | B46: 3NN-00024OPEN-CSP GOBIERNO | D46: Catalogo principal | E46: 3NN-00024 | F46: OPEN-CSP GOBIERNO | G46: Catalogo principal | H46: USD | I46: N/A | J46: Microsoft®OneDriveforBusinessPlan1Open ShrdSvr MonthlySubscriptions-VolumeLicense Government OLP 1License NoLevel Qualified Annual | K46: Unidad | L46: Und | M46: Producto | N46: N/A | O46: N/A | P46: N/A | Q46: 3NN-00024 | R46: Suscripción Anual | S46: 60 | T46: 1 | U46: 1 | V46: USD
A47: Catalogo principalOPEN-CSP GOBIERNO3PP-00006 | B47: 3PP-00006OPEN-CSP GOBIERNO | D47: Catalogo principal | E47: 3PP-00006 | F47: OPEN-CSP GOBIERNO | G47: Catalogo principal | H47: USD | I47: N/A | J47: Microsoft®ProjOnlineEssentialsOpen ShrdSvr MonthlySubscriptions-VolumeLicense Government OLP 1License NoLevel Qualified Annual | K47: Unidad | L47: Und | M47: Producto | N47: N/A | O47: N/A | P47: N/A | Q47: 3PP-00006 | R47: Suscripción Anual | S47: 84 | T47: 1 | U47: 1 | V47: USD
A48: Catalogo principalOPEN-CSP GOBIERNO3VU-00089 | B48: 3VU-00089OPEN-CSP GOBIERNO | D48: Catalogo principal | E48: 3VU-00089 | F48: OPEN-CSP GOBIERNO | G48: Catalogo principal | H48: USD | I48: N/A | J48: Microsoft®MSDNPlatforms License/SoftwareAssurancePack Government OLP 1License NoLevel Qualified | K48: Unidad | L48: Und | M48: Producto | N48: N/A | O48: N/A | P48: N/A | Q48: 3VU-00089 | R48: Licencia | S48: 2434.39 | T48: 1 | U48: 1 | V48: USD
A49: Catalogo principalOPEN-CSP GOBIERNO3VU-00090 | B49: 3VU-00090OPEN-CSP GOBIERNO | D49: Catalogo principal | E49: 3VU-00090 | F49: OPEN-CSP GOBIERNO | G49: Catalogo principal | H49: USD | I49: N/A | J49: Microsoft®MSDNPlatforms SoftwareAssurance Government OLP 1License NoLevel Qualified | K49: Unidad | L49: Und | M49: Producto | N49: N/A | O49: N/A | P49: N/A | Q49: 3VU-00090 | R49: Licencia | S49: 2434.39 | T49: 1 | U49: 1 | V49: USD
A50: Catalogo principalOPEN-CSP GOBIERNO3YF-00123 | B50: 3YF-00123OPEN-CSP GOBIERNO | D50: Catalogo principal | E50: 3YF-00123 | F50: OPEN-CSP GOBIERNO | G50: Catalogo principal | H50: USD | I50: N/A | J50: Microsoft®OfficeMacStandard License/SoftwareAssurancePack Government OLP 1License NoLevel | K50: Unidad | L50: Und | M50: Producto | N50: N/A | O50: N/A | P50: N/A | Q50: 3YF-00123 | R50: Licencia | S50: 591.76 | T50: 1 | U50: 1 | V50: USD
A51: Catalogo principalOPEN-CSP GOBIERNO3YF-00124 | B51: 3YF-00124OPEN-CSP GOBIERNO | D51: Catalogo principal | E51: 3YF-00124 | F51: OPEN-CSP GOBIERNO | G51: Catalogo principal | H51: USD | I51: N/A | J51: Microsoft®OfficeMacStandard SoftwareAssurance Government OLP 1License NoLevel | K51: Unidad | L51: Und | M51: Producto | N51: N/A | O51: N/A | P51: N/A | Q51: 3YF-00124 | R51: Licencia | S51: 217.2 | T51: 1 | U51: 1 | V51: USD
A52: Catalogo principalOPEN-CSP GOBIERNO3YF-00661 | B52: 3YF-00661OPEN-CSP GOBIERNO | D52: Catalogo principal | E52: 3YF-00661 | F52: OPEN-CSP GOBIERNO | G52: Catalogo principal | H52: USD | I52: N/A | J52: Microsoft®OfficeMacStandard 2019 Government OLP 1License NoLevel | K52: Unidad | L52: Und | M52: Producto | N52: N/A | O52: N/A | P52: N/A | Q52: 3YF-00661 | R52: Licencia | S52: 374.56 | T52: 1 | U52: 1 | V52: USD
A53: Catalogo principalOPEN-CSP GOBIERNO3ZK-00165 | B53: 3ZK-00165OPEN-CSP GOBIERNO | D53: Catalogo principal | E53: 3ZK-00165 | F53: OPEN-CSP GOBIERNO | G53: Catalogo principal | H53: USD | I53: N/A | J53: Microsoft®SysCtrOrchestratorSvr License/SoftwareAssurancePack Government OLP 1License NoLevel PerOSE | K53: Unidad | L53: Und | M53: Producto | N53: N/A | O53: N/A | P53: N/A | Q53: 3ZK-00165 | R53: Licencia | S53: 27.29 | T53: 1 | U53: 1 | V53: USD
A54: Catalogo principalOPEN-CSP GOBIERNO3ZK-00166 | B54: 3ZK-00166OPEN-CSP GOBIERNO | D54: Catalogo principal | E54: 3ZK-00166 | F54: OPEN-CSP GOBIERNO | G54: Catalogo principal | H54: USD | I54: N/A | J54: Microsoft®SysCtrOrchestratorSvr License/SoftwareAssurancePack Government OLP 1License NoLevel PerUsr | K54: Unidad | L54: Und | M54: Producto | N54: N/A | O54: N/A | P54: N/A | Q54: 3ZK-00166 | R54: Licencia | S54: 35.5 | T54: 1 | U54: 1 | V54: USD
A55: Catalogo principalOPEN-CSP GOBIERNO3ZK-00167 | B55: 3ZK-00167OPEN-CSP GOBIERNO | D55: Catalogo principal | E55: 3ZK-00167 | F55: OPEN-CSP GOBIERNO | G55: Catalogo principal | H55: USD | I55: N/A | J55: Microsoft®SysCtrOrchestratorSvr SoftwareAssurance Government OLP 1License NoLevel PerOSE | K55: Unidad | L55: Und | M55: Producto | N55: N/A | O55: N/A | P55: N/A | Q55: 3ZK-00167 | R55: Licencia | S55: 9.05 | T55: 1 | U55: 1 | V55: USD
A56: Catalogo principalOPEN-CSP GOBIERNO3ZK-00168 | B56: 3ZK-00168OPEN-CSP GOBIERNO | D56: Catalogo principal | E56: 3ZK-00168 | F56: OPEN-CSP GOBIERNO | G56: Catalogo principal | H56: USD | I56: N/A | J56: Microsoft®SysCtrOrchestratorSvr SoftwareAssurance Government OLP 1License NoLevel PerUsr | K56: Unidad | L56: Und | M56: Producto | N56: N/A | O56: N/A | P56: N/A | Q56: 3ZK-00168 | R56: Licencia | S56: 11.79 | T56: 1 | U56: 1 | V56: USD
A57: Catalogo principalOPEN-CSP GOBIERNO5A5-00006 | B57: 5A5-00006OPEN-CSP GOBIERNO | D57: Catalogo principal | E57: 5A5-00006 | F57: OPEN-CSP GOBIERNO | G57: Catalogo principal | H57: USD | I57: N/A | J57: Microsoft®O365ExtraFileStorageOpen ShrdSvr MonthlySubscriptions-VolumeLicense Government OLP 1License NoLevel Addon Qualified Annual | K57: Unidad | L57: Und | M57: Producto | N57: N/A | O57: N/A | P57: N/A | Q57: 5A5-00006 | R57: Suscripción Anual | S57: 2.9 | T57: 1 | U57: 1 | V57: USD
A58: Catalogo principalOPEN-CSP GOBIERNO5A9-00006 | B58: 5A9-00006OPEN-CSP GOBIERNO | D58: Catalogo principal | E58: 5A9-00006 | F58: OPEN-CSP GOBIERNO | G58: Catalogo principal | H58: USD | I58: N/A | J58: Microsoft®EOAforExchangeOnlineOpen ShrdSvr MonthlySubscriptions-VolumeLicense Government OLP 1License NoLevel Addon Qualified Annual | K58: Unidad | L58: Und | M58: Producto | N58: N/A | O58: N/A | P58: N/A | Q58: 5A9-00006 | R58: Suscripción Anual | S58: 31.6 | T58: 1 | U58: 1 | V58: USD
A59: Catalogo principalOPEN-CSP GOBIERNO5HK-00288 | B59: 5HK-00288OPEN-CSP GOBIERNO | D59: Catalogo principal | E59: 5HK-00288 | F59: OPEN-CSP GOBIERNO | G59: Catalogo principal | H59: USD | I59: N/A | J59: Microsoft®LyncMac License/SoftwareAssurancePack Government OLP 1License NoLevel | K59: Unidad | L59: Und | M59: Producto | N59: N/A | O59: N/A | P59: N/A | Q59: 5HK-00288 | R59: Licencia | S59: 48.33 | T59: 1 | U59: 1 | V59: USD
A60: Catalogo principalOPEN-CSP GOBIERNO5HK-00289 | B60: 5HK-00289OPEN-CSP GOBIERNO | D60: Catalogo principal | E60: 5HK-00289 | F60: OPEN-CSP GOBIERNO | G60: Catalogo principal | H60: USD | I60: N/A | J60: Microsoft®LyncMac SoftwareAssurance Government OLP 1License NoLevel | K60: Unidad | L60: Und | M60: Producto | N60: N/A | O60: N/A | P60: N/A | Q60: 5HK-00289 | R60: Licencia | S60: 17.65 | T60: 1 | U60: 1 | V60: USD
A61: Catalogo principalOPEN-CSP GOBIERNO5HK-00290 | B61: 5HK-00290OPEN-CSP GOBIERNO | D61: Catalogo principal | E61: 5HK-00290 | F61: OPEN-CSP GOBIERNO | G61: Catalogo principal | H61: USD | I61: N/A | J61: Microsoft®LyncMac 2011 Government OLP 1License NoLevel | K61: Unidad | L61: Und | M61: Producto | N61: N/A | O61: N/A | P61: N/A | Q61: 5HK-00290 | R61: Licencia | S61: 30.68 | T61: 1 | U61: 1 | V61: USD
A62: Catalogo principalOPEN-CSP GOBIERNO5HU-00285 | B62: 5HU-00285OPEN-CSP GOBIERNO | D62: Catalogo principal | E62: 5HU-00285 | F62: OPEN-CSP GOBIERNO | G62: Catalogo principal | H62: USD | I62: N/A | J62: Microsoft®SfBServer License/SoftwareAssurancePack Government OLP 1License NoLevel | K62: Unidad | L62: Und | M62: Producto | N62: N/A | O62: N/A | P62: N/A | Q62: 5HU-00285 | R62: Licencia | S62: 5509.21 | T62: 1 | U62: 1 | V62: USD
A63: Catalogo principalOPEN-CSP GOBIERNO5HU-00286 | B63: 5HU-00286OPEN-CSP GOBIERNO | D63: Catalogo principal | E63: 5HU-00286 | F63: OPEN-CSP GOBIERNO | G63: Catalogo principal | H63: USD | I63: N/A | J63: Microsoft®SfBServer SoftwareAssurance Government OLP 1License NoLevel | K63: Unidad | L63: Und | M63: Producto | N63: N/A | O63: N/A | P63: N/A | Q63: 5HU-00286 | R63: Licencia | S63: 1836.48 | T63: 1 | U63: 1 | V63: USD
A64: Catalogo principalOPEN-CSP GOBIERNO5HU-00418 | B64: 5HU-00418OPEN-CSP GOBIERNO | D64: Catalogo principal | E64: 5HU-00418 | F64: OPEN-CSP GOBIERNO | G64: Catalogo principal | H64: USD | I64: N/A | J64: Microsoft®SfBServer 2019 Government OLP 1License NoLevel | K64: Unidad | L64: Und | M64: Producto | N64: N/A | O64: N/A | P64: N/A | Q64: 5HU-00418 | R64: Licencia | S64: 3672.72 | T64: 1 | U64: 1 | V64: USD
A65: Catalogo principalOPEN-CSP GOBIERNO6VC-01217 | B65: 6VC-01217OPEN-CSP GOBIERNO | D65: Catalogo principal | E65: 6VC-01217 | F65: OPEN-CSP GOBIERNO | G65: Catalogo principal | H65: USD | I65: N/A | J65: Microsoft®WinRmtDsktpSvcsCAL License/SoftwareAssurancePack Government OLP 1License NoLevel DvcCAL | K65: Unidad | L65: Und | M65: Producto | N65: N/A | O65: N/A | P65: N/A | Q65: 6VC-01217 | R65: Licencia | S65: 164.31 | T65: 1 | U65: 1 | V65: USD
A66: =D66&F66&E66 -> Catalogo principalOPEN-CSP GOBIERNO6VC-01218 | B66: =E66&F66 -> 6VC-01218OPEN-CSP GOBIERNO | D66: Catalogo principal | E66: 6VC-01218 | F66: OPEN-CSP GOBIERNO | G66: Catalogo principal | H66: USD | I66: N/A | J66: Microsoft®WinRmtDsktpSvcsCAL License/SoftwareAssurancePack Government OLP 1License NoLevel UsrCAL | K66: Unidad | L66: Und | M66: Producto | N66: N/A | O66: N/A | P66: N/A | Q66: =+E66 -> 6VC-01218 | R66: Licencia | S66: 197.64 | T66: 1 | U66: 1 | V66: USD
A67: Catalogo principalOPEN-CSP GOBIERNO6VC-01219 | B67: 6VC-01219OPEN-CSP GOBIERNO | D67: Catalogo principal | E67: 6VC-01219 | F67: OPEN-CSP GOBIERNO | G67: Catalogo principal | H67: USD | I67: N/A | J67: Microsoft®WinRmtDsktpSvcsCAL SoftwareAssurance Government OLP 1License NoLevel DvcCAL | K67: Unidad | L67: Und | M67: Producto | N67: N/A | O67: N/A | P67: N/A | Q67: 6VC-01219 | R67: Licencia | S67: 54.81 | T67: 1 | U67: 1 | V67: USD
A68: Catalogo principalOPEN-CSP GOBIERNO6VC-01220 | B68: 6VC-01220OPEN-CSP GOBIERNO | D68: Catalogo principal | E68: 6VC-01220 | F68: OPEN-CSP GOBIERNO | G68: Catalogo principal | H68: USD | I68: N/A | J68: Microsoft®WinRmtDsktpSvcsCAL SoftwareAssurance Government OLP 1License NoLevel UsrCAL | K68: Unidad | L68: Und | M68: Producto | N68: N/A | O68: N/A | P68: N/A | Q68: 6VC-01220 | R68: Licencia | S68: 65.92 | T68: 1 | U68: 1 | V68: USD
A69: Catalogo principalOPEN-CSP GOBIERNO6VC-03765 | B69: 6VC-03765OPEN-CSP GOBIERNO | D69: Catalogo principal | E69: 6VC-03765 | F69: OPEN-CSP GOBIERNO | G69: Catalogo principal | H69: USD | I69: N/A | J69: Microsoft®WinRmtDsktpSvcsCAL 2019 Government OLP 1License NoLevel DvcCAL | K69: Unidad | L69: Und | M69: Producto | N69: N/A | O69: N/A | P69: N/A | Q69: 6VC-03765 | R69: Licencia | S69: 109.5 | T69: 1 | U69: 1 | V69: USD
A70: Catalogo principalOPEN-CSP GOBIERNO6VC-03766 | B70: 6VC-03766OPEN-CSP GOBIERNO | D70: Catalogo principal | E70: 6VC-03766 | F70: OPEN-CSP GOBIERNO | G70: Catalogo principal | H70: USD | I70: N/A | J70: Microsoft®WinRmtDsktpSvcsCAL 2019 Government OLP 1License NoLevel UsrCAL | K70: Unidad | L70: Und | M70: Producto | N70: N/A | O70: N/A | P70: N/A | Q70: 6VC-03766 | R70: Licencia | S70: 131.72 | T70: 1 | U70: 1 | V70: USD
A71: Catalogo principalOPEN-CSP GOBIERNO6XC-00281 | B71: 6XC-00281OPEN-CSP GOBIERNO | D71: Catalogo principal | E71: 6XC-00281 | F71: OPEN-CSP GOBIERNO | G71: Catalogo principal | H71: USD | I71: N/A | J71: Microsoft®WinRmtDsktpSvcsExtConn License/SoftwareAssurancePack Government OLP 1License NoLevel Qualified | K71: Unidad | L71: Und | M71: Producto | N71: N/A | O71: N/A | P71: N/A | Q71: 6XC-00281 | R71: Licencia | S71: 16626.26 | T71: 1 | U71: 1 | V71: USD
A72: Catalogo principalOPEN-CSP GOBIERNO6XC-00282 | B72: 6XC-00282OPEN-CSP GOBIERNO | D72: Catalogo principal | E72: 6XC-00282 | F72: OPEN-CSP GOBIERNO | G72: Catalogo principal | H72: USD | I72: N/A | J72: Microsoft®WinRmtDsktpSvcsExtConn SoftwareAssurance Government OLP 1License NoLevel Qualified | K72: Unidad | L72: Und | M72: Producto | N72: N/A | O72: N/A | P72: N/A | Q72: 6XC-00282 | R72: Licencia | S72: 5542.04 | T72: 1 | U72: 1 | V72: USD
A73: Catalogo principalOPEN-CSP GOBIERNO6XC-00446 | B73: 6XC-00446OPEN-CSP GOBIERNO | D73: Catalogo principal | E73: 6XC-00446 | F73: OPEN-CSP GOBIERNO | G73: Catalogo principal | H73: USD | I73: N/A | J73: Microsoft®WinRmtDsktpSvcsExtConn 2019 Government OLP 1License NoLevel Qualified | K73: Unidad | L73: Und | M73: Producto | N73: N/A | O73: N/A | P73: N/A | Q73: 6XC-00446 | R73: Licencia | S73: 11084.22 | T73: 1 | U73: 1 | V73: USD
A74: Catalogo principalOPEN-CSP GOBIERNO6YH-00528 | B74: 6YH-00528OPEN-CSP GOBIERNO | D74: Catalogo principal | E74: 6YH-00528 | F74: OPEN-CSP GOBIERNO | G74: Catalogo principal | H74: USD | I74: N/A | J74: Microsoft®SkypeforBusiness License/SoftwareAssurancePack Government OLP 1License NoLevel | K74: Unidad | L74: Und | M74: Producto | N74: N/A | O74: N/A | P74: N/A | Q74: 6YH-00528 | R74: Licencia | S74: 48.05 | T74: 1 | U74: 1 | V74: USD
A75: Catalogo principalOPEN-CSP GOBIERNO6YH-00529 | B75: 6YH-00529OPEN-CSP GOBIERNO | D75: Catalogo principal | E75: 6YH-00529 | F75: OPEN-CSP GOBIERNO | G75: Catalogo principal | H75: USD | I75: N/A | J75: Microsoft®SkypeforBusiness SoftwareAssurance Government OLP 1License NoLevel | K75: Unidad | L75: Und | M75: Producto | N75: N/A | O75: N/A | P75: N/A | Q75: 6YH-00529 | R75: Licencia | S75: 17.65 | T75: 1 | U75: 1 | V75: USD
A76: Catalogo principalOPEN-CSP GOBIERNO6YH-01188 | B76: 6YH-01188OPEN-CSP GOBIERNO | D76: Catalogo principal | E76: 6YH-01188 | F76: OPEN-CSP GOBIERNO | G76: Catalogo principal | H76: USD | I76: N/A | J76: Microsoft®SkypeforBusiness 2019 Government OLP 1License NoLevel | K76: Unidad | L76: Und | M76: Producto | N76: N/A | O76: N/A | P76: N/A | Q76: 6YH-01188 | R76: Licencia | S76: 30.39 | T76: 1 | U76: 1 | V76: USD
A77: Catalogo principalOPEN-CSP GOBIERNO6ZH-00350 | B77: 6ZH-00350OPEN-CSP GOBIERNO | D77: Catalogo principal | E77: 6ZH-00350 | F77: OPEN-CSP GOBIERNO | G77: Catalogo principal | H77: USD | I77: N/A | J77: Microsoft®SfBServerStdCAL License/SoftwareAssurancePack Government OLP 1License NoLevel DvcCAL | K77: Unidad | L77: Und | M77: Producto | N77: N/A | O77: N/A | P77: N/A | Q77: 6ZH-00350 | R77: Licencia | S77: 46.25 | T77: 1 | U77: 1 | V77: USD
A78: Catalogo principalOPEN-CSP GOBIERNO6ZH-00371 | B78: 6ZH-00371OPEN-CSP GOBIERNO | D78: Catalogo principal | E78: 6ZH-00371 | F78: OPEN-CSP GOBIERNO | G78: Catalogo principal | H78: USD | I78: N/A | J78: Microsoft®SfBServerStdCAL License/SoftwareAssurancePack Government OLP 1License NoLevel UsrCAL | K78: Unidad | L78: Und | M78: Producto | N78: N/A | O78: N/A | P78: N/A | Q78: 6ZH-00371 | R78: Licencia | S78: 59.55 | T78: 1 | U78: 1 | V78: USD
A79: Catalogo principalOPEN-CSP GOBIERNO6ZH-00372 | B79: 6ZH-00372OPEN-CSP GOBIERNO | D79: Catalogo principal | E79: 6ZH-00372 | F79: OPEN-CSP GOBIERNO | G79: Catalogo principal | H79: USD | I79: N/A | J79: Microsoft®SfBServerStdCAL SoftwareAssurance Government OLP 1License NoLevel DvcCAL | K79: Unidad | L79: Und | M79: Producto | N79: N/A | O79: N/A | P79: N/A | Q79: 6ZH-00372 | R79: Licencia | S79: 15.42 | T79: 1 | U79: 1 | V79: USD
A80: Catalogo principalOPEN-CSP GOBIERNO6ZH-00373 | B80: 6ZH-00373OPEN-CSP GOBIERNO | D80: Catalogo principal | E80: 6ZH-00373 | F80: OPEN-CSP GOBIERNO | G80: Catalogo principal | H80: USD | I80: N/A | J80: Microsoft®SfBServerStdCAL SoftwareAssurance Government OLP 1License NoLevel UsrCAL | K80: Unidad | L80: Und | M80: Producto | N80: N/A | O80: N/A | P80: N/A | Q80: 6ZH-00373 | R80: Licencia | S80: 19.89 | T80: 1 | U80: 1 | V80: USD
A81: Catalogo principalOPEN-CSP GOBIERNO6ZH-00747 | B81: 6ZH-00747OPEN-CSP GOBIERNO | D81: Catalogo principal | E81: 6ZH-00747 | F81: OPEN-CSP GOBIERNO | G81: Catalogo principal | H81: USD | I81: N/A | J81: Microsoft®SfBServerStdCAL 2019 Government OLP 1License NoLevel DvcCAL | K81: Unidad | L81: Und | M81: Producto | N81: N/A | O81: N/A | P81: N/A | Q81: 6ZH-00747 | R81: Licencia | S81: 30.84 | T81: 1 | U81: 1 | V81: USD
A82: Catalogo principalOPEN-CSP GOBIERNO6ZH-00748 | B82: 6ZH-00748OPEN-CSP GOBIERNO | D82: Catalogo principal | E82: 6ZH-00748 | F82: OPEN-CSP GOBIERNO | G82: Catalogo principal | H82: USD | I82: N/A | J82: Microsoft®SfBServerStdCAL 2019 Government OLP 1License NoLevel UsrCAL | K82: Unidad | L82: Und | M82: Producto | N82: N/A | O82: N/A | P82: N/A | Q82: 6ZH-00748 | R82: Licencia | S82: 39.66 | T82: 1 | U82: 1 | V82: USD
A83: Catalogo principalOPEN-CSP GOBIERNO76M-01706 | B83: 76M-01706OPEN-CSP GOBIERNO | D83: Catalogo principal | E83: 76M-01706 | F83: OPEN-CSP GOBIERNO | G83: Catalogo principal | H83: USD | I83: N/A | J83: Microsoft®SharePointStandardCAL 2019 Government OLP 1License NoLevel DvcCAL | K83: Unidad | L83: Und | M83: Producto | N83: N/A | O83: N/A | P83: N/A | Q83: 76M-01706 | R83: Licencia | S83: 94.48 | T83: 1 | U83: 1 | V83: USD
A84: Catalogo principalOPEN-CSP GOBIERNO76M-01707 | B84: 76M-01707OPEN-CSP GOBIERNO | D84: Catalogo principal | E84: 76M-01707 | F84: OPEN-CSP GOBIERNO | G84: Catalogo principal | H84: USD | I84: N/A | J84: Microsoft®SharePointStandardCAL 2019 Government OLP 1License NoLevel UsrCAL | K84: Unidad | L84: Und | M84: Producto | N84: N/A | O84: N/A | P84: N/A | Q84: 76M-01707 | R84: Licencia | S84: 121.41 | T84: 1 | U84: 1 | V84: USD
A85: Catalogo principalOPEN-CSP GOBIERNO76N-00597 | B85: 76N-00597OPEN-CSP GOBIERNO | D85: Catalogo principal | E85: 76N-00597 | F85: OPEN-CSP GOBIERNO | G85: Catalogo principal | H85: USD | I85: N/A | J85: Microsoft®SharePointEnterpriseCAL License/SoftwareAssurancePack Government OLP 1License NoLevel DvcCAL | K85: Unidad | L85: Und | M85: Producto | N85: N/A | O85: N/A | P85: N/A | Q85: 76N-00597 | R85: Licencia | S85: 123.68 | T85: 1 | U85: 1 | V85: USD
A86: Catalogo principalOPEN-CSP GOBIERNO76N-00603 | B86: 76N-00603OPEN-CSP GOBIERNO | D86: Catalogo principal | E86: 76N-00603 | F86: OPEN-CSP GOBIERNO | G86: Catalogo principal | H86: USD | I86: N/A | J86: Microsoft®SharePointEnterpriseCAL License/SoftwareAssurancePack Government OLP 1License NoLevel UsrCAL | K86: Unidad | L86: Und | M86: Producto | N86: N/A | O86: N/A | P86: N/A | Q86: 76N-00603 | R86: Licencia | S86: 161.8 | T86: 1 | U86: 1 | V86: USD
A87: Catalogo principalOPEN-CSP GOBIERNO76N-00654 | B87: 76N-00654OPEN-CSP GOBIERNO | D87: Catalogo principal | E87: 76N-00654 | F87: OPEN-CSP GOBIERNO | G87: Catalogo principal | H87: USD | I87: N/A | J87: Microsoft®SharePointEnterpriseCAL SoftwareAssurance Government OLP 1License NoLevel DvcCAL | K87: Unidad | L87: Und | M87: Producto | N87: N/A | O87: N/A | P87: N/A | Q87: 76N-00654 | R87: Licencia | S87: 41.18 | T87: 1 | U87: 1 | V87: USD
A88: Catalogo principalOPEN-CSP GOBIERNO76N-00660 | B88: 76N-00660OPEN-CSP GOBIERNO | D88: Catalogo principal | E88: 76N-00660 | F88: OPEN-CSP GOBIERNO | G88: Catalogo principal | H88: USD | I88: N/A | J88: Microsoft®SharePointEnterpriseCAL SoftwareAssurance Government OLP 1License NoLevel UsrCAL | K88: Unidad | L88: Und | M88: Producto | N88: N/A | O88: N/A | P88: N/A | Q88: 76N-00660 | R88: Licencia | S88: 53.98 | T88: 1 | U88: 1 | V88: USD
A89: Catalogo principalOPEN-CSP GOBIERNO76N-03869 | B89: 76N-03869OPEN-CSP GOBIERNO | D89: Catalogo principal | E89: 76N-03869 | F89: OPEN-CSP GOBIERNO | G89: Catalogo principal | H89: USD | I89: N/A | J89: Microsoft®SharePointEnterpriseCAL 2019 Government OLP 1License NoLevel DvcCAL | K89: Unidad | L89: Und | M89: Producto | N89: N/A | O89: N/A | P89: N/A | Q89: 76N-03869 | R89: Licencia | S89: 82.5 | T89: 1 | U89: 1 | V89: USD
A90: Catalogo principalOPEN-CSP GOBIERNO76N-03870 | B90: 76N-03870OPEN-CSP GOBIERNO | D90: Catalogo principal | E90: 76N-03870 | F90: OPEN-CSP GOBIERNO | G90: Catalogo principal | H90: USD | I90: N/A | J90: Microsoft®SharePointEnterpriseCAL 2019 Government OLP 1License NoLevel UsrCAL | K90: Unidad | L90: Und | M90: Producto | N90: N/A | O90: N/A | P90: N/A | Q90: 76N-03870 | R90: Licencia | S90: 107.82 | T90: 1 | U90: 1 | V90: USD
A91: Catalogo principalOPEN-CSP GOBIERNO76P-02040 | B91: 76P-02040OPEN-CSP GOBIERNO | D91: Catalogo principal | E91: 76P-02040 | F91: OPEN-CSP GOBIERNO | G91: Catalogo principal | H91: USD | I91: N/A | J91: Microsoft®SharePointServer 2019 Government OLP 1License NoLevel | K91: Unidad | L91: Und | M91: Producto | N91: N/A | O91: N/A | P91: N/A | Q91: 76P-02040 | R91: Licencia | S91: 6850.06 | T91: 1 | U91: 1 | V91: USD
A92: Catalogo principalOPEN-CSP GOBIERNO77D-00105 | B92: 77D-00105OPEN-CSP GOBIERNO | D92: Catalogo principal | E92: 77D-00105 | F92: OPEN-CSP GOBIERNO | G92: Catalogo principal | H92: USD | I92: N/A | J92: Microsoft®VisualStudioProSubMSDN License/SoftwareAssurancePack Government OLP 1License NoLevel Qualified | K92: Unidad | L92: Und | M92: Producto | N92: N/A | O92: N/A | P92: N/A | Q92: 77D-00105 | R92: Licencia | S92: 1146.13 | T92: 1 | U92: 1 | V92: USD
A93: Catalogo principalOPEN-CSP GOBIERNO77D-00106 | B93: 77D-00106OPEN-CSP GOBIERNO | D93: Catalogo principal | E93: 77D-00106 | F93: OPEN-CSP GOBIERNO | G93: Catalogo principal | H93: USD | I93: N/A | J93: Microsoft®VisualStudioProSubMSDN SoftwareAssurance Government OLP 1License NoLevel Qualified | K93: Unidad | L93: Und | M93: Producto | N93: N/A | O93: N/A | P93: N/A | Q93: 77D-00106 | R93: Licencia | S93: 945.8 | T93: 1 | U93: 1 | V93: USD
A94: Catalogo principalOPEN-CSP GOBIERNO79P-05738 | B94: 79P-05738OPEN-CSP GOBIERNO | D94: Catalogo principal | E94: 79P-05738 | F94: OPEN-CSP GOBIERNO | G94: Catalogo principal | H94: USD | I94: N/A | J94: Microsoft®OfficeProfessionalPlus 2019 Government OLP 1License NoLevel | K94: Unidad | L94: Und | M94: Producto | N94: N/A | O94: N/A | P94: N/A | Q94: 79P-05738 | R94: Licencia | S94: 510.94 | T94: 1 | U94: 1 | V94: USD
A95: Catalogo principalOPEN-CSP GOBIERNO7AH-00419 | B95: 7AH-00419OPEN-CSP GOBIERNO | D95: Catalogo principal | E95: 7AH-00419 | F95: OPEN-CSP GOBIERNO | G95: Catalogo principal | H95: USD | I95: N/A | J95: Microsoft®SfBServerEntCAL License/SoftwareAssurancePack Government OLP 1License NoLevel DvcCAL | K95: Unidad | L95: Und | M95: Producto | N95: N/A | O95: N/A | P95: N/A | Q95: 7AH-00419 | R95: Licencia | S95: 161.8 | T95: 1 | U95: 1 | V95: USD
A96: Catalogo principalOPEN-CSP GOBIERNO7AH-00420 | B96: 7AH-00420OPEN-CSP GOBIERNO | D96: Catalogo principal | E96: 7AH-00420 | F96: OPEN-CSP GOBIERNO | G96: Catalogo principal | H96: USD | I96: N/A | J96: Microsoft®SfBServerEntCAL License/SoftwareAssurancePack Government OLP 1License NoLevel UsrCAL | K96: Unidad | L96: Und | M96: Producto | N96: N/A | O96: N/A | P96: N/A | Q96: 7AH-00420 | R96: Licencia | S96: 209.38 | T96: 1 | U96: 1 | V96: USD
A97: Catalogo principalOPEN-CSP GOBIERNO7AH-00421 | B97: 7AH-00421OPEN-CSP GOBIERNO | D97: Catalogo principal | E97: 7AH-00421 | F97: OPEN-CSP GOBIERNO | G97: Catalogo principal | H97: USD | I97: N/A | J97: Microsoft®SfBServerEntCAL SoftwareAssurance Government OLP 1License NoLevel DvcCAL | K97: Unidad | L97: Und | M97: Producto | N97: N/A | O97: N/A | P97: N/A | Q97: 7AH-00421 | R97: Licencia | S97: 53.98 | T97: 1 | U97: 1 | V97: USD
A98: Catalogo principalOPEN-CSP GOBIERNO7AH-00422 | B98: 7AH-00422OPEN-CSP GOBIERNO | D98: Catalogo principal | E98: 7AH-00422 | F98: OPEN-CSP GOBIERNO | G98: Catalogo principal | H98: USD | I98: N/A | J98: Microsoft®SfBServerEntCAL SoftwareAssurance Government OLP 1License NoLevel UsrCAL | K98: Unidad | L98: Und | M98: Producto | N98: N/A | O98: N/A | P98: N/A | Q98: 7AH-00422 | R98: Licencia | S98: 69.84 | T98: 1 | U98: 1 | V98: USD
A99: Catalogo principalOPEN-CSP GOBIERNO7AH-00754 | B99: 7AH-00754OPEN-CSP GOBIERNO | D99: Catalogo principal | E99: 7AH-00754 | F99: OPEN-CSP GOBIERNO | G99: Catalogo principal | H99: USD | I99: N/A | J99: Microsoft®SfBServerEntCAL 2019 Government OLP 1License NoLevel DvcCAL | K99: Unidad | L99: Und | M99: Producto | N99: N/A | O99: N/A | P99: N/A | Q99: 7AH-00754 | R99: Licencia | S99: 107.82 | T99: 1 | U99: 1 | V99: USD
A100: Catalogo principalOPEN-CSP GOBIERNO7AH-00755 | B100: 7AH-00755OPEN-CSP GOBIERNO | D100: Catalogo principal | E100: 7AH-00755 | F100: OPEN-CSP GOBIERNO | G100: Catalogo principal | H100: USD | I100: N/A | J100: Microsoft®SfBServerEntCAL 2019 Government OLP 1License NoLevel UsrCAL | K100: Unidad | L100: Und | M100: Producto | N100: N/A | O100: N/A | P100: N/A | Q100: 7AH-00755 | R100: Licencia | S100: 139.54 | T100: 1 | U100: 1 | V100: USD
A101: Catalogo principalOPEN-CSP GOBIERNO7JQ-00314 | B101: 7JQ-00314OPEN-CSP GOBIERNO | D101: Catalogo principal | E101: 7JQ-00314 | F101: OPEN-CSP GOBIERNO | G101: Catalogo principal | H101: USD | I101: N/A | J101: Microsoft®SQLSvrEnterpriseCore License/SoftwareAssurancePack Government OLP 2Licenses NoLevel CoreLic Qualified | K101: Unidad | L101: Und | M101: Producto | N101: N/A | O101: N/A | P101: N/A | Q101: 7JQ-00314 | R101: Licencia | S101: 20780.73 | T101: 1 | U101: 1 | V101: USD
A102: Catalogo principalOPEN-CSP GOBIERNO7JQ-00315 | B102: 7JQ-00315OPEN-CSP GOBIERNO | D102: Catalogo principal | E102: 7JQ-00315 | F102: OPEN-CSP GOBIERNO | G102: Catalogo principal | H102: USD | I102: N/A | J102: Microsoft®SQLSvrEnterpriseCore SoftwareAssurance Government OLP 2Licenses NoLevel CoreLic Qualified | K102: Unidad | L102: Und | M102: Producto | N102: N/A | O102: N/A | P102: N/A | Q102: 7JQ-00315 | R102: Licencia | S102: 6926.87 | T102: 1 | U102: 1 | V102: USD
A103: Catalogo principalOPEN-CSP GOBIERNO7JQ-01624 | B103: 7JQ-01624OPEN-CSP GOBIERNO | D103: Catalogo principal | E103: 7JQ-01624 | F103: OPEN-CSP GOBIERNO | G103: Catalogo principal | H103: USD | I103: N/A | J103: Microsoft®SQLSvrEnterpriseCore 2019 Government OLP 2Licenses NoLevel CoreLic Qualified | K103: Unidad | L103: Und | M103: Producto | N103: N/A | O103: N/A | P103: N/A | Q103: 7JQ-01624 | R103: Licencia | S103: 13853.87 | T103: 1 | U103: 1 | V103: USD
A104: Catalogo principalOPEN-CSP GOBIERNO7JT-00003 | B104: 7JT-00003OPEN-CSP GOBIERNO | D104: Catalogo principal | E104: 7JT-00003 | F104: OPEN-CSP GOBIERNO | G104: Catalogo principal | H104: USD | I104: N/A | J104: Microsoft®O365PlanE1Archiving ShrdSvr MonthlySubscriptions-VolumeLicense Government OLP 1License NoLevel Qualified Annual | K104: Unidad | L104: Und | M104: Producto | N104: N/A | O104: N/A | P104: N/A | Q104: 7JT-00003 | R104: Suscripción Anual | S104: 109.6 | T104: 1 | U104: 1 | V104: USD
A105: Catalogo principalOPEN-CSP GOBIERNO7NQ-00266 | B105: 7NQ-00266OPEN-CSP GOBIERNO | D105: Catalogo principal | E105: 7NQ-00266 | F105: OPEN-CSP GOBIERNO | G105: Catalogo principal | H105: USD | I105: N/A | J105: Microsoft®SQLSvrStandardCore License/SoftwareAssurancePack Government OLP 2Licenses NoLevel CoreLic Qualified | K105: Unidad | L105: Und | M105: Producto | N105: N/A | O105: N/A | P105: N/A | Q105: 7NQ-00266 | R105: Licencia | S105: 5418.37 | T105: 1 | U105: 1 | V105: USD
A106: Catalogo principalOPEN-CSP GOBIERNO7NQ-00267 | B106: 7NQ-00267OPEN-CSP GOBIERNO | D106: Catalogo principal | E106: 7NQ-00267 | F106: OPEN-CSP GOBIERNO | G106: Catalogo principal | H106: USD | I106: N/A | J106: Microsoft®SQLSvrStandardCore SoftwareAssurance Government OLP 2Licenses NoLevel CoreLic Qualified | K106: Unidad | L106: Und | M106: Producto | N106: N/A | O106: N/A | P106: N/A | Q106: 7NQ-00267 | R106: Licencia | S106: 1806.17 | T106: 1 | U106: 1 | V106: USD
A107: Catalogo principalOPEN-CSP GOBIERNO7NQ-01581 | B107: 7NQ-01581OPEN-CSP GOBIERNO | D107: Catalogo principal | E107: 7NQ-01581 | F107: OPEN-CSP GOBIERNO | G107: Catalogo principal | H107: USD | I107: N/A | J107: Microsoft®SQLSvrStandardCore 2019 Government OLP 2Licenses NoLevel CoreLic Qualified | K107: Unidad | L107: Und | M107: Producto | N107: N/A | O107: N/A | P107: N/A | Q107: 7NQ-01581 | R107: Licencia | S107: 3612.21 | T107: 1 | U107: 1 | V107: USD
A108: Catalogo principalOPEN-CSP GOBIERNO7NS-00006 | B108: 7NS-00006OPEN-CSP GOBIERNO | D108: Catalogo principal | E108: 7NS-00006 | F108: OPEN-CSP GOBIERNO | G108: Catalogo principal | H108: USD | I108: N/A | J108: Microsoft®ProjectPlan3Open ShrdSvr MonthlySubscriptions-VolumeLicense Government OLP 1License NoLevel Qualified Annual | K108: Unidad | L108: Und | M108: Producto | N108: N/A | O108: N/A | P108: N/A | Q108: 7NS-00006 | R108: Suscripción Anual | S108: 360.1 | T108: 1 | U108: 1 | V108: USD
A109: Catalogo principalOPEN-CSP GOBIERNO7YC-00006 | B109: 7YC-00006OPEN-CSP GOBIERNO | D109: Catalogo principal | E109: 7YC-00006 | F109: OPEN-CSP GOBIERNO | G109: Catalogo principal | H109: USD | I109: N/A | J109: Microsoft®ProjectPlan5Open ShrdSvr MonthlySubscriptions-VolumeLicense Government OLP 1License NoLevel Qualified Annual | K109: Unidad | L109: Und | M109: Producto | N109: N/A | O109: N/A | P109: N/A | Q109: 7YC-00006 | R109: Suscripción Anual | S109: 660.1 | T109: 1 | U109: 1 | V109: USD
A110: Catalogo principalOPEN-CSP GOBIERNO810-04848 | B110: 810-04848OPEN-CSP GOBIERNO | D110: Catalogo principal | E110: 810-04848 | F110: OPEN-CSP GOBIERNO | G110: Catalogo principal | H110: USD | I110: N/A | J110: Microsoft®SQLServerEnterpriseEdition SoftwareAssurance Government OLP 1License NoLevel | K110: Unidad | L110: Und | M110: Producto | N110: N/A | O110: N/A | P110: N/A | Q110: 810-04848 | R110: Licencia | S110: 4328.48 | T110: 1 | U110: 1 | V110: USD
A111: Catalogo principalOPEN-CSP GOBIERNO9EA-00229 | B111: 9EA-00229OPEN-CSP GOBIERNO | D111: Catalogo principal | E111: 9EA-00229 | F111: OPEN-CSP GOBIERNO | G111: Catalogo principal | H111: USD | I111: N/A | J111: Microsoft®WindowsServerDCCore License/SoftwareAssurancePack Government OLP 16Licenses NoLevel CoreLic Qualified | K111: Unidad | L111: Und | M111: Producto | N111: N/A | O111: N/A | P111: N/A | Q111: 9EA-00229 | R111: Licencia | S111: 9268.06 | T111: 1 | U111: 1 | V111: USD
A112: Catalogo principalOPEN-CSP GOBIERNO9EA-00230 | B112: 9EA-00230OPEN-CSP GOBIERNO | D112: Catalogo principal | E112: 9EA-00230 | F112: OPEN-CSP GOBIERNO | G112: Catalogo principal | H112: USD | I112: N/A | J112: Microsoft®WindowsServerDCCore SoftwareAssurance Government OLP 16Licenses NoLevel CoreLic Qualified | K112: Unidad | L112: Und | M112: Producto | N112: N/A | O112: N/A | P112: N/A | Q112: 9EA-00230 | R112: Licencia | S112: 3089.4 | T112: 1 | U112: 1 | V112: USD
A113: Catalogo principalOPEN-CSP GOBIERNO9EA-00232 | B113: 9EA-00232OPEN-CSP GOBIERNO | D113: Catalogo principal | E113: 9EA-00232 | F113: OPEN-CSP GOBIERNO | G113: Catalogo principal | H113: USD | I113: N/A | J113: Microsoft®WindowsServerDCCore License/SoftwareAssurancePack Government OLP 2Licenses NoLevel CoreLic Qualified | K113: Unidad | L113: Und | M113: Producto | N113: N/A | O113: N/A | P113: N/A | Q113: 9EA-00232 | R113: Licencia | S113: 1159.13 | T113: 1 | U113: 1 | V113: USD
A114: Catalogo principalOPEN-CSP GOBIERNO9EA-00233 | B114: 9EA-00233OPEN-CSP GOBIERNO | D114: Catalogo principal | E114: 9EA-00233 | F114: OPEN-CSP GOBIERNO | G114: Catalogo principal | H114: USD | I114: N/A | J114: Microsoft®WindowsServerDCCore SoftwareAssurance Government OLP 2Licenses NoLevel CoreLic Qualified | K114: Unidad | L114: Und | M114: Producto | N114: N/A | O114: N/A | P114: N/A | Q114: 9EA-00233 | R114: Licencia | S114: 386.28 | T114: 1 | U114: 1 | V114: USD
A115: Catalogo principalOPEN-CSP GOBIERNO9EA-01062 | B115: 9EA-01062OPEN-CSP GOBIERNO | D115: Catalogo principal | E115: 9EA-01062 | F115: OPEN-CSP GOBIERNO | G115: Catalogo principal | H115: USD | I115: N/A | J115: Microsoft®WindowsServerDCCore 2019 Government OLP 16Licenses NoLevel CoreLic Qualified | K115: Unidad | L115: Und | M115: Producto | N115: N/A | O115: N/A | P115: N/A | Q115: 9EA-01062 | R115: Licencia | S115: 6178.65 | T115: 1 | U115: 1 | V115: USD
A116: Catalogo principalOPEN-CSP GOBIERNO9EA-01063 | B116: 9EA-01063OPEN-CSP GOBIERNO | D116: Catalogo principal | E116: 9EA-01063 | F116: OPEN-CSP GOBIERNO | G116: Catalogo principal | H116: USD | I116: N/A | J116: Microsoft®WindowsServerDCCore 2019 Government OLP 2Licenses NoLevel CoreLic Qualified | K116: Unidad | L116: Und | M116: Producto | N116: N/A | O116: N/A | P116: N/A | Q116: 9EA-01063 | R116: Licencia | S116: 772.85 | T116: 1 | U116: 1 | V116: USD
A117: Catalogo principalOPEN-CSP GOBIERNO9EM-00225 | B117: 9EM-00225OPEN-CSP GOBIERNO | D117: Catalogo principal | E117: 9EM-00225 | F117: OPEN-CSP GOBIERNO | G117: Catalogo principal | H117: USD | I117: N/A | J117: Microsoft®WindowsServerSTDCORE License/SoftwareAssurancePack Government OLP 16Licenses NoLevel CoreLic | K117: Unidad | L117: Und | M117: Producto | N117: N/A | O117: N/A | P117: N/A | Q117: 9EM-00225 | R117: Licencia | S117: 1297.56 | T117: 1 | U117: 1 | V117: USD
A118: Catalogo principalOPEN-CSP GOBIERNO9EM-00226 | B118: 9EM-00226OPEN-CSP GOBIERNO | D118: Catalogo principal | E118: 9EM-00226 | F118: OPEN-CSP GOBIERNO | G118: Catalogo principal | H118: USD | I118: N/A | J118: Microsoft®WindowsServerSTDCORE SoftwareAssurance Government OLP 16Licenses NoLevel CoreLic | K118: Unidad | L118: Und | M118: Producto | N118: N/A | O118: N/A | P118: N/A | Q118: 9EM-00226 | R118: Licencia | S118: 432.47 | T118: 1 | U118: 1 | V118: USD
A119: Catalogo principalOPEN-CSP GOBIERNO9EM-00228 | B119: 9EM-00228OPEN-CSP GOBIERNO | D119: Catalogo principal | E119: 9EM-00228 | F119: OPEN-CSP GOBIERNO | G119: Catalogo principal | H119: USD | I119: N/A | J119: Microsoft®WindowsServerSTDCORE License/SoftwareAssurancePack Government OLP 2Licenses NoLevel CoreLic | K119: Unidad | L119: Und | M119: Producto | N119: N/A | O119: N/A | P119: N/A | Q119: 9EM-00228 | R119: Licencia | S119: 164.22 | T119: 1 | U119: 1 | V119: USD
A120: Catalogo principalOPEN-CSP GOBIERNO9EM-00229 | B120: 9EM-00229OPEN-CSP GOBIERNO | D120: Catalogo principal | E120: 9EM-00229 | F120: OPEN-CSP GOBIERNO | G120: Catalogo principal | H120: USD | I120: N/A | J120: Microsoft®WindowsServerSTDCORE SoftwareAssurance Government OLP 2Licenses NoLevel CoreLic | K120: Unidad | L120: Und | M120: Producto | N120: N/A | O120: N/A | P120: N/A | Q120: 9EM-00229 | R120: Licencia | S120: 54.78 | T120: 1 | U120: 1 | V120: USD
A121: Catalogo principalOPEN-CSP GOBIERNO9EM-00670 | B121: 9EM-00670OPEN-CSP GOBIERNO | D121: Catalogo principal | E121: 9EM-00670 | F121: OPEN-CSP GOBIERNO | G121: Catalogo principal | H121: USD | I121: N/A | J121: Microsoft®WindowsServerSTDCORE 2019 Government OLP 16Licenses NoLevel CoreLic | K121: Unidad | L121: Und | M121: Producto | N121: N/A | O121: N/A | P121: N/A | Q121: 9EM-00670 | R121: Licencia | S121: 865.09 | T121: 1 | U121: 1 | V121: USD
A122: Catalogo principalOPEN-CSP GOBIERNO9EM-00671 | B122: 9EM-00671OPEN-CSP GOBIERNO | D122: Catalogo principal | E122: 9EM-00671 | F122: OPEN-CSP GOBIERNO | G122: Catalogo principal | H122: USD | I122: N/A | J122: Microsoft®WindowsServerSTDCORE 2019 Government OLP 2Licenses NoLevel CoreLic | K122: Unidad | L122: Und | M122: Producto | N122: N/A | O122: N/A | P122: N/A | Q122: 9EM-00671 | R122: Licencia | S122: 109.43 | T122: 1 | U122: 1 | V122: USD
A123: Catalogo principalOPEN-CSP GOBIERNO9EN-00165 | B123: 9EN-00165OPEN-CSP GOBIERNO | D123: Catalogo principal | E123: 9EN-00165 | F123: OPEN-CSP GOBIERNO | G123: Catalogo principal | H123: USD | I123: N/A | J123: Microsoft®SysCtrStandardCore License/SoftwareAssurancePack Government OLP 16Licenses NoLevel CoreLic Qualified | K123: Unidad | L123: Und | M123: Producto | N123: N/A | O123: N/A | P123: N/A | Q123: 9EN-00165 | R123: Licencia | S123: 1324.25 | T123: 1 | U123: 1 | V123: USD
A124: Catalogo principalOPEN-CSP GOBIERNO9EN-00166 | B124: 9EN-00166OPEN-CSP GOBIERNO | D124: Catalogo principal | E124: 9EN-00166 | F124: OPEN-CSP GOBIERNO | G124: Catalogo principal | H124: USD | I124: N/A | J124: Microsoft®SysCtrStandardCore SoftwareAssurance Government OLP 16Licenses NoLevel CoreLic Qualified | K124: Unidad | L124: Und | M124: Producto | N124: N/A | O124: N/A | P124: N/A | Q124: 9EN-00166 | R124: Licencia | S124: 441.32 | T124: 1 | U124: 1 | V124: USD
A125: Catalogo principalOPEN-CSP GOBIERNO9EN-00167 | B125: 9EN-00167OPEN-CSP GOBIERNO | D125: Catalogo principal | E125: 9EN-00167 | F125: OPEN-CSP GOBIERNO | G125: Catalogo principal | H125: USD | I125: N/A | J125: Microsoft®SysCtrStandardCore License/SoftwareAssurancePack Government OLP 2Licenses NoLevel CoreLic Qualified | K125: Unidad | L125: Und | M125: Producto | N125: N/A | O125: N/A | P125: N/A | Q125: 9EN-00167 | R125: Licencia | S125: 165.43 | T125: 1 | U125: 1 | V125: USD
A126: Catalogo principalOPEN-CSP GOBIERNO9EN-00168 | B126: 9EN-00168OPEN-CSP GOBIERNO | D126: Catalogo principal | E126: 9EN-00168 | F126: OPEN-CSP GOBIERNO | G126: Catalogo principal | H126: USD | I126: N/A | J126: Microsoft®SysCtrStandardCore SoftwareAssurance Government OLP 2Licenses NoLevel CoreLic Qualified | K126: Unidad | L126: Und | M126: Producto | N126: N/A | O126: N/A | P126: N/A | Q126: 9EN-00168 | R126: Licencia | S126: 55.09 | T126: 1 | U126: 1 | V126: USD
A127: Catalogo principalOPEN-CSP GOBIERNO9EP-00171 | B127: 9EP-00171OPEN-CSP GOBIERNO | D127: Catalogo principal | E127: 9EP-00171 | F127: OPEN-CSP GOBIERNO | G127: Catalogo principal | H127: USD | I127: N/A | J127: Microsoft®SysCtrDataCenterCore License/SoftwareAssurancePack Government OLP 16Licenses NoLevel CoreLic Qualified | K127: Unidad | L127: Und | M127: Producto | N127: N/A | O127: N/A | P127: N/A | Q127: 9EP-00171 | R127: Licencia | S127: 3624.79 | T127: 1 | U127: 1 | V127: USD
A128: Catalogo principalOPEN-CSP GOBIERNO9EP-00172 | B128: 9EP-00172OPEN-CSP GOBIERNO | D128: Catalogo principal | E128: 9EP-00172 | F128: OPEN-CSP GOBIERNO | G128: Catalogo principal | H128: USD | I128: N/A | J128: Microsoft®SysCtrDataCenterCore SoftwareAssurance Government OLP 16Licenses NoLevel CoreLic Qualified | K128: Unidad | L128: Und | M128: Producto | N128: N/A | O128: N/A | P128: N/A | Q128: 9EP-00172 | R128: Licencia | S128: 1208.22 | T128: 1 | U128: 1 | V128: USD
A129: Catalogo principalOPEN-CSP GOBIERNO9EP-00173 | B129: 9EP-00173OPEN-CSP GOBIERNO | D129: Catalogo principal | E129: 9EP-00173 | F129: OPEN-CSP GOBIERNO | G129: Catalogo principal | H129: USD | I129: N/A | J129: Microsoft®SysCtrDataCenterCore License/SoftwareAssurancePack Government OLP 2Licenses NoLevel CoreLic Qualified | K129: Unidad | L129: Und | M129: Producto | N129: N/A | O129: N/A | P129: N/A | Q129: 9EP-00173 | R129: Licencia | S129: 453.01 | T129: 1 | U129: 1 | V129: USD
A130: =D130&F130&E130 -> Catalogo principalOPEN-CSP GOBIERNO9EP-00174 | B130: =E130&F130 -> 9EP-00174OPEN-CSP GOBIERNO | D130: Catalogo principal | E130: 9EP-00174 | F130: OPEN-CSP GOBIERNO | G130: Catalogo principal | H130: USD | I130: N/A | J130: Microsoft®SysCtrDataCenterCore SoftwareAssurance Government OLP 2Licenses NoLevel CoreLic Qualified | K130: Unidad | L130: Und | M130: Producto | N130: N/A | O130: N/A | P130: N/A | Q130: =+E130 -> 9EP-00174 | R130: Licencia | S130: 150.96 | T130: 1 | U130: 1 | V130: USD
A131: Catalogo principalOPEN-CSP GOBIERNO9GA-00056 | B131: 9GA-00056OPEN-CSP GOBIERNO | D131: Catalogo principal | E131: 9GA-00056 | F131: OPEN-CSP GOBIERNO | G131: Catalogo principal | H131: USD | I131: N/A | J131: Microsoft®CoreInfraSvrSteStdCore License/SoftwareAssurancePack Government OLP 16Licenses NoLevel W/OSYSCTRSERVERLICENSE CoreLic Qualified | K131: Unidad | L131: Und | M131: Producto | N131: N/A | O131: N/A | P131: N/A | Q131: 9GA-00056 | R131: Licencia | S131: 1669.85 | T131: 1 | U131: 1 | V131: USD
A132: Catalogo principalOPEN-CSP GOBIERNO9GA-00057 | B132: 9GA-00057OPEN-CSP GOBIERNO | D132: Catalogo principal | E132: 9GA-00057 | F132: OPEN-CSP GOBIERNO | G132: Catalogo principal | H132: USD | I132: N/A | J132: Microsoft®CoreInfraSvrSteStdCore License/SoftwareAssurancePack Government OLP 2Licenses NoLevel W/OSYSCTRSERVERLICENSE CoreLic Qualified | K132: Unidad | L132: Und | M132: Producto | N132: N/A | O132: N/A | P132: N/A | Q132: 9GA-00057 | R132: Licencia | S132: 210.65 | T132: 1 | U132: 1 | V132: USD
A133: Catalogo principalOPEN-CSP GOBIERNO9GA-00292 | B133: 9GA-00292OPEN-CSP GOBIERNO | D133: Catalogo principal | E133: 9GA-00292 | F133: OPEN-CSP GOBIERNO | G133: Catalogo principal | H133: USD | I133: N/A | J133: Microsoft®CoreInfraSvrSteStdCore License/SoftwareAssurancePack Government OLP 16Licenses NoLevel CoreLic Qualified | K133: Unidad | L133: Und | M133: Producto | N133: N/A | O133: N/A | P133: N/A | Q133: 9GA-00292 | R133: Licencia | S133: 2445.7 | T133: 1 | U133: 1 | V133: USD
A134: Catalogo principalOPEN-CSP GOBIERNO9GA-00293 | B134: 9GA-00293OPEN-CSP GOBIERNO | D134: Catalogo principal | E134: 9GA-00293 | F134: OPEN-CSP GOBIERNO | G134: Catalogo principal | H134: USD | I134: N/A | J134: Microsoft®CoreInfraSvrSteStdCore SoftwareAssurance Government OLP 16Licenses NoLevel CoreLic Qualified | K134: Unidad | L134: Und | M134: Producto | N134: N/A | O134: N/A | P134: N/A | Q134: 9GA-00293 | R134: Licencia | S134: 815.19 | T134: 1 | U134: 1 | V134: USD
A135: Catalogo principalOPEN-CSP GOBIERNO9GA-00294 | B135: 9GA-00294OPEN-CSP GOBIERNO | D135: Catalogo principal | E135: 9GA-00294 | F135: OPEN-CSP GOBIERNO | G135: Catalogo principal | H135: USD | I135: N/A | J135: Microsoft®CoreInfraSvrSteStdCore License/SoftwareAssurancePack Government OLP 2Licenses NoLevel CoreLic Qualified | K135: Unidad | L135: Und | M135: Producto | N135: N/A | O135: N/A | P135: N/A | Q135: 9GA-00294 | R135: Licencia | S135: 307.62 | T135: 1 | U135: 1 | V135: USD
A136: Catalogo principalOPEN-CSP GOBIERNO9GA-00295 | B136: 9GA-00295OPEN-CSP GOBIERNO | D136: Catalogo principal | E136: 9GA-00295 | F136: OPEN-CSP GOBIERNO | G136: Catalogo principal | H136: USD | I136: N/A | J136: Microsoft®CoreInfraSvrSteStdCore SoftwareAssurance Government OLP 2Licenses NoLevel CoreLic Qualified | K136: Unidad | L136: Und | M136: Producto | N136: N/A | O136: N/A | P136: N/A | Q136: 9GA-00295 | R136: Licencia | S136: 102.45 | T136: 1 | U136: 1 | V136: USD
A137: Catalogo principalOPEN-CSP GOBIERNO9GA-00601 | B137: 9GA-00601OPEN-CSP GOBIERNO | D137: Catalogo principal | E137: 9GA-00601 | F137: OPEN-CSP GOBIERNO | G137: Catalogo principal | H137: USD | I137: N/A | J137: Microsoft®CoreInfraSvrSteStdCore License/SoftwareAssurancePack Government OLP 16Licenses NoLevel W/OWinServerLicense CoreLic Qualified | K137: Unidad | L137: Und | M137: Producto | N137: N/A | O137: N/A | P137: N/A | Q137: 9GA-00601 | R137: Licencia | S137: 1591.04 | T137: 1 | U137: 1 | V137: USD
A138: Catalogo principalOPEN-CSP GOBIERNO9GA-00602 | B138: 9GA-00602OPEN-CSP GOBIERNO | D138: Catalogo principal | E138: 9GA-00602 | F138: OPEN-CSP GOBIERNO | G138: Catalogo principal | H138: USD | I138: N/A | J138: Microsoft®CoreInfraSvrSteStdCore License/SoftwareAssurancePack Government OLP 2Licenses NoLevel W/OWinServerLicense CoreLic Qualified | K138: Unidad | L138: Und | M138: Producto | N138: N/A | O138: N/A | P138: N/A | Q138: 9GA-00602 | R138: Licencia | S138: 199.42 | T138: 1 | U138: 1 | V138: USD
A139: Catalogo principalOPEN-CSP GOBIERNO9GS-00110 | B139: 9GS-00110OPEN-CSP GOBIERNO | D139: Catalogo principal | E139: 9GS-00110 | F139: OPEN-CSP GOBIERNO | G139: Catalogo principal | H139: USD | I139: N/A | J139: Microsoft®CoreInfrastructureSvrSteDCCore License/SoftwareAssurancePack Government OLP 16Licenses NoLevel CoreLic Qualified | K139: Unidad | L139: Und | M139: Producto | N139: N/A | O139: N/A | P139: N/A | Q139: 9GS-00110 | R139: Licencia | S139: 12258.65 | T139: 1 | U139: 1 | V139: USD
A140: Catalogo principalOPEN-CSP GOBIERNO9GS-00111 | B140: 9GS-00111OPEN-CSP GOBIERNO | D140: Catalogo principal | E140: 9GS-00111 | F140: OPEN-CSP GOBIERNO | G140: Catalogo principal | H140: USD | I140: N/A | J140: Microsoft®CoreInfrastructureSvrSteDCCore SoftwareAssurance Government OLP 16Licenses NoLevel CoreLic Qualified | K140: Unidad | L140: Und | M140: Producto | N140: N/A | O140: N/A | P140: N/A | Q140: 9GS-00111 | R140: Licencia | S140: 4086.21 | T140: 1 | U140: 1 | V140: USD
A141: Catalogo principalOPEN-CSP GOBIERNO9GS-00112 | B141: 9GS-00112OPEN-CSP GOBIERNO | D141: Catalogo principal | E141: 9GS-00112 | F141: OPEN-CSP GOBIERNO | G141: Catalogo principal | H141: USD | I141: N/A | J141: Microsoft®CoreInfrastructureSvrSteDCCore License/SoftwareAssurancePack Government OLP 2Licenses NoLevel CoreLic Qualified | K141: Unidad | L141: Und | M141: Producto | N141: N/A | O141: N/A | P141: N/A | Q141: 9GS-00112 | R141: Licencia | S141: 1533.08 | T141: 1 | U141: 1 | V141: USD
A142: Catalogo principalOPEN-CSP GOBIERNO9GS-00113 | B142: 9GS-00113OPEN-CSP GOBIERNO | D142: Catalogo principal | E142: 9GS-00113 | F142: OPEN-CSP GOBIERNO | G142: Catalogo principal | H142: USD | I142: N/A | J142: Microsoft®CoreInfrastructureSvrSteDCCore SoftwareAssurance Government OLP 2Licenses NoLevel CoreLic Qualified | K142: Unidad | L142: Und | M142: Producto | N142: N/A | O142: N/A | P142: N/A | Q142: 9GS-00113 | R142: Licencia | S142: 511.03 | T142: 1 | U142: 1 | V142: USD
A143: Catalogo principalOPEN-CSP GOBIERNO9GS-00545 | B143: 9GS-00545OPEN-CSP GOBIERNO | D143: Catalogo principal | E143: 9GS-00545 | F143: OPEN-CSP GOBIERNO | G143: Catalogo principal | H143: USD | I143: N/A | J143: Microsoft®CoreInfrastructureSvrSteDCCore License/SoftwareAssurancePack Government OLP 16Licenses NoLevel W/OSYSCTRSERVERLICENSE CoreLic Qualified | K143: Unidad | L143: Und | M143: Producto | N143: N/A | O143: N/A | P143: N/A | Q143: 9GS-00545 | R143: Licencia | S143: 9963.01 | T143: 1 | U143: 1 | V143: USD
A144: Catalogo principalOPEN-CSP GOBIERNO9GS-00546 | B144: 9GS-00546OPEN-CSP GOBIERNO | D144: Catalogo principal | E144: 9GS-00546 | F144: OPEN-CSP GOBIERNO | G144: Catalogo principal | H144: USD | I144: N/A | J144: Microsoft®CoreInfrastructureSvrSteDCCore License/SoftwareAssurancePack Government OLP 2Licenses NoLevel W/OSYSCTRSERVERLICENSE CoreLic Qualified | K144: Unidad | L144: Und | M144: Producto | N144: N/A | O144: N/A | P144: N/A | Q144: 9GS-00546 | R144: Licencia | S144: 1246.06 | T144: 1 | U144: 1 | V144: USD
A145: Catalogo principalOPEN-CSP GOBIERNO9GS-00725 | B145: 9GS-00725OPEN-CSP GOBIERNO | D145: Catalogo principal | E145: 9GS-00725 | F145: OPEN-CSP GOBIERNO | G145: Catalogo principal | H145: USD | I145: N/A | J145: Microsoft®CoreInfrastructureSvrSteDCCore License/SoftwareAssurancePack Government OLP 16Licenses NoLevel W/OWinServerLicense CoreLic Qualified | K145: Unidad | L145: Und | M145: Producto | N145: N/A | O145: N/A | P145: N/A | Q145: 9GS-00725 | R145: Licencia | S145: 6381.86 | T145: 1 | U145: 1 | V145: USD
A146: Catalogo principalOPEN-CSP GOBIERNO9GS-00726 | B146: 9GS-00726OPEN-CSP GOBIERNO | D146: Catalogo principal | E146: 9GS-00726 | F146: OPEN-CSP GOBIERNO | G146: Catalogo principal | H146: USD | I146: N/A | J146: Microsoft®CoreInfrastructureSvrSteDCCore License/SoftwareAssurancePack Government OLP 2Licenses NoLevel W/OWinServerLicense CoreLic Qualified | K146: Unidad | L146: Und | M146: Producto | N146: N/A | O146: N/A | P146: N/A | Q146: 9GS-00726 | R146: Licencia | S146: 798.03 | T146: 1 | U146: 1 | V146: USD
A147: Catalogo principalOPEN-CSP GOBIERNO9TX-00209 | B147: 9TX-00209OPEN-CSP GOBIERNO | D147: Catalogo principal | E147: 9TX-00209 | F147: OPEN-CSP GOBIERNO | G147: Catalogo principal | H147: USD | I147: N/A | J147: Microsoft®SysCtrOpsMgrCltMgmtLic License/SoftwareAssurancePack Government OLP 1License NoLevel PerUsr | K147: Unidad | L147: Und | M147: Producto | N147: N/A | O147: N/A | P147: N/A | Q147: 9TX-00209 | R147: Licencia | S147: 35.5 | T147: 1 | U147: 1 | V147: USD
A148: Catalogo principalOPEN-CSP GOBIERNO9TX-00226 | B148: 9TX-00226OPEN-CSP GOBIERNO | D148: Catalogo principal | E148: 9TX-00226 | F148: OPEN-CSP GOBIERNO | G148: Catalogo principal | H148: USD | I148: N/A | J148: Microsoft®SysCtrOpsMgrCltMgmtLic SoftwareAssurance Government OLP 1License NoLevel PerUsr | K148: Unidad | L148: Und | M148: Producto | N148: N/A | O148: N/A | P148: N/A | Q148: 9TX-00226 | R148: Licencia | S148: 11.79 | T148: 1 | U148: 1 | V148: USD
A149: Catalogo principalOPEN-CSP GOBIERNO9TX-00605 | B149: 9TX-00605OPEN-CSP GOBIERNO | D149: Catalogo principal | E149: 9TX-00605 | F149: OPEN-CSP GOBIERNO | G149: Catalogo principal | H149: USD | I149: N/A | J149: Microsoft®SysCtrOpsMgrCltMgmtLic SoftwareAssurance Government OLP 1License NoLevel PerOSE | K149: Unidad | L149: Und | M149: Producto | N149: N/A | O149: N/A | P149: N/A | Q149: 9TX-00605 | R149: Licencia | S149: 9.05 | T149: 1 | U149: 1 | V149: USD
A150: Catalogo principalOPEN-CSP GOBIERNO9TX-00606 | B150: 9TX-00606OPEN-CSP GOBIERNO | D150: Catalogo principal | E150: 9TX-00606 | F150: OPEN-CSP GOBIERNO | G150: Catalogo principal | H150: USD | I150: N/A | J150: Microsoft®SysCtrOpsMgrCltMgmtLic License/SoftwareAssurancePack Government OLP 1License NoLevel PerOSE | K150: Unidad | L150: Und | M150: Producto | N150: N/A | O150: N/A | P150: N/A | Q150: 9TX-00606 | R150: Licencia | S150: 27.29 | T150: 1 | U150: 1 | V150: USD
A151: Catalogo principalOPEN-CSP GOBIERNOC5E-01388 | B151: C5E-01388OPEN-CSP GOBIERNO | D151: Catalogo principal | E151: C5E-01388 | F151: OPEN-CSP GOBIERNO | G151: Catalogo principal | H151: USD | I151: N/A | J151: Microsoft®VisualStudio®Professional 2019 Government OLP 1License NoLevel | K151: Unidad | L151: Und | M151: Producto | N151: N/A | O151: N/A | P151: N/A | Q151: C5E-01388 | R151: Licencia | S151: 500.59 | T151: 1 | U151: 1 | V151: USD
A152: Catalogo principalOPEN-CSP GOBIERNOCF3-00007 | B152: CF3-00007OPEN-CSP GOBIERNO | D152: Catalogo principal | E152: CF3-00007 | F152: OPEN-CSP GOBIERNO | G152: Catalogo principal | H152: USD | I152: N/A | J152: Microsoft®EntMobandSecurityE5Open ShrdSvr MonthlySubscriptions-VolumeLicense Government OLP 1License NoLevel Qualified Annual | K152: Unidad | L152: Und | M152: Producto | N152: N/A | O152: N/A | P152: N/A | Q152: CF3-00007 | R152: Suscripción Anual | S152: 177.6 | T152: 1 | U152: 1 | V152: USD
A153: Catalogo principalOPEN-CSP GOBIERNOCGJ-00006 | B153: CGJ-00006OPEN-CSP GOBIERNO | D153: Catalogo principal | E153: CGJ-00006 | F153: OPEN-CSP GOBIERNO | G153: Catalogo principal | H153: USD | I153: N/A | J153: Microsoft®AzureInfoProtPremP2Open ShrdSvr MonthlySubscriptions-VolumeLicense Government OLP 1License NoLevel Qualified Annual | K153: Unidad | L153: Und | M153: Producto | N153: N/A | O153: N/A | P153: N/A | Q153: CGJ-00006 | R153: Suscripción Anual | S153: 60 | T153: 1 | U153: 1 | V153: USD
A154: Catalogo principalOPEN-CSP GOBIERNOD75-01971 | B154: D75-01971OPEN-CSP GOBIERNO | D154: Catalogo principal | E154: D75-01971 | F154: OPEN-CSP GOBIERNO | G154: Catalogo principal | H154: USD | I154: N/A | J154: Microsoft®BizTalk®ServerStandard License/SoftwareAssurancePack Government OLP 2Licenses NoLevel CoreLic Qualified | K154: Unidad | L154: Und | M154: Producto | N154: N/A | O154: N/A | P154: N/A | Q154: D75-01971 | R154: Licencia | S154: 7661.41 | T154: 1 | U154: 1 | V154: USD
A155: Catalogo principalOPEN-CSP GOBIERNOD75-01972 | B155: D75-01972OPEN-CSP GOBIERNO | D155: Catalogo principal | E155: D75-01972 | F155: OPEN-CSP GOBIERNO | G155: Catalogo principal | H155: USD | I155: N/A | J155: Microsoft®BizTalk®ServerStandard SoftwareAssurance Government OLP 2Licenses NoLevel CoreLic Qualified | K155: Unidad | L155: Und | M155: Producto | N155: N/A | O155: N/A | P155: N/A | Q155: D75-01972 | R155: Licencia | S155: 2553.85 | T155: 1 | U155: 1 | V155: USD
A156: Catalogo principalOPEN-CSP GOBIERNOD75-02468 | B156: D75-02468OPEN-CSP GOBIERNO | D156: Catalogo principal | E156: D75-02468 | F156: OPEN-CSP GOBIERNO | G156: Catalogo principal | H156: USD | I156: N/A | J156: Microsoft®BizTalk®ServerStandard 2020 Government OLP 2Licenses NoLevel CoreLic Qualified | K156: Unidad | L156: Und | M156: Producto | N156: N/A | O156: N/A | P156: N/A | Q156: D75-02468 | R156: Licencia | S156: 5107.56 | T156: 1 | U156: 1 | V156: USD
A157: Catalogo principalOPEN-CSP GOBIERNOD86-02331 | B157: D86-02331OPEN-CSP GOBIERNO | D157: Catalogo principal | E157: D86-02331 | F157: OPEN-CSP GOBIERNO | G157: Catalogo principal | H157: USD | I157: N/A | J157: Microsoft®Visio®Standard License/SoftwareAssurancePack Government OLP 1License NoLevel | K157: Unidad | L157: Und | M157: Producto | N157: N/A | O157: N/A | P157: N/A | Q157: D86-02331 | R157: Licencia | S157: 395.89 | T157: 1 | U157: 1 | V157: USD
A158: Catalogo principalOPEN-CSP GOBIERNOD86-02333 | B158: D86-02333OPEN-CSP GOBIERNO | D158: Catalogo principal | E158: D86-02333 | F158: OPEN-CSP GOBIERNO | G158: Catalogo principal | H158: USD | I158: N/A | J158: Microsoft®Visio®Standard SoftwareAssurance Government OLP 1License NoLevel | K158: Unidad | L158: Und | M158: Producto | N158: N/A | O158: N/A | P158: N/A | Q158: D86-02333 | R158: Licencia | S158: 145.34 | T158: 1 | U158: 1 | V158: USD
A159: Catalogo principalOPEN-CSP GOBIERNOD86-05877 | B159: D86-05877OPEN-CSP GOBIERNO | D159: Catalogo principal | E159: D86-05877 | F159: OPEN-CSP GOBIERNO | G159: Catalogo principal | H159: USD | I159: N/A | J159: Microsoft®Visio®Standard 2019 Government OLP 1License NoLevel | K159: Unidad | L159: Und | M159: Producto | N159: N/A | O159: N/A | P159: N/A | Q159: D86-05877 | R159: Licencia | S159: 250.55 | T159: 1 | U159: 1 | V159: USD
A160: Catalogo principalOPEN-CSP GOBIERNOD87-02285 | B160: D87-02285OPEN-CSP GOBIERNO | D160: Catalogo principal | E160: D87-02285 | F160: OPEN-CSP GOBIERNO | G160: Catalogo principal | H160: USD | I160: N/A | J160: Microsoft®Visio®Professional License/SoftwareAssurancePack Government OLP 1License NoLevel | K160: Unidad | L160: Und | M160: Producto | N160: N/A | O160: N/A | P160: N/A | Q160: D87-02285 | R160: Licencia | S160: 765.96 | T160: 1 | U160: 1 | V160: USD
A161: Catalogo principalOPEN-CSP GOBIERNOD87-02286 | B161: D87-02286OPEN-CSP GOBIERNO | D161: Catalogo principal | E161: D87-02286 | F161: OPEN-CSP GOBIERNO | G161: Catalogo principal | H161: USD | I161: N/A | J161: Microsoft®Visio®Professional SoftwareAssurance Government OLP 1License NoLevel | K161: Unidad | L161: Und | M161: Producto | N161: N/A | O161: N/A | P161: N/A | Q161: D87-02286 | R161: Licencia | S161: 281.24 | T161: 1 | U161: 1 | V161: USD
A162: Catalogo principalOPEN-CSP GOBIERNOD87-07508 | B162: D87-07508OPEN-CSP GOBIERNO | D162: Catalogo principal | E162: D87-07508 | F162: OPEN-CSP GOBIERNO | G162: Catalogo principal | H162: USD | I162: N/A | J162: Microsoft®Visio®Professional 2019 Government OLP 1License NoLevel | K162: Unidad | L162: Und | M162: Producto | N162: N/A | O162: N/A | P162: N/A | Q162: D87-07508 | R162: Licencia | S162: 484.72 | T162: 1 | U162: 1 | V162: USD
A163: Catalogo principalOPEN-CSP GOBIERNODW6-00006 | B163: DW6-00006OPEN-CSP GOBIERNO | D163: Catalogo principal | E163: DW6-00006 | F163: OPEN-CSP GOBIERNO | G163: Catalogo principal | H163: USD | I163: N/A | J163: Microsoft®PowerBIProOpen ShrdSvr MonthlySubscriptions-VolumeLicense Government OLP 1License NoLevel Qualified Annual | K163: Unidad | L163: Und | M163: Producto | N163: N/A | O163: N/A | P163: N/A | Q163: DW6-00006 | R163: Suscripción Anual | S163: 119.9 | T163: 1 | U163: 1 | V163: USD
A164: Catalogo principalOPEN-CSP GOBIERNOEMJ-00129 | B164: EMJ-00129OPEN-CSP GOBIERNO | D164: Catalogo principal | E164: EMJ-00129 | F164: OPEN-CSP GOBIERNO | G164: Catalogo principal | H164: USD | I164: N/A | J164: Microsoft®Dyn365TeamMembers License/SoftwareAssurancePack Government OLP 1License NoLevel DvcCAL Qualified | K164: Unidad | L164: Und | M164: Producto | N164: N/A | O164: N/A | P164: N/A | Q164: EMJ-00129 | R164: Licencia | S164: 295.01 | T164: 1 | U164: 1 | V164: USD
A165: Catalogo principalOPEN-CSP GOBIERNOEMJ-00130 | B165: EMJ-00130OPEN-CSP GOBIERNO | D165: Catalogo principal | E165: EMJ-00130 | F165: OPEN-CSP GOBIERNO | G165: Catalogo principal | H165: USD | I165: N/A | J165: Microsoft®Dyn365TeamMembers License/SoftwareAssurancePack Government OLP 1License NoLevel UsrCAL Qualified | K165: Unidad | L165: Und | M165: Producto | N165: N/A | O165: N/A | P165: N/A | Q165: EMJ-00130 | R165: Licencia | S165: 196.57 | T165: 1 | U165: 1 | V165: USD
A166: Catalogo principalOPEN-CSP GOBIERNOEMJ-00131 | B166: EMJ-00131OPEN-CSP GOBIERNO | D166: Catalogo principal | E166: EMJ-00131 | F166: OPEN-CSP GOBIERNO | G166: Catalogo principal | H166: USD | I166: N/A | J166: Microsoft®Dyn365TeamMembers SoftwareAssurance Government OLP 1License NoLevel DvcCAL Qualified | K166: Unidad | L166: Und | M166: Producto | N166: N/A | O166: N/A | P166: N/A | Q166: EMJ-00131 | R166: Licencia | S166: 98.29 | T166: 1 | U166: 1 | V166: USD
A167: Catalogo principalOPEN-CSP GOBIERNOEMJ-00132 | B167: EMJ-00132OPEN-CSP GOBIERNO | D167: Catalogo principal | E167: EMJ-00132 | F167: OPEN-CSP GOBIERNO | G167: Catalogo principal | H167: USD | I167: N/A | J167: Microsoft®Dyn365TeamMembers SoftwareAssurance Government OLP 1License NoLevel UsrCAL Qualified | K167: Unidad | L167: Und | M167: Producto | N167: N/A | O167: N/A | P167: N/A | Q167: EMJ-00132 | R167: Licencia | S167: 65.43 | T167: 1 | U167: 1 | V167: USD
A168: Catalogo principalOPEN-CSP GOBIERNOEMT-00129 | B168: EMT-00129OPEN-CSP GOBIERNO | D168: Catalogo principal | E168: EMT-00129 | F168: OPEN-CSP GOBIERNO | G168: Catalogo principal | H168: USD | I168: N/A | J168: Microsoft®Dyn365CustomerService License/SoftwareAssurancePack Government OLP 1License NoLevel DvcCAL Qualified | K168: Unidad | L168: Und | M168: Producto | N168: N/A | O168: N/A | P168: N/A | Q168: EMT-00129 | R168: Licencia | S168: 3699.31 | T168: 1 | U168: 1 | V168: USD
A169: Catalogo principalOPEN-CSP GOBIERNOEMT-00130 | B169: EMT-00130OPEN-CSP GOBIERNO | D169: Catalogo principal | E169: EMT-00130 | F169: OPEN-CSP GOBIERNO | G169: Catalogo principal | H169: USD | I169: N/A | J169: Microsoft®Dyn365CustomerService License/SoftwareAssurancePack Government OLP 1License NoLevel UsrCAL Qualified | K169: Unidad | L169: Und | M169: Producto | N169: N/A | O169: N/A | P169: N/A | Q169: EMT-00130 | R169: Licencia | S169: 2466.39 | T169: 1 | U169: 1 | V169: USD
A170: Catalogo principalOPEN-CSP GOBIERNOEMT-00131 | B170: EMT-00131OPEN-CSP GOBIERNO | D170: Catalogo principal | E170: EMT-00131 | F170: OPEN-CSP GOBIERNO | G170: Catalogo principal | H170: USD | I170: N/A | J170: Microsoft®Dyn365CustomerService SoftwareAssurance Government OLP 1License NoLevel DvcCAL Qualified | K170: Unidad | L170: Und | M170: Producto | N170: N/A | O170: N/A | P170: N/A | Q170: EMT-00131 | R170: Licencia | S170: 1233.05 | T170: 1 | U170: 1 | V170: USD
A171: Catalogo principalOPEN-CSP GOBIERNOEMT-00132 | B171: EMT-00132OPEN-CSP GOBIERNO | D171: Catalogo principal | E171: EMT-00132 | F171: OPEN-CSP GOBIERNO | G171: Catalogo principal | H171: USD | I171: N/A | J171: Microsoft®Dyn365CustomerService SoftwareAssurance Government OLP 1License NoLevel UsrCAL Qualified | K171: Unidad | L171: Und | M171: Producto | N171: N/A | O171: N/A | P171: N/A | Q171: EMT-00132 | R171: Licencia | S171: 822.13 | T171: 1 | U171: 1 | V171: USD
A172: Catalogo principalOPEN-CSP GOBIERNOENJ-00129 | B172: ENJ-00129OPEN-CSP GOBIERNO | D172: Catalogo principal | E172: ENJ-00129 | F172: OPEN-CSP GOBIERNO | G172: Catalogo principal | H172: USD | I172: N/A | J172: Microsoft®Dyn365Sales License/SoftwareAssurancePack Government OLP 1License NoLevel DvcCAL Qualified | K172: Unidad | L172: Und | M172: Producto | N172: N/A | O172: N/A | P172: N/A | Q172: ENJ-00129 | R172: Licencia | S172: 3699.31 | T172: 1 | U172: 1 | V172: USD
A173: Catalogo principalOPEN-CSP GOBIERNOENJ-00130 | B173: ENJ-00130OPEN-CSP GOBIERNO | D173: Catalogo principal | E173: ENJ-00130 | F173: OPEN-CSP GOBIERNO | G173: Catalogo principal | H173: USD | I173: N/A | J173: Microsoft®Dyn365Sales License/SoftwareAssurancePack Government OLP 1License NoLevel UsrCAL Qualified | K173: Unidad | L173: Und | M173: Producto | N173: N/A | O173: N/A | P173: N/A | Q173: ENJ-00130 | R173: Licencia | S173: 2466.39 | T173: 1 | U173: 1 | V173: USD
A174: Catalogo principalOPEN-CSP GOBIERNOENJ-00131 | B174: ENJ-00131OPEN-CSP GOBIERNO | D174: Catalogo principal | E174: ENJ-00131 | F174: OPEN-CSP GOBIERNO | G174: Catalogo principal | H174: USD | I174: N/A | J174: Microsoft®Dyn365Sales SoftwareAssurance Government OLP 1License NoLevel DvcCAL Qualified | K174: Unidad | L174: Und | M174: Producto | N174: N/A | O174: N/A | P174: N/A | Q174: ENJ-00131 | R174: Licencia | S174: 1233.05 | T174: 1 | U174: 1 | V174: USD
A175: Catalogo principalOPEN-CSP GOBIERNOENJ-00132 | B175: ENJ-00132OPEN-CSP GOBIERNO | D175: Catalogo principal | E175: ENJ-00132 | F175: OPEN-CSP GOBIERNO | G175: Catalogo principal | H175: USD | I175: N/A | J175: Microsoft®Dyn365Sales SoftwareAssurance Government OLP 1License NoLevel UsrCAL Qualified | K175: Unidad | L175: Und | M175: Producto | N175: N/A | O175: N/A | P175: N/A | Q175: ENJ-00132 | R175: Licencia | S175: 822.13 | T175: 1 | U175: 1 | V175: USD
A176: Catalogo principalOPEN-CSP GOBIERNOEVQ-00006 | B176: EVQ-00006OPEN-CSP GOBIERNO | D176: Catalogo principal | E176: EVQ-00006 | F176: OPEN-CSP GOBIERNO | G176: Catalogo principal | H176: USD | I176: N/A | J176: Microsoft®StreamPlan1OPEN ShrdSvr MonthlySubscriptions-VolumeLicense Government OLP 1License NoLevel RenewalOnly Qualified Annual | K176: Unidad | L176: Und | M176: Producto | N176: N/A | O176: N/A | P176: N/A | Q176: EVQ-00006 | R176: Suscripción Anual | S176: 36 | T176: 1 | U176: 1 | V176: USD
A177: Catalogo principalOPEN-CSP GOBIERNOEVY-00006 | B177: EVY-00006OPEN-CSP GOBIERNO | D177: Catalogo principal | E177: EVY-00006 | F177: OPEN-CSP GOBIERNO | G177: Catalogo principal | H177: USD | I177: N/A | J177: Microsoft®StreamStorageOPEN ShrdSvr MonthlySubscriptions-VolumeLicense Government OLP 1License NoLevel ExtraStorage500GB AddOn Qualified Annual | K177: Unidad | L177: Und | M177: Producto | N177: N/A | O177: N/A | P177: N/A | Q177: EVY-00006 | R177: Suscripción Anual | S177: 1200.1 | T177: 1 | U177: 1 | V177: USD
A178: Catalogo principalOPEN-CSP GOBIERNOEWH-00006 | B178: EWH-00006OPEN-CSP GOBIERNO | D178: Catalogo principal | E178: EWH-00006 | F178: OPEN-CSP GOBIERNO | G178: Catalogo principal | H178: USD | I178: N/A | J178: Microsoft®MSStreamOPEN ShrdSvr MonthlySubscriptions-VolumeLicense Government OLP 1License NoLevel Qualified Annual | K178: Unidad | L178: Und | M178: Producto | N178: N/A | O178: N/A | P178: N/A | Q178: EWH-00006 | R178: Suscripción Anual | S178: 60 | T178: 1 | U178: 1 | V178: USD
A179: Catalogo principalOPEN-CSP GOBIERNOF52-02136 | B179: F52-02136OPEN-CSP GOBIERNO | D179: Catalogo principal | E179: F52-02136 | F179: OPEN-CSP GOBIERNO | G179: Catalogo principal | H179: USD | I179: N/A | J179: Microsoft®BizTalk®ServerEnterprise License/SoftwareAssurancePack Government OLP 2Licenses NoLevel CoreLic Qualified | K179: Unidad | L179: Und | M179: Producto | N179: N/A | O179: N/A | P179: N/A | Q179: F52-02136 | R179: Licencia | S179: 33426.5 | T179: 1 | U179: 1 | V179: USD
A180: Catalogo principalOPEN-CSP GOBIERNOF52-02137 | B180: F52-02137OPEN-CSP GOBIERNO | D180: Catalogo principal | E180: F52-02137 | F180: OPEN-CSP GOBIERNO | G180: Catalogo principal | H180: USD | I180: N/A | J180: Microsoft®BizTalk®ServerEnterprise SoftwareAssurance Government OLP 2Licenses NoLevel CoreLic Qualified | K180: Unidad | L180: Und | M180: Producto | N180: N/A | O180: N/A | P180: N/A | Q180: F52-02137 | R180: Licencia | S180: 11142.21 | T180: 1 | U180: 1 | V180: USD
A181: Catalogo principalOPEN-CSP GOBIERNOF52-02765 | B181: F52-02765OPEN-CSP GOBIERNO | D181: Catalogo principal | E181: F52-02765 | F181: OPEN-CSP GOBIERNO | G181: Catalogo principal | H181: USD | I181: N/A | J181: Microsoft®BizTalk®ServerEnterprise 2020 Government OLP 2Licenses NoLevel CoreLic Qualified | K181: Unidad | L181: Und | M181: Producto | N181: N/A | O181: N/A | P181: N/A | Q181: F52-02765 | R181: Licencia | S181: 22284.29 | T181: 1 | U181: 1 | V181: USD
A182: Catalogo principalOPEN-CSP GOBIERNOFQC-09478 | B182: FQC-09478OPEN-CSP GOBIERNO | D182: Catalogo principal | E182: FQC-09478 | F182: OPEN-CSP GOBIERNO | G182: Catalogo principal | H182: USD | I182: N/A | J182: Microsoft®WindowsProfessional 10 Sngl OLP 1License NoLevel Legalization GetGenuine | K182: Unidad | L182: Und | M182: Producto | N182: N/A | O182: N/A | P182: N/A | Q182: FQC-09478 | R182: Licencia | S182: 217.04 | T182: 1 | U182: 1 | V182: USD
A183: Catalogo principalOPEN-CSP GOBIERNOFQC-09543 | B183: FQC-09543OPEN-CSP GOBIERNO | D183: Catalogo principal | E183: FQC-09543 | F183: OPEN-CSP GOBIERNO | G183: Catalogo principal | H183: USD | I183: N/A | J183: Microsoft®WindowsProfessional 10 Upgrade Government OLP 1License NoLevel | K183: Unidad | L183: Und | M183: Producto | N183: N/A | O183: N/A | P183: N/A | Q183: FQC-09543 | R183: Licencia | S183: 187.92 | T183: 1 | U183: 1 | V183: USD
A184: Catalogo principalOPEN-CSP GOBIERNOFTH-00006 | B184: FTH-00006OPEN-CSP GOBIERNO | D184: Catalogo principal | E184: FTH-00006 | F184: OPEN-CSP GOBIERNO | G184: Catalogo principal | H184: USD | I184: N/A | J184: Microsoft® Defender for O365 Plan 2 Open Monthly Subscriptions-Volume License Government OLP 1 License No Level Qualified Annual | K184: Unidad | L184: Und | M184: Producto | N184: N/A | O184: N/A | P184: N/A | Q184: FTH-00006 | R184: Suscripción Anual | S184: 60 | T184: 1 | U184: 1 | V184: USD
A185: Catalogo principalOPEN-CSP GOBIERNOG3S-00505 | B185: G3S-00505OPEN-CSP GOBIERNO | D185: Catalogo principal | E185: G3S-00505 | F185: OPEN-CSP GOBIERNO | G185: Catalogo principal | H185: USD | I185: N/A | J185: Microsoft®WindowsServerEssentials License/SoftwareAssurancePack Government OLP 1License NoLevel | K185: Unidad | L185: Und | M185: Producto | N185: N/A | O185: N/A | P185: N/A | Q185: G3S-00505 | R185: Licencia | S185: 755.11 | T185: 1 | U185: 1 | V185: USD
A186: Catalogo principalOPEN-CSP GOBIERNOG3S-00506 | B186: G3S-00506OPEN-CSP GOBIERNO | D186: Catalogo principal | E186: G3S-00506 | F186: OPEN-CSP GOBIERNO | G186: Catalogo principal | H186: USD | I186: N/A | J186: Microsoft®WindowsServerEssentials SoftwareAssurance Government OLP 1License NoLevel | K186: Unidad | L186: Und | M186: Producto | N186: N/A | O186: N/A | P186: N/A | Q186: G3S-00506 | R186: Licencia | S186: 251.65 | T186: 1 | U186: 1 | V186: USD
A187: Catalogo principalOPEN-CSP GOBIERNOG3S-01268 | B187: G3S-01268OPEN-CSP GOBIERNO | D187: Catalogo principal | E187: G3S-01268 | F187: OPEN-CSP GOBIERNO | G187: Catalogo principal | H187: USD | I187: N/A | J187: Microsoft®WindowsServerEssentials 2019 Government OLP 1License NoLevel | K187: Unidad | L187: Und | M187: Producto | N187: N/A | O187: N/A | P187: N/A | Q187: G3S-01268 | R187: Licencia | S187: 503.45 | T187: 1 | U187: 1 | V187: USD
A188: Catalogo principalOPEN-CSP GOBIERNOGLX-00002 | B188: GLX-00002OPEN-CSP GOBIERNO | D188: Catalogo principal | E188: GLX-00002 | F188: OPEN-CSP GOBIERNO | G188: Catalogo principal | H188: USD | I188: N/A | J188: Microsoft®Dyn365ProDirectSupportOpen ShrdSvr MonthlySubscriptions-VolumeLicense Government OLP 1License NoLevel PerUsr FORAPPS/CEPL/UNIOPSPL Annual | K188: Unidad | L188: Und | M188: Producto | N188: N/A | O188: N/A | P188: N/A | Q188: GLX-00002 | R188: Suscripción Anual | S188: 108 | T188: 1 | U188: 1 | V188: USD
A189: Catalogo principalOPEN-CSP GOBIERNOGMG-00004 | B189: GMG-00004OPEN-CSP GOBIERNO | D189: Catalogo principal | E189: GMG-00004 | F189: OPEN-CSP GOBIERNO | G189: Catalogo principal | H189: USD | I189: N/A | J189: Microsoft®Dyn365ECstEngAddlDBStorOpen ShrdSvr MonthlySubscriptions-VolumeLicense Government OLP 1License NoLevel AddOn ExtraStorage1GB Annual | K189: Unidad | L189: Und | M189: Producto | N189: N/A | O189: N/A | P189: N/A | Q189: GMG-00004 | R189: Suscripción Anual | S189: 60 | T189: 1 | U189: 1 | V189: USD
A190: Catalogo principalOPEN-CSP GOBIERNOGMS-00007 | B190: GMS-00007OPEN-CSP GOBIERNO | D190: Catalogo principal | E190: GMS-00007 | F190: OPEN-CSP GOBIERNO | G190: Catalogo principal | H190: USD | I190: N/A | J190: Microsoft®Dyn365EforCustServAddOnOpen ShrdSvr MonthlySubscriptions-VolumeLicense Government OLP 1License NoLevel PerDvc Annual | K190: Unidad | L190: Und | M190: Producto | N190: N/A | O190: N/A | P190: N/A | Q190: GMS-00007 | R190: Suscripción Anual | S190: 1740 | T190: 1 | U190: 1 | V190: USD
A191: Catalogo principalOPEN-CSP GOBIERNOGMS-00008 | B191: GMS-00008OPEN-CSP GOBIERNO | D191: Catalogo principal | E191: GMS-00008 | F191: OPEN-CSP GOBIERNO | G191: Catalogo principal | H191: USD | I191: N/A | J191: Microsoft®Dyn365EforCustServAddOnOpen ShrdSvr MonthlySubscriptions-VolumeLicense Government OLP 1License NoLevel PerUsr Annual | K191: Unidad | L191: Und | M191: Producto | N191: N/A | O191: N/A | P191: N/A | Q191: GMS-00008 | R191: Suscripción Anual | S191: 1140 | T191: 1 | U191: 1 | V191: USD
A192: Catalogo principalOPEN-CSP GOBIERNOGMS-00020 | B192: GMS-00020OPEN-CSP GOBIERNO | D192: Catalogo principal | E192: GMS-00020 | F192: OPEN-CSP GOBIERNO | G192: Catalogo principal | H192: USD | I192: N/A | J192: Microsoft®Dyn365EforCustServAddOnOpen ShrdSvr MonthlySubscriptions-VolumeLicense Government OLP 1License NoLevel PerDvc toCustService Annual | K192: Unidad | L192: Und | M192: Producto | N192: N/A | O192: N/A | P192: N/A | Q192: GMS-00020 | R192: Suscripción Anual | S192: 958.32 | T192: 1 | U192: 1 | V192: USD
A193: Catalogo principalOPEN-CSP GOBIERNOGMS-00021 | B193: GMS-00021OPEN-CSP GOBIERNO | D193: Catalogo principal | E193: GMS-00021 | F193: OPEN-CSP GOBIERNO | G193: Catalogo principal | H193: USD | I193: N/A | J193: Microsoft®Dyn365EforCustServAddOnOpen ShrdSvr MonthlySubscriptions-VolumeLicense Government OLP 1License NoLevel PerUsr toCustService Annual | K193: Unidad | L193: Und | M193: Producto | N193: N/A | O193: N/A | P193: N/A | Q193: GMS-00021 | R193: Suscripción Anual | S193: 621.84 | T193: 1 | U193: 1 | V193: USD
A194: =D194&F194&E194 -> Catalogo principalOPEN-CSP GOBIERNOGMV-00012 | B194: =E194&F194 -> GMV-00012OPEN-CSP GOBIERNO | D194: Catalogo principal | E194: GMV-00012 | F194: OPEN-CSP GOBIERNO | G194: Catalogo principal | H194: USD | I194: N/A | J194: Microsoft®Dyn365EforCustServFromSAOpen ShrdSvr MonthlySubscriptions-VolumeLicense Government OLP 1License NoLevel PerDvc Annual | K194: Unidad | L194: Und | M194: Producto | N194: N/A | O194: N/A | P194: N/A | Q194: =+E194 -> GMV-00012 | R194: Suscripción Anual | S194: 1479 | T194: 1 | U194: 1 | V194: USD
A195: Catalogo principalOPEN-CSP GOBIERNOGMV-00013 | B195: GMV-00013OPEN-CSP GOBIERNO | D195: Catalogo principal | E195: GMV-00013 | F195: OPEN-CSP GOBIERNO | G195: Catalogo principal | H195: USD | I195: N/A | J195: Microsoft®Dyn365EforCustServFromSAOpen ShrdSvr MonthlySubscriptions-VolumeLicense Government OLP 1License NoLevel PerUsr Annual | K195: Unidad | L195: Und | M195: Producto | N195: N/A | O195: N/A | P195: N/A | Q195: GMV-00013 | R195: Suscripción Anual | S195: 969 | T195: 1 | U195: 1 | V195: USD
A196: Catalogo principalOPEN-CSP GOBIERNOGMY-00007 | B196: GMY-00007OPEN-CSP GOBIERNO | D196: Catalogo principal | E196: GMY-00007 | F196: OPEN-CSP GOBIERNO | G196: Catalogo principal | H196: USD | I196: N/A | J196: Microsoft®Dyn365EforCustomerServiceOpen ShrdSvr MonthlySubscriptions-VolumeLicense Government OLP 1License NoLevel PerDvc Annual | K196: Unidad | L196: Und | M196: Producto | N196: N/A | O196: N/A | P196: N/A | Q196: GMY-00007 | R196: Suscripción Anual | S196: 1740 | T196: 1 | U196: 1 | V196: USD
A197: Catalogo principalOPEN-CSP GOBIERNOGMY-00008 | B197: GMY-00008OPEN-CSP GOBIERNO | D197: Catalogo principal | E197: GMY-00008 | F197: OPEN-CSP GOBIERNO | G197: Catalogo principal | H197: USD | I197: N/A | J197: Microsoft®Dyn365EforCustomerServiceOpen ShrdSvr MonthlySubscriptions-VolumeLicense Government OLP 1License NoLevel PerUsr Annual | K197: Unidad | L197: Und | M197: Producto | N197: N/A | O197: N/A | P197: N/A | Q197: GMY-00008 | R197: Suscripción Anual | S197: 1140 | T197: 1 | U197: 1 | V197: USD
A198: Catalogo principalOPEN-CSP GOBIERNOGMY-00014 | B198: GMY-00014OPEN-CSP GOBIERNO | D198: Catalogo principal | E198: GMY-00014 | F198: OPEN-CSP GOBIERNO | G198: Catalogo principal | H198: USD | I198: N/A | J198: Microsoft®Dyn365EforCustomerServiceOpen ShrdSvr MonthlySubscriptions-VolumeLicense Government OLP 1Lic NL QualifiedOffer PerUsr CRMProtoO365 Annual | K198: Unidad | L198: Und | M198: Producto | N198: N/A | O198: N/A | P198: N/A | Q198: GMY-00014 | R198: Suscripción Anual | S198: 702.24 | T198: 1 | U198: 1 | V198: USD
A199: Catalogo principalOPEN-CSP GOBIERNOGMY-00019 | B199: GMY-00019OPEN-CSP GOBIERNO | D199: Catalogo principal | E199: GMY-00019 | F199: OPEN-CSP GOBIERNO | G199: Catalogo principal | H199: USD | I199: N/A | J199: Microsoft®Dyn365EforCustomerServiceOpen ShrdSvr MonthlySubscriptions-VolumeLicense Government OLP 1Lic NL QualifiedOffer PerUsr forCRMOLBasic Annual | K199: Unidad | L199: Und | M199: Producto | N199: N/A | O199: N/A | P199: N/A | Q199: GMY-00019 | R199: Suscripción Anual | S199: 600 | T199: 1 | U199: 1 | V199: USD
A200: Catalogo principalOPEN-CSP GOBIERNOGMY-00024 | B200: GMY-00024OPEN-CSP GOBIERNO | D200: Catalogo principal | E200: GMY-00024 | F200: OPEN-CSP GOBIERNO | G200: Catalogo principal | H200: USD | I200: N/A | J200: Microsoft®Dyn365EforCustomerServiceOpen ShrdSvr MonthlySubscriptions-VolumeLicense Government OLP 1Lic NL QualifiedOffer PerUsr forCRMOLPro Annual | K200: Unidad | L200: Und | M200: Producto | N200: N/A | O200: N/A | P200: N/A | Q200: GMY-00024 | R200: Suscripción Anual | S200: 912 | T200: 1 | U200: 1 | V200: USD
... 1996 more rows

Sheet ProXCat (hidden)
A3: Etiquetas de fila
A4: 1
A5: Controles Empresariales S.A.S.
A6: The Best Experience in Technology S.A
A7: UT Soft-IG
A8: UT Soluciones Microsoft 2017
A9: Total 1
A10: 2
A11: Controles Empresariales S.A.S.
A12: Dell Colombia INC
A13: The Best Experience in Technology S.A
A14: UT Soft-IG
A15: UT Soluciones Microsoft 2017
A16: Total 2
A17: 3
A18: Controles Empresariales S.A.S.
A19: UT Soft-IG
A20: UT Soluciones Microsoft 2017
A21: Total 3
A22: 4
A23: Controles Empresariales S.A.S.
A24: UT Soft-IG
A25: Total 4
A26: 5
A27: Controles Empresariales S.A.S.
A28: UT Soft-IG
A29: Vision Software S.A.S.
A30: Total 5
A31: 6
A32: Controles Empresariales S.A.S.
A33: The Best Experience in Technology S.A
A34: UT Soft-IG
A35: UT Soluciones Microsoft 2017
A36: Total 6
A37: 7
A38: Controles Empresariales S.A.S.
A39: The Best Experience in Technology S.A
A40: UT Soft-IG
A41: UT Soluciones Microsoft 2017
A42: Vision Software S.A.S.
A43: Total 7
A44: Total general

Sheet Cuadro Totales (hidden)
A1: Precio Unitario | B1: Precio Unitario + Gravamen | C1: Subtotal | D1: IVA | E1: Precio Total
D3: Valor Total | E3: =SUM(E2) -> 0
A8: Precio Unitario | B8: Precio Unitario + Gravamen | C8: Descuento adicional | D8: Precio con Descuento | E8: Subtotal | F8: IVA | G8: Vr IVA | H8: Precio Total
G10: Valor Total | H10: =SUM(H9) -> 0
A13: Servicios Azure
A14: Subtotal | B14: IVA | C14: Precio Total

Sheet Listas (hidden)
A1: Categoria | B1: Zona | C1: Marca | D1: ProductoInicial | E1: Producto | F1: Proveedores
A2: OPEN-CSP GOBIERNO | D2: 021-07160 | F2: Alfapeople
A3: OPEN-CSP ACADEMICO | D3: 021-07161 | F3: Colsof
A4: OVS_ES ACADEMICO | D4: 021-10618 | F4: Controles Empresariales
D5: 076-03299 | F5: Soluciones Orión
D6: 076-03300 | F6: UT DELL EMC
D7: 076-05838 | F7: UT Nimbit
D8: 077-03412 | F8: UT Soft-IG
D9: 077-03413 | F9: UT Softlinebext 20202
D10: 077-07242
D11: 125-00162
D12: 125-00181
D13: 126-00257
D14: 126-00260
D15: 126-00295
D16: 126-00298
D17: 228-04510
D18: 228-04513
D19: 228-11487
D20: 269-08812
D21: 269-08814
D22: 2PM-00006
D23: 312-02971
D24: 312-02972
D25: 312-04413
D26: 359-01384
D27: 359-01385
D28: 359-01386
D29: 359-01387
D30: 359-06885
D31: 359-06886
D32: 381-02587
D33: 381-02588
D34: 381-02590
D35: 381-02592
D36: 381-04507
D37: 381-04508
D38: 395-03180
D39: 395-03181
D40: 395-04612
D41: 3LN-00010
D42: 3ND-00436
D43: 3ND-00437
D44: 3ND-00438
D45: 3ND-00439
D46: 3NN-00024
D47: 3PP-00006
D48: 3VU-00089
D49: 3VU-00090
D50: 3YF-00123
D51: 3YF-00124
D52: 3YF-00661
D53: 3ZK-00165
D54: 3ZK-00166
D55: 3ZK-00167
D56: 3ZK-00168
D57: 5A5-00006
D58: 5A9-00006
D59: 5HK-00288
D60: 5HK-00289
D61: 5HK-00290
D62: 5HU-00285
D63: 5HU-00286
D64: 5HU-00418
D65: 6VC-01217
D66: 6VC-01218
D67: 6VC-01219
D68: 6VC-01220
D69: 6VC-03765
D70: 6VC-03766
D71: 6XC-00281
D72: 6XC-00282
D73: 6XC-00446
D74: 6YH-00528
D75: 6YH-00529
D76: 6YH-01188
D77: 6ZH-00350
D78: 6ZH-00371
D79: 6ZH-00372
D80: 6ZH-00373
D81: 6ZH-00747
D82: 6ZH-00748
D83: 76M-01706
D84: 76M-01707
D85: 76N-00597
D86: 76N-00603
D87: 76N-00654
D88: 76N-00660
D89: 76N-03869
D90: 76N-03870
D91: 76P-02040
D92: 77D-00105
D93: 77D-00106
D94: 79P-05738
D95: 7AH-00419
D96: 7AH-00420
D97: 7AH-00421
D98: 7AH-00422
D99: 7AH-00754
D100: 7AH-00755
D101: 7JQ-00314
D102: 7JQ-00315
D103: 7JQ-01624
D104: 7JT-00003
D105: 7NQ-00266
D106: 7NQ-00267
D107: 7NQ-01581
D108: 7NS-00006
D109: 7YC-00006
D110: 810-04848
D111: 9EA-00229
D112: 9EA-00230
D113: 9EA-00232
D114: 9EA-00233
D115: 9EA-01062
D116: 9EA-01063
D117: 9EM-00225
D118: 9EM-00226
D119: 9EM-00228
D120: 9EM-00229
D121: 9EM-00670
D122: 9EM-00671
D123: 9EN-00165
D124: 9EN-00166
D125: 9EN-00167
D126: 9EN-00168
D127: 9EP-00171
D128: 9EP-00172
D129: 9EP-00173
D130: 9EP-00174
D131: 9GA-00056
D132: 9GA-00057
D133: 9GA-00292
D134: 9GA-00293
D135: 9GA-00294
D136: 9GA-00295
D137: 9GA-00601
D138: 9GA-00602
D139: 9GS-00110
D140: 9GS-00111
D141: 9GS-00112
D142: 9GS-00113
D143: 9GS-00545
D144: 9GS-00546
D145: 9GS-00725
D146: 9GS-00726
D147: 9TX-00209
D148: 9TX-00226
D149: 9TX-00605
D150: 9TX-00606
D151: C5E-01388
D152: CF3-00007
D153: CGJ-00006
D154: D75-01971
D155: D75-01972
D156: D75-02468
D157: D86-02331
D158: D86-02333
D159: D86-05877
D160: D87-02285
D161: D87-02286
D162: D87-07508
D163: DW6-00006
D164: EMJ-00129
D165: EMJ-00130
D166: EMJ-00131
D167: EMJ-00132
D168: EMT-00129
D169: EMT-00130
D170: EMT-00131
D171: EMT-00132
D172: ENJ-00129
D173: ENJ-00130
D174: ENJ-00131
D175: ENJ-00132
D176: EVQ-00006
D177: EVY-00006
D178: EWH-00006
D179: F52-02136
D180: F52-02137
D181: F52-02765
D182: FQC-09478
D183: FQC-09543
D184: FTH-00006
D185: G3S-00505
D186: G3S-00506
D187: G3S-01268
D188: GLX-00002
D189: GMG-00004
D190: GMS-00007
D191: GMS-00008
D192: GMS-00020
D193: GMS-00021
D194: GMV-00012
D195: GMV-00013
D196: GMY-00007
D197: GMY-00008
D198: GMY-00014
D199: GMY-00019
D200: GMY-00024
... 468 more rows

Sheet minimo (hidden)
C1: categoria | D1: Canal
C3: Etiquetas de fila | D3: Suma de total
C4: UT Soft-IG | D4: 1005186.73
C5: Controles Empresariales | D5: 2076192.91
C6: UT Softlinebext 20202 | D6: 2282157.68
C7: Alfapeople | D7: 2510373.47
C8: Soluciones Orión | D8: 2852697.1
C9: Colsof | D9: 3572614.14
C10: UT Nimbit | D10: 3773858.91
C11: UT DELL EMC | D11: 7285541.62
C12: Total general | D12: 25358622.56

Sheet temp (hidden)
A1: LLAVE | B1: TEMP1 | C1: TEMP2 | D1: PROVEEDOR | E1: Código matriz Colombia Compra Eficiente | F1: categoria | G1: PROVEEDOR2 | H1: Moneda | I1: Parametrización de los Servicios | J1: Nombre Producto | K1: Unidad de Medida | L1: Unidad TVEC | M1: Tipo | N1: Zona | O1: Asistencia | P1: Perfil | Q1: Número de parte | R1: Forma de Pago | S1: Precio | T1: Activo | U1: IVA | V1: cant | W1: valor base | X1: valor con gravamenes | Y1: total
A2: =D2&F2&E2 -> Catalogo principalOPEN-CSP GOBIERNO021-07160 | B2: =E2&F2 -> 021-07160OPEN-CSP GOBIERNO | D2: Catalogo principal | E2: 021-07160 | F2: OPEN-CSP GOBIERNO | G2: Catalogo principal | H2: USD | I2: N/A | J2: Microsoft®Office License/SoftwareAssurancePack Government OLP 1License NoLevel | K2: Unidad | L2: Und | M2: Producto | N2: N/A | O2: N/A | P2: N/A | Q2: =+E2 -> 021-07160 | R2: Licencia | S2: 591.76 | T2: 1 | U2: 1 | V2: =SUMIF(ResumenCotizacion!$C:$C,E2,ResumenCotizacion!$P:$P) -> 0 | W2: =IF(H2="USD",S2*SolCotizacion!$J$18,S2) -> 2169090.362 | X2: =ROUND(W2/(1-VLOOKUP("Total porcentaje:",ResumenCotizacion!$F:$H,3,0)),2) -> 2250093.74 | Y2: =V2*X2 -> 0
A3: Catalogo principalOPEN-CSP GOBIERNO021-07161 | B3: 021-07161OPEN-CSP GOBIERNO | D3: Catalogo principal | E3: 021-07161 | F3: OPEN-CSP GOBIERNO | G3: Catalogo principal | H3: USD | I3: N/A | J3: Microsoft®Office SoftwareAssurance Government OLP 1License NoLevel | K3: Unidad | L3: Und | M3: Producto | N3: N/A | O3: N/A | P3: N/A | Q3: 021-07161 | R3: Licencia | S3: 217.2 | T3: 1 | U3: 1 | V3: =SUMIF(ResumenCotizacion!$C:$C,E3,ResumenCotizacion!$P:$P) -> 0 | W3: =IF(H3="USD",S3*SolCotizacion!$J$18,S3) -> 796144.428 | X3: =ROUND(W3/(1-VLOOKUP("Total porcentaje:",ResumenCotizacion!$F:$H,3,0)),2) -> 825875.96 | Y3: =V3*X3 -> 0
A4: Catalogo principalOPEN-CSP GOBIERNO021-10618 | B4: 021-10618OPEN-CSP GOBIERNO | D4: Catalogo principal | E4: 021-10618 | F4: OPEN-CSP GOBIERNO | G4: Catalogo principal | H4: USD | I4: N/A | J4: Microsoft®Office 2019 Government OLP 1License NoLevel | K4: Unidad | L4: Und | M4: Producto | N4: N/A | O4: N/A | P4: N/A | Q4: 021-10618 | R4: Licencia | S4: 374.56 | T4: 1 | U4: 1 | V4: =SUMIF(ResumenCotizacion!$C:$C,E4,ResumenCotizacion!$P:$P) -> 0 | W4: =IF(H4="USD",S4*SolCotizacion!$J$18,S4) -> 1372945.934 | X4: =ROUND(W4/(1-VLOOKUP("Total porcentaje:",ResumenCotizacion!$F:$H,3,0)),2) -> 1424217.77 | Y4: 0
A5: Catalogo principalOPEN-CSP GOBIERNO076-03299 | B5: 076-03299OPEN-CSP GOBIERNO | D5: Catalogo principal | E5: 076-03299 | F5: OPEN-CSP GOBIERNO | G5: Catalogo principal | H5: USD | I5: N/A | J5: Microsoft®ProjectStandard License/SoftwareAssurancePack Government OLP 1License NoLevel | K5: Unidad | L5: Und | M5: Producto | N5: N/A | O5: N/A | P5: N/A | Q5: 076-03299 | R5: Licencia | S5: 895.8 | T5: 1 | U5: 1 | V5: =SUMIF(ResumenCotizacion!$C:$C,E5,ResumenCotizacion!$P:$P) -> 0 | W5: =IF(H5="USD",S5*SolCotizacion!$J$18,S5) -> 3283545.942 | X5: =ROUND(W5/(1-VLOOKUP("Total porcentaje:",ResumenCotizacion!$F:$H,3,0)),2) -> 3406167.99 | Y5: 0
A6: Catalogo principalOPEN-CSP GOBIERNO076-03300 | B6: 076-03300OPEN-CSP GOBIERNO | D6: Catalogo principal | E6: 076-03300 | F6: OPEN-CSP GOBIERNO | G6: Catalogo principal | H6: USD | I6: N/A | J6: Microsoft®ProjectStandard SoftwareAssurance Government OLP 1License NoLevel | K6: Unidad | L6: Und | M6: Producto | N6: N/A | O6: N/A | P6: N/A | Q6: 076-03300 | R6: Licencia | S6: 328.8 | T6: 1 | U6: 1 | V6: =SUMIF(ResumenCotizacion!$C:$C,E6,ResumenCotizacion!$P:$P) -> 0 | W6: =IF(H6="USD",S6*SolCotizacion!$J$18,S6) -> 1205213.112 | X6: =ROUND(W6/(1-VLOOKUP("Total porcentaje:",ResumenCotizacion!$F:$H,3,0)),2) -> 1250221.07 | Y6: 0
A7: Catalogo principalOPEN-CSP GOBIERNO076-05838 | B7: 076-05838OPEN-CSP GOBIERNO | D7: Catalogo principal | E7: 076-05838 | F7: OPEN-CSP GOBIERNO | G7: Catalogo principal | H7: USD | I7: N/A | J7: Microsoft®ProjectStandard 2019 Government OLP 1License NoLevel | K7: Unidad | L7: Und | M7: Producto | N7: N/A | O7: N/A | P7: N/A | Q7: 076-05838 | R7: Licencia | S7: 567.01 | T7: 1 | U7: 1 | V7: =SUMIF(ResumenCotizacion!$C:$C,E7,ResumenCotizacion!$P:$P) -> 0 | W7: =IF(H7="USD",S7*SolCotizacion!$J$18,S7) -> 2078369.485 | X7: =ROUND(W7/(1-VLOOKUP("Total porcentaje:",ResumenCotizacion!$F:$H,3,0)),2) -> 2155984.94 | Y7: 0
A8: Catalogo principalOPEN-CSP GOBIERNO077-03412 | B8: 077-03412OPEN-CSP GOBIERNO | D8: Catalogo principal | E8: 077-03412 | F8: OPEN-CSP GOBIERNO | G8: Catalogo principal | H8: USD | I8: N/A | J8: Microsoft®Access License/SoftwareAssurancePack Government OLP 1License NoLevel | K8: Unidad | L8: Und | M8: Producto | N8: N/A | O8: N/A | P8: N/A | Q8: 077-03412 | R8: Licencia | S8: 186.89 | T8: 1 | U8: 1 | V8: =SUMIF(ResumenCotizacion!$C:$C,E8,ResumenCotizacion!$P:$P) -> 0 | W8: =IF(H8="USD",S8*SolCotizacion!$J$18,S8) -> 685043.4261 | X8: =ROUND(W8/(1-VLOOKUP("Total porcentaje:",ResumenCotizacion!$F:$H,3,0)),2) -> 710625.96 | Y8: 0
A9: Catalogo principalOPEN-CSP GOBIERNO077-03413 | B9: 077-03413OPEN-CSP GOBIERNO | D9: Catalogo principal | E9: 077-03413 | F9: OPEN-CSP GOBIERNO | G9: Catalogo principal | H9: USD | I9: N/A | J9: Microsoft®Access SoftwareAssurance Government OLP 1License NoLevel | K9: Unidad | L9: Und | M9: Producto | N9: N/A | O9: N/A | P9: N/A | Q9: 077-03413 | R9: Licencia | S9: 68.57 | T9: 1 | U9: 1 | V9: =SUMIF(ResumenCotizacion!$C:$C,E9,ResumenCotizacion!$P:$P) -> 0 | W9: =IF(H9="USD",S9*SolCotizacion!$J$18,S9) -> 251342.6493 | X9: =ROUND(W9/(1-VLOOKUP("Total porcentaje:",ResumenCotizacion!$F:$H,3,0)),2) -> 260728.89 | Y9: 0
A10: Catalogo principalOPEN-CSP GOBIERNO077-07242 | B10: 077-07242OPEN-CSP GOBIERNO | D10: Catalogo principal | E10: 077-07242 | F10: OPEN-CSP GOBIERNO | G10: Catalogo principal | H10: USD | I10: N/A | J10: Microsoft®Access 2019 Government OLP 1License NoLevel | K10: Unidad | L10: Und | M10: Producto | N10: N/A | O10: N/A | P10: N/A | Q10: 077-07242 | R10: Licencia | S10: 118.32 | T10: 1 | U10: 1 | V10: =SUMIF(ResumenCotizacion!$C:$C,E10,ResumenCotizacion!$P:$P) -> 0 | W10: =IF(H10="USD",S10*SolCotizacion!$J$18,S10) -> 433700.7768 | X10: =ROUND(W10/(1-VLOOKUP("Total porcentaje:",ResumenCotizacion!$F:$H,3,0)),2) -> 449897.07 | Y10: 0
A11: Catalogo principalOPEN-CSP GOBIERNO125-00162 | B11: 125-00162OPEN-CSP GOBIERNO | D11: Catalogo principal | E11: 125-00162 | F11: OPEN-CSP GOBIERNO | G11: Catalogo principal | H11: USD | I11: N/A | J11: Microsoft®AzureDevOpsServer License/SoftwareAssurancePack Government OLP 1License NoLevel | K11: Unidad | L11: Und | M11: Producto | N11: N/A | O11: N/A | P11: N/A | Q11: 125-00162 | R11: Licencia | S11: 584.22 | T11: 1 | U11: 1 | V11: =SUMIF(ResumenCotizacion!$C:$C,E11,ResumenCotizacion!$P:$P) -> 0 | W11: =IF(H11="USD",S11*SolCotizacion!$J$18,S11) -> 2141452.568 | X11: =ROUND(W11/(1-VLOOKUP("Total porcentaje:",ResumenCotizacion!$F:$H,3,0)),2) -> 2221423.83 | Y11: 0
A12: Catalogo principalOPEN-CSP GOBIERNO125-00181 | B12: 125-00181OPEN-CSP GOBIERNO | D12: Catalogo principal | E12: 125-00181 | F12: OPEN-CSP GOBIERNO | G12: Catalogo principal | H12: USD | I12: N/A | J12: Microsoft®AzureDevOpsServer SoftwareAssurance Government OLP 1License NoLevel | K12: Unidad | L12: Und | M12: Producto | N12: N/A | O12: N/A | P12: N/A | Q12: 125-00181 | R12: Licencia | S12: 194.74 | T12: 1 | U12: 1 | V12: =SUMIF(ResumenCotizacion!$C:$C,E12,ResumenCotizacion!$P:$P) -> 0 | W12: =IF(H12="USD",S12*SolCotizacion!$J$18,S12) -> 713817.5226 | X12: =ROUND(W12/(1-VLOOKUP("Total porcentaje:",ResumenCotizacion!$F:$H,3,0)),2) -> 740474.61 | Y12: 0
A13: Catalogo principalOPEN-CSP GOBIERNO126-00257 | B13: 126-00257OPEN-CSP GOBIERNO | D13: Catalogo principal | E13: 126-00257 | F13: OPEN-CSP GOBIERNO | G13: Catalogo principal | H13: USD | I13: N/A | J13: Microsoft®AzureDevOpsServerCAL License/SoftwareAssurancePack Government OLP 1License NoLevel DvcCAL | K13: Unidad | L13: Und | M13: Producto | N13: N/A | O13: N/A | P13: N/A | Q13: 126-00257 | R13: Licencia | S13: 584.22 | T13: 1 | U13: 1 | V13: =SUMIF(ResumenCotizacion!$C:$C,E13,ResumenCotizacion!$P:$P) -> 0 | W13: =IF(H13="USD",S13*SolCotizacion!$J$18,S13) -> 2141452.568 | X13: =ROUND(W13/(1-VLOOKUP("Total porcentaje:",ResumenCotizacion!$F:$H,3,0)),2) -> 2221423.83 | Y13: 0
A14: Catalogo principalOPEN-CSP GOBIERNO126-00260 | B14: 126-00260OPEN-CSP GOBIERNO | D14: Catalogo principal | E14: 126-00260 | F14: OPEN-CSP GOBIERNO | G14: Catalogo principal | H14: USD | I14: N/A | J14: Microsoft®AzureDevOpsServerCAL License/SoftwareAssurancePack Government OLP 1License NoLevel UsrCAL | K14: Unidad | L14: Und | M14: Producto | N14: N/A | O14: N/A | P14: N/A | Q14: 126-00260 | R14: Licencia | S14: 671.93 | T14: 1 | U14: 1 | V14: =SUMIF(ResumenCotizacion!$C:$C,E14,ResumenCotizacion!$P:$P) -> 0 | W14: =IF(H14="USD",S14*SolCotizacion!$J$18,S14) -> 2462952.696 | X14: =ROUND(W14/(1-VLOOKUP("Total porcentaje:",ResumenCotizacion!$F:$H,3,0)),2) -> 2554930.18 | Y14: 0
A15: Catalogo principalOPEN-CSP GOBIERNO126-00295 | B15: 126-00295OPEN-CSP GOBIERNO | D15: Catalogo principal | E15: 126-00295 | F15: OPEN-CSP GOBIERNO | G15: Catalogo principal | H15: USD | I15: N/A | J15: Microsoft®AzureDevOpsServerCAL SoftwareAssurance Government OLP 1License NoLevel DvcCAL | K15: Unidad | L15: Und | M15: Producto | N15: N/A | O15: N/A | P15: N/A | Q15: 126-00295 | R15: Licencia | S15: 194.74 | T15: 1 | U15: 1 | V15: =SUMIF(ResumenCotizacion!$C:$C,E15,ResumenCotizacion!$P:$P) -> 0 | W15: =IF(H15="USD",S15*SolCotizacion!$J$18,S15) -> 713817.5226 | X15: =ROUND(W15/(1-VLOOKUP("Total porcentaje:",ResumenCotizacion!$F:$H,3,0)),2) -> 740474.61 | Y15: 0
A16: Catalogo principalOPEN-CSP GOBIERNO126-00298 | B16: 126-00298OPEN-CSP GOBIERNO | D16: Catalogo principal | E16: 126-00298 | F16: OPEN-CSP GOBIERNO | G16: Catalogo principal | H16: USD | I16: N/A | J16: Microsoft®AzureDevOpsServerCAL SoftwareAssurance Government OLP 1License NoLevel UsrCAL | K16: Unidad | L16: Und | M16: Producto | N16: N/A | O16: N/A | P16: N/A | Q16: 126-00298 | R16: Licencia | S16: 223.98 | T16: 1 | U16: 1 | V16: =SUMIF(ResumenCotizacion!$C:$C,E16,ResumenCotizacion!$P:$P) -> 0 | W16: =IF(H16="USD",S16*SolCotizacion!$J$18,S16) -> 820996.4502 | X16: =ROUND(W16/(1-VLOOKUP("Total porcentaje:",ResumenCotizacion!$F:$H,3,0)),2) -> 851656.07 | Y16: 0
A17: Catalogo principalOPEN-CSP GOBIERNO228-04510 | B17: 228-04510OPEN-CSP GOBIERNO | D17: Catalogo principal | E17: 228-04510 | F17: OPEN-CSP GOBIERNO | G17: Catalogo principal | H17: USD | I17: N/A | J17: Microsoft®SQLServerStandardEdition SoftwareAssurance Government OLP 1License NoLevel | K17: Unidad | L17: Und | M17: Producto | N17: N/A | O17: N/A | P17: N/A | Q17: 228-04510 | R17: Licencia | S17: 451.59 | T17: 1 | U17: 1 | V17: =SUMIF(ResumenCotizacion!$C:$C,E17,ResumenCotizacion!$P:$P) -> 0 | W17: =IF(H17="USD",S17*SolCotizacion!$J$18,S17) -> 1655298.629 | X17: =ROUND(W17/(1-VLOOKUP("Total porcentaje:",ResumenCotizacion!$F:$H,3,0)),2) -> 1717114.76 | Y17: 0
A18: Catalogo principalOPEN-CSP GOBIERNO228-04513 | B18: 228-04513OPEN-CSP GOBIERNO | D18: Catalogo principal | E18: 228-04513 | F18: OPEN-CSP GOBIERNO | G18: Catalogo principal | H18: USD | I18: N/A | J18: Microsoft®SQLServerStandardEdition License/SoftwareAssurancePack Government OLP 1License NoLevel | K18: Unidad | L18: Und | M18: Producto | N18: N/A | O18: N/A | P18: N/A | Q18: 228-04513 | R18: Licencia | S18: 1354.91 | T18: 1 | U18: 1 | V18: =SUMIF(ResumenCotizacion!$C:$C,E18,ResumenCotizacion!$P:$P) -> 0 | W18: =IF(H18="USD",S18*SolCotizacion!$J$18,S18) -> 4966409.056 | X18: =ROUND(W18/(1-VLOOKUP("Total porcentaje:",ResumenCotizacion!$F:$H,3,0)),2) -> 5151876.61 | Y18: 0
A19: Catalogo principalOPEN-CSP GOBIERNO228-11487 | B19: 228-11487OPEN-CSP GOBIERNO | D19: Catalogo principal | E19: 228-11487 | F19: OPEN-CSP GOBIERNO | G19: Catalogo principal | H19: USD | I19: N/A | J19: Microsoft®SQLServerStandardEdition 2019 Government OLP 1License NoLevel | K19: Unidad | L19: Und | M19: Producto | N19: N/A | O19: N/A | P19: N/A | Q19: 228-11487 | R19: Licencia | S19: 903.33 | T19: 1 | U19: 1 | V19: =SUMIF(ResumenCotizacion!$C:$C,E19,ResumenCotizacion!$P:$P) -> 0 | W19: =IF(H19="USD",S19*SolCotizacion!$J$18,S19) -> 3311147.082 | X19: =ROUND(W19/(1-VLOOKUP("Total porcentaje:",ResumenCotizacion!$F:$H,3,0)),2) -> 3434799.88 | Y19: 0
A20: Catalogo principalOPEN-CSP GOBIERNO269-08812 | B20: 269-08812OPEN-CSP GOBIERNO | D20: Catalogo principal | E20: 269-08812 | F20: OPEN-CSP GOBIERNO | G20: Catalogo principal | H20: USD | I20: N/A | J20: Microsoft®OfficeProfessionalPlus License/SoftwareAssurancePack Government OLP 1License NoLevel | K20: Unidad | L20: Und | M20: Producto | N20: N/A | O20: N/A | P20: N/A | Q20: 269-08812 | R20: Licencia | S20: 807.26 | T20: 1 | U20: 1 | V20: =SUMIF(ResumenCotizacion!$C:$C,E20,ResumenCotizacion!$P:$P) -> 0 | W20: =IF(H20="USD",S20*SolCotizacion!$J$18,S20) -> 2959003.457 | X20: =ROUND(W20/(1-VLOOKUP("Total porcentaje:",ResumenCotizacion!$F:$H,3,0)),2) -> 3069505.66 | Y20: 0
A21: Catalogo principalOPEN-CSP GOBIERNO269-08814 | B21: 269-08814OPEN-CSP GOBIERNO | D21: Catalogo principal | E21: 269-08814 | F21: OPEN-CSP GOBIERNO | G21: Catalogo principal | H21: USD | I21: N/A | J21: Microsoft®OfficeProfessionalPlus SoftwareAssurance Government OLP 1License NoLevel | K21: Unidad | L21: Und | M21: Producto | N21: N/A | O21: N/A | P21: N/A | Q21: 269-08814 | R21: Licencia | S21: 296.32 | T21: 1 | U21: 1 | V21: =SUMIF(ResumenCotizacion!$C:$C,E21,ResumenCotizacion!$P:$P) -> 0 | W21: =IF(H21="USD",S21*SolCotizacion!$J$18,S21) -> 1086157.997 | X21: =ROUND(W21/(1-VLOOKUP("Total porcentaje:",ResumenCotizacion!$F:$H,3,0)),2) -> 1126719.91 | Y21: 0
A22: Catalogo principalOPEN-CSP GOBIERNO2PM-00006 | B22: 2PM-00006OPEN-CSP GOBIERNO | D22: Catalogo principal | E22: 2PM-00006 | F22: OPEN-CSP GOBIERNO | G22: Catalogo principal | H22: USD | I22: N/A | J22: Microsoft®CloudAppSecurityOpen MonthlySubscriptions-VolumeLicense Government OLP 1License NoLevel Qualified Annual | K22: Unidad | L22: Und | M22: Producto | N22: N/A | O22: N/A | P22: N/A | Q22: 2PM-00006 | R22: Suscripción Anual | S22: 42 | T22: 1 | U22: 1 | V22: =SUMIF(ResumenCotizacion!$C:$C,E22,ResumenCotizacion!$P:$P) -> 0 | W22: =IF(H22="USD",S22*SolCotizacion!$J$18,S22) -> 153950.58 | X22: =ROUND(W22/(1-VLOOKUP("Total porcentaje:",ResumenCotizacion!$F:$H,3,0)),2) -> 159699.77 | Y22: 0
A23: Catalogo principalOPEN-CSP GOBIERNO312-02971 | B23: 312-02971OPEN-CSP GOBIERNO | D23: Catalogo principal | E23: 312-02971 | F23: OPEN-CSP GOBIERNO | G23: Catalogo principal | H23: USD | I23: N/A | J23: Microsoft®ExchangeServerStandard SoftwareAssurance Government OLP 1License NoLevel | K23: Unidad | L23: Und | M23: Producto | N23: N/A | O23: N/A | P23: N/A | Q23: 312-02971 | R23: Licencia | S23: 356.12 | T23: 1 | U23: 1 | V23: =SUMIF(ResumenCotizacion!$C:$C,E23,ResumenCotizacion!$P:$P) -> 0 | W23: =IF(H23="USD",S23*SolCotizacion!$J$18,S23) -> 1305354.299 | X23: =ROUND(W23/(1-VLOOKUP("Total porcentaje:",ResumenCotizacion!$F:$H,3,0)),2) -> 1354101.97 | Y23: 0
A24: Catalogo principalOPEN-CSP GOBIERNO312-02972 | B24: 312-02972OPEN-CSP GOBIERNO | D24: Catalogo principal | E24: 312-02972 | F24: OPEN-CSP GOBIERNO | G24: Catalogo principal | H24: USD | I24: N/A | J24: Microsoft®ExchangeServerStandard License/SoftwareAssurancePack Government OLP 1License NoLevel | K24: Unidad | L24: Und | M24: Producto | N24: N/A | O24: N/A | P24: N/A | Q24: 312-02972 | R24: Licencia | S24: 1068.63 | T24: 1 | U24: 1 | V24: =SUMIF(ResumenCotizacion!$C:$C,E24,ResumenCotizacion!$P:$P) -> 0 | W24: =IF(H24="USD",S24*SolCotizacion!$J$18,S24) -> 3917052.579 | X24: =ROUND(W24/(1-VLOOKUP("Total porcentaje:",ResumenCotizacion!$F:$H,3,0)),2) -> 4063332.55 | Y24: 0
A25: Catalogo principalOPEN-CSP GOBIERNO312-04413 | B25: 312-04413OPEN-CSP GOBIERNO | D25: Catalogo principal | E25: 312-04413 | F25: OPEN-CSP GOBIERNO | G25: Catalogo principal | H25: USD | I25: N/A | J25: Microsoft®ExchangeServerStandard 2019 Government OLP 1License NoLevel | K25: Unidad | L25: Und | M25: Producto | N25: N/A | O25: N/A | P25: N/A | Q25: 312-04413 | R25: Licencia | S25: 712.5 | T25: 1 | U25: 1 | V25: =SUMIF(ResumenCotizacion!$C:$C,E25,ResumenCotizacion!$P:$P) -> 0 | W25: =IF(H25="USD",S25*SolCotizacion!$J$18,S25) -> 2611661.625 | X25: =ROUND(W25/(1-VLOOKUP("Total porcentaje:",ResumenCotizacion!$F:$H,3,0)),2) -> 2709192.56 | Y25: 0
A26: Catalogo principalOPEN-CSP GOBIERNO359-01384 | B26: 359-01384OPEN-CSP GOBIERNO | D26: Catalogo principal | E26: 359-01384 | F26: OPEN-CSP GOBIERNO | G26: Catalogo principal | H26: USD | I26: N/A | J26: Microsoft®SQLCAL SoftwareAssurance Government OLP 1License NoLevel UsrCAL | K26: Unidad | L26: Und | M26: Producto | N26: N/A | O26: N/A | P26: N/A | Q26: 359-01384 | R26: Licencia | S26: 104.88 | T26: 1 | U26: 1 | V26: =SUMIF(ResumenCotizacion!$C:$C,E26,ResumenCotizacion!$P:$P) -> 0 | W26: =IF(H26="USD",S26*SolCotizacion!$J$18,S26) -> 384436.5912 | X26: =ROUND(W26/(1-VLOOKUP("Total porcentaje:",ResumenCotizacion!$F:$H,3,0)),2) -> 398793.14 | Y26: 0
A27: Catalogo principalOPEN-CSP GOBIERNO359-01385 | B27: 359-01385OPEN-CSP GOBIERNO | D27: Catalogo principal | E27: 359-01385 | F27: OPEN-CSP GOBIERNO | G27: Catalogo principal | H27: USD | I27: N/A | J27: Microsoft®SQLCAL SoftwareAssurance Government OLP 1License NoLevel DvcCAL | K27: Unidad | L27: Und | M27: Producto | N27: N/A | O27: N/A | P27: N/A | Q27: 359-01385 | R27: Licencia | S27: 104.88 | T27: 1 | U27: 1 | V27: =SUMIF(ResumenCotizacion!$C:$C,E27,ResumenCotizacion!$P:$P) -> 0 | W27: =IF(H27="USD",S27*SolCotizacion!$J$18,S27) -> 384436.5912 | X27: =ROUND(W27/(1-VLOOKUP("Total porcentaje:",ResumenCotizacion!$F:$H,3,0)),2) -> 398793.14 | Y27: 0
A28: Catalogo principalOPEN-CSP GOBIERNO359-01386 | B28: 359-01386OPEN-CSP GOBIERNO | D28: Catalogo principal | E28: 359-01386 | F28: OPEN-CSP GOBIERNO | G28: Catalogo principal | H28: USD | I28: N/A | J28: Microsoft®SQLCAL License/SoftwareAssurancePack Government OLP 1License NoLevel UsrCAL | K28: Unidad | L28: Und | M28: Producto | N28: N/A | O28: N/A | P28: N/A | Q28: 359-01386 | R28: Licencia | S28: 314.65 | T28: 1 | U28: 1 | V28: =SUMIF(ResumenCotizacion!$C:$C,E28,ResumenCotizacion!$P:$P) -> 0 | W28: =IF(H28="USD",S28*SolCotizacion!$J$18,S28) -> 1153346.428 | X28: =ROUND(W28/(1-VLOOKUP("Total porcentaje:",ResumenCotizacion!$F:$H,3,0)),2) -> 1196417.46 | Y28: 0
A29: Catalogo principalOPEN-CSP GOBIERNO359-01387 | B29: 359-01387OPEN-CSP GOBIERNO | D29: Catalogo principal | E29: 359-01387 | F29: OPEN-CSP GOBIERNO | G29: Catalogo principal | H29: USD | I29: N/A | J29: Microsoft®SQLCAL License/SoftwareAssurancePack Government OLP 1License NoLevel DvcCAL | K29: Unidad | L29: Und | M29: Producto | N29: N/A | O29: N/A | P29: N/A | Q29: 359-01387 | R29: Licencia | S29: 314.65 | T29: 1 | U29: 1 | V29: =SUMIF(ResumenCotizacion!$C:$C,E29,ResumenCotizacion!$P:$P) -> 0 | W29: =IF(H29="USD",S29*SolCotizacion!$J$18,S29) -> 1153346.428 | X29: =ROUND(W29/(1-VLOOKUP("Total porcentaje:",ResumenCotizacion!$F:$H,3,0)),2) -> 1196417.46 | Y29: 0
A30: Catalogo principalOPEN-CSP GOBIERNO359-06885 | B30: 359-06885OPEN-CSP GOBIERNO | D30: Catalogo principal | E30: 359-06885 | F30: OPEN-CSP GOBIERNO | G30: Catalogo principal | H30: USD | I30: N/A | J30: Microsoft®SQLCAL 2019 Government OLP 1License NoLevel DvcCAL | K30: Unidad | L30: Und | M30: Producto | N30: N/A | O30: N/A | P30: N/A | Q30: 359-06885 | R30: Licencia | S30: 209.77 | T30: 1 | U30: 1 | V30: =SUMIF(ResumenCotizacion!$C:$C,E30,ResumenCotizacion!$P:$P) -> 0 | W30: =IF(H30="USD",S30*SolCotizacion!$J$18,S30) -> 768909.8373 | X30: =ROUND(W30/(1-VLOOKUP("Total porcentaje:",ResumenCotizacion!$F:$H,3,0)),2) -> 797624.31 | Y30: 0
A31: Catalogo principalOPEN-CSP GOBIERNO359-06886 | B31: 359-06886OPEN-CSP GOBIERNO | D31: Catalogo principal | E31: 359-06886 | F31: OPEN-CSP GOBIERNO | G31: Catalogo principal | H31: USD | I31: N/A | J31: Microsoft®SQLCAL 2019 Government OLP 1License NoLevel UsrCAL | K31: Unidad | L31: Und | M31: Producto | N31: N/A | O31: N/A | P31: N/A | Q31: 359-06886 | R31: Licencia | S31: 209.77 | T31: 1 | U31: 1 | V31: =SUMIF(ResumenCotizacion!$C:$C,E31,ResumenCotizacion!$P:$P) -> 0 | W31: =IF(H31="USD",S31*SolCotizacion!$J$18,S31) -> 768909.8373 | X31: =ROUND(W31/(1-VLOOKUP("Total porcentaje:",ResumenCotizacion!$F:$H,3,0)),2) -> 797624.31 | Y31: 0
A32: Catalogo principalOPEN-CSP GOBIERNO381-02587 | B32: 381-02587OPEN-CSP GOBIERNO | D32: Catalogo principal | E32: 381-02587 | F32: OPEN-CSP GOBIERNO | G32: Catalogo principal | H32: USD | I32: N/A | J32: Microsoft®ExchangeStandardCAL SoftwareAssurance Government OLP 1License NoLevel UsrCAL | K32: Unidad | L32: Und | M32: Producto | N32: N/A | O32: N/A | P32: N/A | Q32: 381-02587 | R32: Licencia | S32: 43.64 | T32: 1 | U32: 1 | V32: =SUMIF(ResumenCotizacion!$C:$C,E32,ResumenCotizacion!$P:$P) -> 0 | W32: =IF(H32="USD",S32*SolCotizacion!$J$18,S32) -> 159961.9836 | X32: =ROUND(W32/(1-VLOOKUP("Total porcentaje:",ResumenCotizacion!$F:$H,3,0)),2) -> 165935.67 | Y32: 0
A33: Catalogo principalOPEN-CSP GOBIERNO381-02588 | B33: 381-02588OPEN-CSP GOBIERNO | D33: Catalogo principal | E33: 381-02588 | F33: OPEN-CSP GOBIERNO | G33: Catalogo principal | H33: USD | I33: N/A | J33: Microsoft®ExchangeStandardCAL SoftwareAssurance Government OLP 1License NoLevel DvcCAL | K33: Unidad | L33: Und | M33: Producto | N33: N/A | O33: N/A | P33: N/A | Q33: 381-02588 | R33: Licencia | S33: 33.75 | T33: 1 | U33: 1 | V33: =SUMIF(ResumenCotizacion!$C:$C,E33,ResumenCotizacion!$P:$P) -> 0 | W33: =IF(H33="USD",S33*SolCotizacion!$J$18,S33) -> 123710.2875 | X33: =ROUND(W33/(1-VLOOKUP("Total porcentaje:",ResumenCotizacion!$F:$H,3,0)),2) -> 128330.17 | Y33: 0
A34: Catalogo principalOPEN-CSP GOBIERNO381-02590 | B34: 381-02590OPEN-CSP GOBIERNO | D34: Catalogo principal | E34: 381-02590 | F34: OPEN-CSP GOBIERNO | G34: Catalogo principal | H34: USD | I34: N/A | J34: Microsoft®ExchangeStandardCAL License/SoftwareAssurancePack Government OLP 1License NoLevel DvcCAL | K34: Unidad | L34: Und | M34: Producto | N34: N/A | O34: N/A | P34: N/A | Q34: 381-02590 | R34: Licencia | S34: 101.11 | T34: 1 | U34: 1 | V34: =SUMIF(ResumenCotizacion!$C:$C,E34,ResumenCotizacion!$P:$P) -> 0 | W34: =IF(H34="USD",S34*SolCotizacion!$J$18,S34) -> 370617.6939 | X34: =ROUND(W34/(1-VLOOKUP("Total porcentaje:",ResumenCotizacion!$F:$H,3,0)),2) -> 384458.19 | Y34: 0
A35: Catalogo principalOPEN-CSP GOBIERNO381-02592 | B35: 381-02592OPEN-CSP GOBIERNO | D35: Catalogo principal | E35: 381-02592 | F35: OPEN-CSP GOBIERNO | G35: Catalogo principal | H35: USD | I35: N/A | J35: Microsoft®ExchangeStandardCAL License/SoftwareAssurancePack Government OLP 1License NoLevel UsrCAL | K35: Unidad | L35: Und | M35: Producto | N35: N/A | O35: N/A | P35: N/A | Q35: 381-02592 | R35: Licencia | S35: 130.81 | T35: 1 | U35: 1 | V35: =SUMIF(ResumenCotizacion!$C:$C,E35,ResumenCotizacion!$P:$P) -> 0 | W35: =IF(H35="USD",S35*SolCotizacion!$J$18,S35) -> 479482.7469 | X35: =ROUND(W35/(1-VLOOKUP("Total porcentaje:",ResumenCotizacion!$F:$H,3,0)),2) -> 497388.74 | Y35: 0
A36: Catalogo principalOPEN-CSP GOBIERNO381-04507 | B36: 381-04507OPEN-CSP GOBIERNO | D36: Catalogo principal | E36: 381-04507 | F36: OPEN-CSP GOBIERNO | G36: Catalogo principal | H36: USD | I36: N/A | J36: Microsoft®ExchangeStandardCAL 2019 Government OLP 1License NoLevel DvcCAL | K36: Unidad | L36: Und | M36: Producto | N36: N/A | O36: N/A | P36: N/A | Q36: 381-04507 | R36: Licencia | S36: 67.37 | T36: 1 | U36: 1 | V36: =SUMIF(ResumenCotizacion!$C:$C,E36,ResumenCotizacion!$P:$P) -> 0 | W36: =IF(H36="USD",S36*SolCotizacion!$J$18,S36) -> 246944.0613 | X36: =ROUND(W36/(1-VLOOKUP("Total porcentaje:",ResumenCotizacion!$F:$H,3,0)),2) -> 256166.04 | Y36: 0
A37: Catalogo principalOPEN-CSP GOBIERNO381-04508 | B37: 381-04508OPEN-CSP GOBIERNO | D37: Catalogo principal | E37: 381-04508 | F37: OPEN-CSP GOBIERNO | G37: Catalogo principal | H37: USD | I37: N/A | J37: Microsoft®ExchangeStandardCAL 2019 Government OLP 1License NoLevel UsrCAL | K37: Unidad | L37: Und | M37: Producto | N37: N/A | O37: N/A | P37: N/A | Q37: 381-04508 | R37: Licencia | S37: 87.17 | T37: 1 | U37: 1 | V37: =SUMIF(ResumenCotizacion!$C:$C,E37,ResumenCotizacion!$P:$P) -> 0 | W37: =IF(H37="USD",S37*SolCotizacion!$J$18,S37) -> 319520.7633 | X37: =ROUND(W37/(1-VLOOKUP("Total porcentaje:",ResumenCotizacion!$F:$H,3,0)),2) -> 331453.07 | Y37: 0
A38: Catalogo principalOPEN-CSP GOBIERNO395-03180 | B38: 395-03180OPEN-CSP GOBIERNO | D38: Catalogo principal | E38: 395-03180 | F38: OPEN-CSP GOBIERNO | G38: Catalogo principal | H38: USD | I38: N/A | J38: Microsoft®ExchangeServerEnterprise License/SoftwareAssurancePack Government OLP 1License NoLevel | K38: Unidad | L38: Und | M38: Producto | N38: N/A | O38: N/A | P38: N/A | Q38: 395-03180 | R38: Licencia | S38: 6121.31 | T38: 1 | U38: 1 | V38: =SUMIF(ResumenCotizacion!$C:$C,E38,ResumenCotizacion!$P:$P) -> 0 | W38: =IF(H38="USD",S38*SolCotizacion!$J$18,S38) -> 22437600.59 | X38: =ROUND(W38/(1-VLOOKUP("Total porcentaje:",ResumenCotizacion!$F:$H,3,0)),2) -> 23275519.29 | Y38: 0
A39: Catalogo principalOPEN-CSP GOBIERNO395-03181 | B39: 395-03181OPEN-CSP GOBIERNO | D39: Catalogo principal | E39: 395-03181 | F39: OPEN-CSP GOBIERNO | G39: Catalogo principal | H39: USD | I39: N/A | J39: Microsoft®ExchangeServerEnterprise SoftwareAssurance Government OLP 1License NoLevel | K39: Unidad | L39: Und | M39: Producto | N39: N/A | O39: N/A | P39: N/A | Q39: 395-03181 | R39: Licencia | S39: 2040.52 | T39: 1 | U39: 1 | V39: =SUMIF(ResumenCotizacion!$C:$C,E39,ResumenCotizacion!$P:$P) -> 0 | W39: =IF(H39="USD",S39*SolCotizacion!$J$18,S39) -> 7479505.655 | X39: =ROUND(W39/(1-VLOOKUP("Total porcentaje:",ResumenCotizacion!$F:$H,3,0)),2) -> 7758823.29 | Y39: 0
A40: Catalogo principalOPEN-CSP GOBIERNO395-04612 | B40: 395-04612OPEN-CSP GOBIERNO | D40: Catalogo principal | E40: 395-04612 | F40: OPEN-CSP GOBIERNO | G40: Catalogo principal | H40: USD | I40: N/A | J40: Microsoft®ExchangeServerEnterprise 2019 Government OLP 1License NoLevel | K40: Unidad | L40: Und | M40: Producto | N40: N/A | O40: N/A | P40: N/A | Q40: 395-04612 | R40: Licencia | S40: 4080.79 | T40: 1 | U40: 1 | V40: =SUMIF(ResumenCotizacion!$C:$C,E40,ResumenCotizacion!$P:$P) -> 0 | W40: =IF(H40="USD",S40*SolCotizacion!$J$18,S40) -> 14958094.94 | X40: =ROUND(W40/(1-VLOOKUP("Total porcentaje:",ResumenCotizacion!$F:$H,3,0)),2) -> 15516695.99 | Y40: 0
A41: Catalogo principalOPEN-CSP GOBIERNO3LN-00010 | B41: 3LN-00010OPEN-CSP GOBIERNO | D41: Catalogo principal | E41: 3LN-00010 | F41: OPEN-CSP GOBIERNO | G41: Catalogo principal | H41: USD | I41: N/A | J41: Microsoft®IntuneOpen ShrdSvr MonthlySubscriptions-VolumeLicense Government OLP 1License NoLevel Qualified Annual | K41: Unidad | L41: Und | M41: Producto | N41: N/A | O41: N/A | P41: N/A | Q41: 3LN-00010 | R41: Suscripción Anual | S41: 72 | T41: 1 | U41: 1 | V41: =SUMIF(ResumenCotizacion!$C:$C,E41,ResumenCotizacion!$P:$P) -> 0 | W41: =IF(H41="USD",S41*SolCotizacion!$J$18,S41) -> 263915.28 | X41: =ROUND(W41/(1-VLOOKUP("Total porcentaje:",ResumenCotizacion!$F:$H,3,0)),2) -> 273771.04 | Y41: 0
A42: Catalogo principalOPEN-CSP GOBIERNO3ND-00436 | B42: 3ND-00436OPEN-CSP GOBIERNO | D42: Catalogo principal | E42: 3ND-00436 | F42: OPEN-CSP GOBIERNO | G42: Catalogo principal | H42: USD | I42: N/A | J42: Microsoft®SysCtrServiceMgrCltMgmtLic License/SoftwareAssurancePack Government OLP 1License NoLevel PerOSE | K42: Unidad | L42: Und | M42: Producto | N42: N/A | O42: N/A | P42: N/A | Q42: 3ND-00436 | R42: Licencia | S42: 27.29 | T42: 1 | U42: 1 | V42: =SUMIF(ResumenCotizacion!$C:$C,E42,ResumenCotizacion!$P:$P) -> 0 | W42: =IF(H42="USD",S42*SolCotizacion!$J$18,S42) -> 100031.2221 | X42: =ROUND(W42/(1-VLOOKUP("Total porcentaje:",ResumenCotizacion!$F:$H,3,0)),2) -> 103766.83 | Y42: 0
A43: Catalogo principalOPEN-CSP GOBIERNO3ND-00437 | B43: 3ND-00437OPEN-CSP GOBIERNO | D43: Catalogo principal | E43: 3ND-00437 | F43: OPEN-CSP GOBIERNO | G43: Catalogo principal | H43: USD | I43: N/A | J43: Microsoft®SysCtrServiceMgrCltMgmtLic License/SoftwareAssurancePack Government OLP 1License NoLevel PerUsr | K43: Unidad | L43: Und | M43: Producto | N43: N/A | O43: N/A | P43: N/A | Q43: 3ND-00437 | R43: Licencia | S43: 35.5 | T43: 1 | U43: 1 | V43: =SUMIF(ResumenCotizacion!$C:$C,E43,ResumenCotizacion!$P:$P) -> 0 | W43: =IF(H43="USD",S43*SolCotizacion!$J$18,S43) -> 130124.895 | X43: =ROUND(W43/(1-VLOOKUP("Total porcentaje:",ResumenCotizacion!$F:$H,3,0)),2) -> 134984.33 | Y43: 0
A44: Catalogo principalOPEN-CSP GOBIERNO3ND-00438 | B44: 3ND-00438OPEN-CSP GOBIERNO | D44: Catalogo principal | E44: 3ND-00438 | F44: OPEN-CSP GOBIERNO | G44: Catalogo principal | H44: USD | I44: N/A | J44: Microsoft®SysCtrServiceMgrCltMgmtLic SoftwareAssurance Government OLP 1License NoLevel PerOSE | K44: Unidad | L44: Und | M44: Producto | N44: N/A | O44: N/A | P44: N/A | Q44: 3ND-00438 | R44: Licencia | S44: 9.05 | T44: 1 | U44: 1 | V44: =SUMIF(ResumenCotizacion!$C:$C,E44,ResumenCotizacion!$P:$P) -> 0 | W44: =IF(H44="USD",S44*SolCotizacion!$J$18,S44) -> 33172.6845 | X44: =ROUND(W44/(1-VLOOKUP("Total porcentaje:",ResumenCotizacion!$F:$H,3,0)),2) -> 34411.5 | Y44: 0
A45: Catalogo principalOPEN-CSP GOBIERNO3ND-00439 | B45: 3ND-00439OPEN-CSP GOBIERNO | D45: Catalogo principal | E45: 3ND-00439 | F45: OPEN-CSP GOBIERNO | G45: Catalogo principal | H45: USD | I45: N/A | J45: Microsoft®SysCtrServiceMgrCltMgmtLic SoftwareAssurance Government OLP 1License NoLevel PerUsr | K45: Unidad | L45: Und | M45: Producto | N45: N/A | O45: N/A | P45: N/A | Q45: 3ND-00439 | R45: Licencia | S45: 11.79 | T45: 1 | U45: 1 | V45: =SUMIF(ResumenCotizacion!$C:$C,E45,ResumenCotizacion!$P:$P) -> 0 | W45: =IF(H45="USD",S45*SolCotizacion!$J$18,S45) -> 43216.1271 | X45: =ROUND(W45/(1-VLOOKUP("Total porcentaje:",ResumenCotizacion!$F:$H,3,0)),2) -> 44830.01 | Y45: 0
A46: Catalogo principalOPEN-CSP GOBIERNO3NN-00024 | B46: 3NN-00024OPEN-CSP GOBIERNO | D46: Catalogo principal | E46: 3NN-00024 | F46: OPEN-CSP GOBIERNO | G46: Catalogo principal | H46: USD | I46: N/A | J46: Microsoft®OneDriveforBusinessPlan1Open ShrdSvr MonthlySubscriptions-VolumeLicense Government OLP 1License NoLevel Qualified Annual | K46: Unidad | L46: Und | M46: Producto | N46: N/A | O46: N/A | P46: N/A | Q46: 3NN-00024 | R46: Suscripción Anual | S46: 60 | T46: 1 | U46: 1 | V46: =SUMIF(ResumenCotizacion!$C:$C,E46,ResumenCotizacion!$P:$P) -> 0 | W46: =IF(H46="USD",S46*SolCotizacion!$J$18,S46) -> 219929.4 | X46: =ROUND(W46/(1-VLOOKUP("Total porcentaje:",ResumenCotizacion!$F:$H,3,0)),2) -> 228142.53 | Y46: 0
A47: Catalogo principalOPEN-CSP GOBIERNO3PP-00006 | B47: 3PP-00006OPEN-CSP GOBIERNO | D47: Catalogo principal | E47: 3PP-00006 | F47: OPEN-CSP GOBIERNO | G47: Catalogo principal | H47: USD | I47: N/A | J47: Microsoft®ProjOnlineEssentialsOpen ShrdSvr MonthlySubscriptions-VolumeLicense Government OLP 1License NoLevel Qualified Annual | K47: Unidad | L47: Und | M47: Producto | N47: N/A | O47: N/A | P47: N/A | Q47: 3PP-00006 | R47: Suscripción Anual | S47: 84 | T47: 1 | U47: 1 | V47: =SUMIF(ResumenCotizacion!$C:$C,E47,ResumenCotizacion!$P:$P) -> 0 | W47: =IF(H47="USD",S47*SolCotizacion!$J$18,S47) -> 307901.16 | X47: =ROUND(W47/(1-VLOOKUP("Total porcentaje:",ResumenCotizacion!$F:$H,3,0)),2) -> 319399.54 | Y47: 0
A48: Catalogo principalOPEN-CSP GOBIERNO3VU-00089 | B48: 3VU-00089OPEN-CSP GOBIERNO | D48: Catalogo principal | E48: 3VU-00089 | F48: OPEN-CSP GOBIERNO | G48: Catalogo principal | H48: USD | I48: N/A | J48: Microsoft®MSDNPlatforms License/SoftwareAssurancePack Government OLP 1License NoLevel Qualified | K48: Unidad | L48: Und | M48: Producto | N48: N/A | O48: N/A | P48: N/A | Q48: 3VU-00089 | R48: Licencia | S48: 2434.39 | T48: 1 | U48: 1 | V48: =SUMIF(ResumenCotizacion!$C:$C,E48,ResumenCotizacion!$P:$P) -> 0 | W48: =IF(H48="USD",S48*SolCotizacion!$J$18,S48) -> 8923232.201 | X48: =ROUND(W48/(1-VLOOKUP("Total porcentaje:",ResumenCotizacion!$F:$H,3,0)),2) -> 9256464.94 | Y48: 0
A49: Catalogo principalOPEN-CSP GOBIERNO3VU-00090 | B49: 3VU-00090OPEN-CSP GOBIERNO | D49: Catalogo principal | E49: 3VU-00090 | F49: OPEN-CSP GOBIERNO | G49: Catalogo principal | H49: USD | I49: N/A | J49: Microsoft®MSDNPlatforms SoftwareAssurance Government OLP 1License NoLevel Qualified | K49: Unidad | L49: Und | M49: Producto | N49: N/A | O49: N/A | P49: N/A | Q49: 3VU-00090 | R49: Licencia | S49: 2434.39 | T49: 1 | U49: 1 | V49: =SUMIF(ResumenCotizacion!$C:$C,E49,ResumenCotizacion!$P:$P) -> 0 | W49: =IF(H49="USD",S49*SolCotizacion!$J$18,S49) -> 8923232.201 | X49: =ROUND(W49/(1-VLOOKUP("Total porcentaje:",ResumenCotizacion!$F:$H,3,0)),2) -> 9256464.94 | Y49: 0
A50: Catalogo principalOPEN-CSP GOBIERNO3YF-00123 | B50: 3YF-00123OPEN-CSP GOBIERNO | D50: Catalogo principal | E50: 3YF-00123 | F50: OPEN-CSP GOBIERNO | G50: Catalogo principal | H50: USD | I50: N/A | J50: Microsoft®OfficeMacStandard License/SoftwareAssurancePack Government OLP 1License NoLevel | K50: Unidad | L50: Und | M50: Producto | N50: N/A | O50: N/A | P50: N/A | Q50: 3YF-00123 | R50: Licencia | S50: 591.76 | T50: 1 | U50: 1 | V50: =SUMIF(ResumenCotizacion!$C:$C,E50,ResumenCotizacion!$P:$P) -> 0 | W50: =IF(H50="USD",S50*SolCotizacion!$J$18,S50) -> 2169090.362 | X50: =ROUND(W50/(1-VLOOKUP("Total porcentaje:",ResumenCotizacion!$F:$H,3,0)),2) -> 2250093.74 | Y50: 0
A51: Catalogo principalOPEN-CSP GOBIERNO3YF-00124 | B51: 3YF-00124OPEN-CSP GOBIERNO | D51: Catalogo principal | E51: 3YF-00124 | F51: OPEN-CSP GOBIERNO | G51: Catalogo principal | H51: USD | I51: N/A | J51: Microsoft®OfficeMacStandard SoftwareAssurance Government OLP 1License NoLevel | K51: Unidad | L51: Und | M51: Producto | N51: N/A | O51: N/A | P51: N/A | Q51: 3YF-00124 | R51: Licencia | S51: 217.2 | T51: 1 | U51: 1 | V51: =SUMIF(ResumenCotizacion!$C:$C,E51,ResumenCotizacion!$P:$P) -> 0 | W51: =IF(H51="USD",S51*SolCotizacion!$J$18,S51) -> 796144.428 | X51: =ROUND(W51/(1-VLOOKUP("Total porcentaje:",ResumenCotizacion!$F:$H,3,0)),2) -> 825875.96 | Y51: 0
A52: Catalogo principalOPEN-CSP GOBIERNO3YF-00661 | B52: 3YF-00661OPEN-CSP GOBIERNO | D52: Catalogo principal | E52: 3YF-00661 | F52: OPEN-CSP GOBIERNO | G52: Catalogo principal | H52: USD | I52: N/A | J52: Microsoft®OfficeMacStandard 2019 Government OLP 1License NoLevel | K52: Unidad | L52: Und | M52: Producto | N52: N/A | O52: N/A | P52: N/A | Q52: 3YF-00661 | R52: Licencia | S52: 374.56 | T52: 1 | U52: 1 | V52: =SUMIF(ResumenCotizacion!$C:$C,E52,ResumenCotizacion!$P:$P) -> 0 | W52: =IF(H52="USD",S52*SolCotizacion!$J$18,S52) -> 1372945.934 | X52: =ROUND(W52/(1-VLOOKUP("Total porcentaje:",ResumenCotizacion!$F:$H,3,0)),2) -> 1424217.77 | Y52: 0
A53: Catalogo principalOPEN-CSP GOBIERNO3ZK-00165 | B53: 3ZK-00165OPEN-CSP GOBIERNO | D53: Catalogo principal | E53: 3ZK-00165 | F53: OPEN-CSP GOBIERNO | G53: Catalogo principal | H53: USD | I53: N/A | J53: Microsoft®SysCtrOrchestratorSvr License/SoftwareAssurancePack Government OLP 1License NoLevel PerOSE | K53: Unidad | L53: Und | M53: Producto | N53: N/A | O53: N/A | P53: N/A | Q53: 3ZK-00165 | R53: Licencia | S53: 27.29 | T53: 1 | U53: 1 | V53: =SUMIF(ResumenCotizacion!$C:$C,E53,ResumenCotizacion!$P:$P) -> 0 | W53: =IF(H53="USD",S53*SolCotizacion!$J$18,S53) -> 100031.2221 | X53: =ROUND(W53/(1-VLOOKUP("Total porcentaje:",ResumenCotizacion!$F:$H,3,0)),2) -> 103766.83 | Y53: 0
A54: Catalogo principalOPEN-CSP GOBIERNO3ZK-00166 | B54: 3ZK-00166OPEN-CSP GOBIERNO | D54: Catalogo principal | E54: 3ZK-00166 | F54: OPEN-CSP GOBIERNO | G54: Catalogo principal | H54: USD | I54: N/A | J54: Microsoft®SysCtrOrchestratorSvr License/SoftwareAssurancePack Government OLP 1License NoLevel PerUsr | K54: Unidad | L54: Und | M54: Producto | N54: N/A | O54: N/A | P54: N/A | Q54: 3ZK-00166 | R54: Licencia | S54: 35.5 | T54: 1 | U54: 1 | V54: =SUMIF(ResumenCotizacion!$C:$C,E54,ResumenCotizacion!$P:$P) -> 0 | W54: =IF(H54="USD",S54*SolCotizacion!$J$18,S54) -> 130124.895 | X54: =ROUND(W54/(1-VLOOKUP("Total porcentaje:",ResumenCotizacion!$F:$H,3,0)),2) -> 134984.33 | Y54: 0
A55: Catalogo principalOPEN-CSP GOBIERNO3ZK-00167 | B55: 3ZK-00167OPEN-CSP GOBIERNO | D55: Catalogo principal | E55: 3ZK-00167 | F55: OPEN-CSP GOBIERNO | G55: Catalogo principal | H55: USD | I55: N/A | J55: Microsoft®SysCtrOrchestratorSvr SoftwareAssurance Government OLP 1License NoLevel PerOSE | K55: Unidad | L55: Und | M55: Producto | N55: N/A | O55: N/A | P55: N/A | Q55: 3ZK-00167 | R55: Licencia | S55: 9.05 | T55: 1 | U55: 1 | V55: =SUMIF(ResumenCotizacion!$C:$C,E55,ResumenCotizacion!$P:$P) -> 0 | W55: =IF(H55="USD",S55*SolCotizacion!$J$18,S55) -> 33172.6845 | X55: =ROUND(W55/(1-VLOOKUP("Total porcentaje:",ResumenCotizacion!$F:$H,3,0)),2) -> 34411.5 | Y55: 0
A56: Catalogo principalOPEN-CSP GOBIERNO3ZK-00168 | B56: 3ZK-00168OPEN-CSP GOBIERNO | D56: Catalogo principal | E56: 3ZK-00168 | F56: OPEN-CSP GOBIERNO | G56: Catalogo principal | H56: USD | I56: N/A | J56: Microsoft®SysCtrOrchestratorSvr SoftwareAssurance Government OLP 1License NoLevel PerUsr | K56: Unidad | L56: Und | M56: Producto | N56: N/A | O56: N/A | P56: N/A | Q56: 3ZK-00168 | R56: Licencia | S56: 11.79 | T56: 1 | U56: 1 | V56: =SUMIF(ResumenCotizacion!$C:$C,E56,ResumenCotizacion!$P:$P) -> 0 | W56: =IF(H56="USD",S56*SolCotizacion!$J$18,S56) -> 43216.1271 | X56: =ROUND(W56/(1-VLOOKUP("Total porcentaje:",ResumenCotizacion!$F:$H,3,0)),2) -> 44830.01 | Y56: 0
A57: Catalogo principalOPEN-CSP GOBIERNO5A5-00006 | B57: 5A5-00006OPEN-CSP GOBIERNO | D57: Catalogo principal | E57: 5A5-00006 | F57: OPEN-CSP GOBIERNO | G57: Catalogo principal | H57: USD | I57: N/A | J57: Microsoft®O365ExtraFileStorageOpen ShrdSvr MonthlySubscriptions-VolumeLicense Government OLP 1License NoLevel Addon Qualified Annual | K57: Unidad | L57: Und | M57: Producto | N57: N/A | O57: N/A | P57: N/A | Q57: 5A5-00006 | R57: Suscripción Anual | S57: 2.9 | T57: 1 | U57: 1 | V57: =SUMIF(ResumenCotizacion!$C:$C,E57,ResumenCotizacion!$P:$P) -> 0 | W57: =IF(H57="USD",S57*SolCotizacion!$J$18,S57) -> 10629.921 | X57: =ROUND(W57/(1-VLOOKUP("Total porcentaje:",ResumenCotizacion!$F:$H,3,0)),2) -> 11026.89 | Y57: 0
A58: Catalogo principalOPEN-CSP GOBIERNO5A9-00006 | B58: 5A9-00006OPEN-CSP GOBIERNO | D58: Catalogo principal | E58: 5A9-00006 | F58: OPEN-CSP GOBIERNO | G58: Catalogo principal | H58: USD | I58: N/A | J58: Microsoft®EOAforExchangeOnlineOpen ShrdSvr MonthlySubscriptions-VolumeLicense Government OLP 1License NoLevel Addon Qualified Annual | K58: Unidad | L58: Und | M58: Producto | N58: N/A | O58: N/A | P58: N/A | Q58: 5A9-00006 | R58: Suscripción Anual | S58: 31.6 | T58: 1 | U58: 1 | V58: =SUMIF(ResumenCotizacion!$C:$C,E58,ResumenCotizacion!$P:$P) -> 0 | W58: =IF(H58="USD",S58*SolCotizacion!$J$18,S58) -> 115829.484 | X58: =ROUND(W58/(1-VLOOKUP("Total porcentaje:",ResumenCotizacion!$F:$H,3,0)),2) -> 120155.07 | Y58: 0
A59: Catalogo principalOPEN-CSP GOBIERNO5HK-00288 | B59: 5HK-00288OPEN-CSP GOBIERNO | D59: Catalogo principal | E59: 5HK-00288 | F59: OPEN-CSP GOBIERNO | G59: Catalogo principal | H59: USD | I59: N/A | J59: Microsoft®LyncMac License/SoftwareAssurancePack Government OLP 1License NoLevel | K59: Unidad | L59: Und | M59: Producto | N59: N/A | O59: N/A | P59: N/A | Q59: 5HK-00288 | R59: Licencia | S59: 48.33 | T59: 1 | U59: 1 | V59: =SUMIF(ResumenCotizacion!$C:$C,E59,ResumenCotizacion!$P:$P) -> 0 | W59: =IF(H59="USD",S59*SolCotizacion!$J$18,S59) -> 177153.1317 | X59: =ROUND(W59/(1-VLOOKUP("Total porcentaje:",ResumenCotizacion!$F:$H,3,0)),2) -> 183768.81 | Y59: 0
A60: Catalogo principalOPEN-CSP GOBIERNO5HK-00289 | B60: 5HK-00289OPEN-CSP GOBIERNO | D60: Catalogo principal | E60: 5HK-00289 | F60: OPEN-CSP GOBIERNO | G60: Catalogo principal | H60: USD | I60: N/A | J60: Microsoft®LyncMac SoftwareAssurance Government OLP 1License NoLevel | K60: Unidad | L60: Und | M60: Producto | N60: N/A | O60: N/A | P60: N/A | Q60: 5HK-00289 | R60: Licencia | S60: 17.65 | T60: 1 | U60: 1 | V60: =SUMIF(ResumenCotizacion!$C:$C,E60,ResumenCotizacion!$P:$P) -> 0 | W60: =IF(H60="USD",S60*SolCotizacion!$J$18,S60) -> 64695.8985 | X60: =ROUND(W60/(1-VLOOKUP("Total porcentaje:",ResumenCotizacion!$F:$H,3,0)),2) -> 67111.93 | Y60: 0
A61: Catalogo principalOPEN-CSP GOBIERNO5HK-00290 | B61: 5HK-00290OPEN-CSP GOBIERNO | D61: Catalogo principal | E61: 5HK-00290 | F61: OPEN-CSP GOBIERNO | G61: Catalogo principal | H61: USD | I61: N/A | J61: Microsoft®LyncMac 2011 Government OLP 1License NoLevel | K61: Unidad | L61: Und | M61: Producto | N61: N/A | O61: N/A | P61: N/A | Q61: 5HK-00290 | R61: Licencia | S61: 30.68 | T61: 1 | U61: 1 | V61: =SUMIF(ResumenCotizacion!$C:$C,E61,ResumenCotizacion!$P:$P) -> 0 | W61: =IF(H61="USD",S61*SolCotizacion!$J$18,S61) -> 112457.2332 | X61: =ROUND(W61/(1-VLOOKUP("Total porcentaje:",ResumenCotizacion!$F:$H,3,0)),2) -> 116656.88 | Y61: 0
A62: Catalogo principalOPEN-CSP GOBIERNO5HU-00285 | B62: 5HU-00285OPEN-CSP GOBIERNO | D62: Catalogo principal | E62: 5HU-00285 | F62: OPEN-CSP GOBIERNO | G62: Catalogo principal | H62: USD | I62: N/A | J62: Microsoft®SfBServer License/SoftwareAssurancePack Government OLP 1License NoLevel | K62: Unidad | L62: Und | M62: Producto | N62: N/A | O62: N/A | P62: N/A | Q62: 5HU-00285 | R62: Licencia | S62: 5509.21 | T62: 1 | U62: 1 | V62: =SUMIF(ResumenCotizacion!$C:$C,E62,ResumenCotizacion!$P:$P) -> 0 | W62: =IF(H62="USD",S62*SolCotizacion!$J$18,S62) -> 20193954.16 | X62: =ROUND(W62/(1-VLOOKUP("Total porcentaje:",ResumenCotizacion!$F:$H,3,0)),2) -> 20948085.23 | Y62: 0
A63: Catalogo principalOPEN-CSP GOBIERNO5HU-00286 | B63: 5HU-00286OPEN-CSP GOBIERNO | D63: Catalogo principal | E63: 5HU-00286 | F63: OPEN-CSP GOBIERNO | G63: Catalogo principal | H63: USD | I63: N/A | J63: Microsoft®SfBServer SoftwareAssurance Government OLP 1License NoLevel | K63: Unidad | L63: Und | M63: Producto | N63: N/A | O63: N/A | P63: N/A | Q63: 5HU-00286 | R63: Licencia | S63: 1836.48 | T63: 1 | U63: 1 | V63: =SUMIF(ResumenCotizacion!$C:$C,E63,ResumenCotizacion!$P:$P) -> 0 | W63: =IF(H63="USD",S63*SolCotizacion!$J$18,S63) -> 6731599.075 | X63: =ROUND(W63/(1-VLOOKUP("Total porcentaje:",ResumenCotizacion!$F:$H,3,0)),2) -> 6982986.59 | Y63: 0
A64: Catalogo principalOPEN-CSP GOBIERNO5HU-00418 | B64: 5HU-00418OPEN-CSP GOBIERNO | D64: Catalogo principal | E64: 5HU-00418 | F64: OPEN-CSP GOBIERNO | G64: Catalogo principal | H64: USD | I64: N/A | J64: Microsoft®SfBServer 2019 Government OLP 1License NoLevel | K64: Unidad | L64: Und | M64: Producto | N64: N/A | O64: N/A | P64: N/A | Q64: 5HU-00418 | R64: Licencia | S64: 3672.72 | T64: 1 | U64: 1 | V64: =SUMIF(ResumenCotizacion!$C:$C,E64,ResumenCotizacion!$P:$P) -> 0 | W64: =IF(H64="USD",S64*SolCotizacion!$J$18,S64) -> 13462318.43 | X64: =ROUND(W64/(1-VLOOKUP("Total porcentaje:",ResumenCotizacion!$F:$H,3,0)),2) -> 13965060.61 | Y64: 0
A65: Catalogo principalOPEN-CSP GOBIERNO6VC-01217 | B65: 6VC-01217OPEN-CSP GOBIERNO | D65: Catalogo principal | E65: 6VC-01217 | F65: OPEN-CSP GOBIERNO | G65: Catalogo principal | H65: USD | I65: N/A | J65: Microsoft®WinRmtDsktpSvcsCAL License/SoftwareAssurancePack Government OLP 1License NoLevel DvcCAL | K65: Unidad | L65: Und | M65: Producto | N65: N/A | O65: N/A | P65: N/A | Q65: 6VC-01217 | R65: Licencia | S65: 164.31 | T65: 1 | U65: 1 | V65: =SUMIF(ResumenCotizacion!$C:$C,E65,ResumenCotizacion!$P:$P) -> 0 | W65: =IF(H65="USD",S65*SolCotizacion!$J$18,S65) -> 602276.6619 | X65: =ROUND(W65/(1-VLOOKUP("Total porcentaje:",ResumenCotizacion!$F:$H,3,0)),2) -> 624768.32 | Y65: 0
A66: =D66&F66&E66 -> Catalogo principalOPEN-CSP GOBIERNO6VC-01218 | B66: =E66&F66 -> 6VC-01218OPEN-CSP GOBIERNO | D66: Catalogo principal | E66: 6VC-01218 | F66: OPEN-CSP GOBIERNO | G66: Catalogo principal | H66: USD | I66: N/A | J66: Microsoft®WinRmtDsktpSvcsCAL License/SoftwareAssurancePack Government OLP 1License NoLevel UsrCAL | K66: Unidad | L66: Und | M66: Producto | N66: N/A | O66: N/A | P66: N/A | Q66: =+E66 -> 6VC-01218 | R66: Licencia | S66: 197.64 | T66: 1 | U66: 1 | V66: =SUMIF(ResumenCotizacion!$C:$C,E66,ResumenCotizacion!$P:$P) -> 0 | W66: =IF(H66="USD",S66*SolCotizacion!$J$18,S66) -> 724447.4436 | X66: =ROUND(W66/(1-VLOOKUP("Total porcentaje:",ResumenCotizacion!$F:$H,3,0)),2) -> 751501.5 | Y66: 0
A67: Catalogo principalOPEN-CSP GOBIERNO6VC-01219 | B67: 6VC-01219OPEN-CSP GOBIERNO | D67: Catalogo principal | E67: 6VC-01219 | F67: OPEN-CSP GOBIERNO | G67: Catalogo principal | H67: USD | I67: N/A | J67: Microsoft®WinRmtDsktpSvcsCAL SoftwareAssurance Government OLP 1License NoLevel DvcCAL | K67: Unidad | L67: Und | M67: Producto | N67: N/A | O67: N/A | P67: N/A | Q67: 6VC-01219 | R67: Licencia | S67: 54.81 | T67: 1 | U67: 1 | V67: =SUMIF(ResumenCotizacion!$C:$C,E67,ResumenCotizacion!$P:$P) -> 0 | W67: =IF(H67="USD",S67*SolCotizacion!$J$18,S67) -> 200905.5069 | X67: =ROUND(W67/(1-VLOOKUP("Total porcentaje:",ResumenCotizacion!$F:$H,3,0)),2) -> 208408.2 | Y67: =V67*X67 -> 0
A68: Catalogo principalOPEN-CSP GOBIERNO6VC-01220 | B68: 6VC-01220OPEN-CSP GOBIERNO | D68: Catalogo principal | E68: 6VC-01220 | F68: OPEN-CSP GOBIERNO | G68: Catalogo principal | H68: USD | I68: N/A | J68: Microsoft®WinRmtDsktpSvcsCAL SoftwareAssurance Government OLP 1License NoLevel UsrCAL | K68: Unidad | L68: Und | M68: Producto | N68: N/A | O68: N/A | P68: N/A | Q68: 6VC-01220 | R68: Licencia | S68: 65.92 | T68: 1 | U68: 1 | V68: =SUMIF(ResumenCotizacion!$C:$C,E68,ResumenCotizacion!$P:$P) -> 0 | W68: =IF(H68="USD",S68*SolCotizacion!$J$18,S68) -> 241629.1008 | X68: =ROUND(W68/(1-VLOOKUP("Total porcentaje:",ResumenCotizacion!$F:$H,3,0)),2) -> 250652.59 | Y68: 0
A69: Catalogo principalOPEN-CSP GOBIERNO6VC-03765 | B69: 6VC-03765OPEN-CSP GOBIERNO | D69: Catalogo principal | E69: 6VC-03765 | F69: OPEN-CSP GOBIERNO | G69: Catalogo principal | H69: USD | I69: N/A | J69: Microsoft®WinRmtDsktpSvcsCAL 2019 Government OLP 1License NoLevel DvcCAL | K69: Unidad | L69: Und | M69: Producto | N69: N/A | O69: N/A | P69: N/A | Q69: 6VC-03765 | R69: Licencia | S69: 109.5 | T69: 1 | U69: 1 | V69: =SUMIF(ResumenCotizacion!$C:$C,E69,ResumenCotizacion!$P:$P) -> 0 | W69: =IF(H69="USD",S69*SolCotizacion!$J$18,S69) -> 401371.155 | X69: =ROUND(W69/(1-VLOOKUP("Total porcentaje:",ResumenCotizacion!$F:$H,3,0)),2) -> 416360.12 | Y69: 0
A70: Catalogo principalOPEN-CSP GOBIERNO6VC-03766 | B70: 6VC-03766OPEN-CSP GOBIERNO | D70: Catalogo principal | E70: 6VC-03766 | F70: OPEN-CSP GOBIERNO | G70: Catalogo principal | H70: USD | I70: N/A | J70: Microsoft®WinRmtDsktpSvcsCAL 2019 Government OLP 1License NoLevel UsrCAL | K70: Unidad | L70: Und | M70: Producto | N70: N/A | O70: N/A | P70: N/A | Q70: 6VC-03766 | R70: Licencia | S70: 131.72 | T70: 1 | U70: 1 | V70: =SUMIF(ResumenCotizacion!$C:$C,E70,ResumenCotizacion!$P:$P) -> 0 | W70: =IF(H70="USD",S70*SolCotizacion!$J$18,S70) -> 482818.3428 | X70: =ROUND(W70/(1-VLOOKUP("Total porcentaje:",ResumenCotizacion!$F:$H,3,0)),2) -> 500848.9 | Y70: 0
A71: Catalogo principalOPEN-CSP GOBIERNO6XC-00281 | B71: 6XC-00281OPEN-CSP GOBIERNO | D71: Catalogo principal | E71: 6XC-00281 | F71: OPEN-CSP GOBIERNO | G71: Catalogo principal | H71: USD | I71: N/A | J71: Microsoft®WinRmtDsktpSvcsExtConn License/SoftwareAssurancePack Government OLP 1License NoLevel Qualified | K71: Unidad | L71: Und | M71: Producto | N71: N/A | O71: N/A | P71: N/A | Q71: 6XC-00281 | R71: Licencia | S71: 16626.26 | T71: 1 | U71: 1 | V71: =SUMIF(ResumenCotizacion!$C:$C,E71,ResumenCotizacion!$P:$P) -> 0 | W71: =IF(H71="USD",S71*SolCotizacion!$J$18,S71) -> 60943389.77 | X71: =ROUND(W71/(1-VLOOKUP("Total porcentaje:",ResumenCotizacion!$F:$H,3,0)),2) -> 63219283.99 | Y71: 0
A72: Catalogo principalOPEN-CSP GOBIERNO6XC-00282 | B72: 6XC-00282OPEN-CSP GOBIERNO | D72: Catalogo principal | E72: 6XC-00282 | F72: OPEN-CSP GOBIERNO | G72: Catalogo principal | H72: USD | I72: N/A | J72: Microsoft®WinRmtDsktpSvcsExtConn SoftwareAssurance Government OLP 1License NoLevel Qualified | K72: Unidad | L72: Und | M72: Producto | N72: N/A | O72: N/A | P72: N/A | Q72: 6XC-00282 | R72: Licencia | S72: 5542.04 | T72: 1 | U72: 1 | V72: =SUMIF(ResumenCotizacion!$C:$C,E72,ResumenCotizacion!$P:$P) -> 0 | W72: =IF(H72="USD",S72*SolCotizacion!$J$18,S72) -> 20314292.2 | X72: =ROUND(W72/(1-VLOOKUP("Total porcentaje:",ResumenCotizacion!$F:$H,3,0)),2) -> 21072917.22 | Y72: 0
A73: Catalogo principalOPEN-CSP GOBIERNO6XC-00446 | B73: 6XC-00446OPEN-CSP GOBIERNO | D73: Catalogo principal | E73: 6XC-00446 | F73: OPEN-CSP GOBIERNO | G73: Catalogo principal | H73: USD | I73: N/A | J73: Microsoft®WinRmtDsktpSvcsExtConn 2019 Government OLP 1License NoLevel Qualified | K73: Unidad | L73: Und | M73: Producto | N73: N/A | O73: N/A | P73: N/A | Q73: 6XC-00446 | R73: Licencia | S73: 11084.22 | T73: 1 | U73: 1 | V73: =SUMIF(ResumenCotizacion!$C:$C,E73,ResumenCotizacion!$P:$P) -> 0 | W73: =IF(H73="USD",S73*SolCotizacion!$J$18,S73) -> 40629097.57 | X73: =ROUND(W73/(1-VLOOKUP("Total porcentaje:",ResumenCotizacion!$F:$H,3,0)),2) -> 42146366.77 | Y73: 0
A74: Catalogo principalOPEN-CSP GOBIERNO6YH-00528 | B74: 6YH-00528OPEN-CSP GOBIERNO | D74: Catalogo principal | E74: 6YH-00528 | F74: OPEN-CSP GOBIERNO | G74: Catalogo principal | H74: USD | I74: N/A | J74: Microsoft®SkypeforBusiness License/SoftwareAssurancePack Government OLP 1License NoLevel | K74: Unidad | L74: Und | M74: Producto | N74: N/A | O74: N/A | P74: N/A | Q74: 6YH-00528 | R74: Licencia | S74: 48.05 | T74: 1 | U74: 1 | V74: =SUMIF(ResumenCotizacion!$C:$C,E74,ResumenCotizacion!$P:$P) -> 0 | W74: =IF(H74="USD",S74*SolCotizacion!$J$18,S74) -> 176126.7945 | X74: =ROUND(W74/(1-VLOOKUP("Total porcentaje:",ResumenCotizacion!$F:$H,3,0)),2) -> 182704.14 | Y74: 0
A75: Catalogo principalOPEN-CSP GOBIERNO6YH-00529 | B75: 6YH-00529OPEN-CSP GOBIERNO | D75: Catalogo principal | E75: 6YH-00529 | F75: OPEN-CSP GOBIERNO | G75: Catalogo principal | H75: USD | I75: N/A | J75: Microsoft®SkypeforBusiness SoftwareAssurance Government OLP 1License NoLevel | K75: Unidad | L75: Und | M75: Producto | N75: N/A | O75: N/A | P75: N/A | Q75: 6YH-00529 | R75: Licencia | S75: 17.65 | T75: 1 | U75: 1 | V75: =SUMIF(ResumenCotizacion!$C:$C,E75,ResumenCotizacion!$P:$P) -> 0 | W75: =IF(H75="USD",S75*SolCotizacion!$J$18,S75) -> 64695.8985 | X75: =ROUND(W75/(1-VLOOKUP("Total porcentaje:",ResumenCotizacion!$F:$H,3,0)),2) -> 67111.93 | Y75: 0
A76: Catalogo principalOPEN-CSP GOBIERNO6YH-01188 | B76: 6YH-01188OPEN-CSP GOBIERNO | D76: Catalogo principal | E76: 6YH-01188 | F76: OPEN-CSP GOBIERNO | G76: Catalogo principal | H76: USD | I76: N/A | J76: Microsoft®SkypeforBusiness 2019 Government OLP 1License NoLevel | K76: Unidad | L76: Und | M76: Producto | N76: N/A | O76: N/A | P76: N/A | Q76: 6YH-01188 | R76: Licencia | S76: 30.39 | T76: 1 | U76: 1 | V76: =SUMIF(ResumenCotizacion!$C:$C,E76,ResumenCotizacion!$P:$P) -> 0 | W76: =IF(H76="USD",S76*SolCotizacion!$J$18,S76) -> 111394.2411 | X76: =ROUND(W76/(1-VLOOKUP("Total porcentaje:",ResumenCotizacion!$F:$H,3,0)),2) -> 115554.19 | Y76: 0
A77: Catalogo principalOPEN-CSP GOBIERNO6ZH-00350 | B77: 6ZH-00350OPEN-CSP GOBIERNO | D77: Catalogo principal | E77: 6ZH-00350 | F77: OPEN-CSP GOBIERNO | G77: Catalogo principal | H77: USD | I77: N/A | J77: Microsoft®SfBServerStdCAL License/SoftwareAssurancePack Government OLP 1License NoLevel DvcCAL | K77: Unidad | L77: Und | M77: Producto | N77: N/A | O77: N/A | P77: N/A | Q77: 6ZH-00350 | R77: Licencia | S77: 46.25 | T77: 1 | U77: 1 | V77: =SUMIF(ResumenCotizacion!$C:$C,E77,ResumenCotizacion!$P:$P) -> 0 | W77: =IF(H77="USD",S77*SolCotizacion!$J$18,S77) -> 169528.9125 | X77: =ROUND(W77/(1-VLOOKUP("Total porcentaje:",ResumenCotizacion!$F:$H,3,0)),2) -> 175859.87 | Y77: 0
A78: Catalogo principalOPEN-CSP GOBIERNO6ZH-00371 | B78: 6ZH-00371OPEN-CSP GOBIERNO | D78: Catalogo principal | E78: 6ZH-00371 | F78: OPEN-CSP GOBIERNO | G78: Catalogo principal | H78: USD | I78: N/A | J78: Microsoft®SfBServerStdCAL License/SoftwareAssurancePack Government OLP 1License NoLevel UsrCAL | K78: Unidad | L78: Und | M78: Producto | N78: N/A | O78: N/A | P78: N/A | Q78: 6ZH-00371 | R78: Licencia | S78: 59.55 | T78: 1 | U78: 1 | V78: =SUMIF(ResumenCotizacion!$C:$C,E78,ResumenCotizacion!$P:$P) -> 0 | W78: =IF(H78="USD",S78*SolCotizacion!$J$18,S78) -> 218279.9295 | X78: =ROUND(W78/(1-VLOOKUP("Total porcentaje:",ResumenCotizacion!$F:$H,3,0)),2) -> 226431.46 | Y78: 0
A79: Catalogo principalOPEN-CSP GOBIERNO6ZH-00372 | B79: 6ZH-00372OPEN-CSP GOBIERNO | D79: Catalogo principal | E79: 6ZH-00372 | F79: OPEN-CSP GOBIERNO | G79: Catalogo principal | H79: USD | I79: N/A | J79: Microsoft®SfBServerStdCAL SoftwareAssurance Government OLP 1License NoLevel DvcCAL | K79: Unidad | L79: Und | M79: Producto | N79: N/A | O79: N/A | P79: N/A | Q79: 6ZH-00372 | R79: Licencia | S79: 15.42 | T79: 1 | U79: 1 | V79: =SUMIF(ResumenCotizacion!$C:$C,E79,ResumenCotizacion!$P:$P) -> 0 | W79: =IF(H79="USD",S79*SolCotizacion!$J$18,S79) -> 56521.8558 | X79: =ROUND(W79/(1-VLOOKUP("Total porcentaje:",ResumenCotizacion!$F:$H,3,0)),2) -> 58632.63 | Y79: 0
A80: Catalogo principalOPEN-CSP GOBIERNO6ZH-00373 | B80: 6ZH-00373OPEN-CSP GOBIERNO | D80: Catalogo principal | E80: 6ZH-00373 | F80: OPEN-CSP GOBIERNO | G80: Catalogo principal | H80: USD | I80: N/A | J80: Microsoft®SfBServerStdCAL SoftwareAssurance Government OLP 1License NoLevel UsrCAL | K80: Unidad | L80: Und | M80: Producto | N80: N/A | O80: N/A | P80: N/A | Q80: 6ZH-00373 | R80: Licencia | S80: 19.89 | T80: 1 | U80: 1 | V80: =SUMIF(ResumenCotizacion!$C:$C,E80,ResumenCotizacion!$P:$P) -> 0 | W80: =IF(H80="USD",S80*SolCotizacion!$J$18,S80) -> 72906.5961 | X80: =ROUND(W80/(1-VLOOKUP("Total porcentaje:",ResumenCotizacion!$F:$H,3,0)),2) -> 75629.25 | Y80: 0
A81: Catalogo principalOPEN-CSP GOBIERNO6ZH-00747 | B81: 6ZH-00747OPEN-CSP GOBIERNO | D81: Catalogo principal | E81: 6ZH-00747 | F81: OPEN-CSP GOBIERNO | G81: Catalogo principal | H81: USD | I81: N/A | J81: Microsoft®SfBServerStdCAL 2019 Government OLP 1License NoLevel DvcCAL | K81: Unidad | L81: Und | M81: Producto | N81: N/A | O81: N/A | P81: N/A | Q81: 6ZH-00747 | R81: Licencia | S81: 30.84 | T81: 1 | U81: 1 | V81: =SUMIF(ResumenCotizacion!$C:$C,E81,ResumenCotizacion!$P:$P) -> 0 | W81: =IF(H81="USD",S81*SolCotizacion!$J$18,S81) -> 113043.7116 | X81: =ROUND(W81/(1-VLOOKUP("Total porcentaje:",ResumenCotizacion!$F:$H,3,0)),2) -> 117265.26 | Y81: 0
A82: Catalogo principalOPEN-CSP GOBIERNO6ZH-00748 | B82: 6ZH-00748OPEN-CSP GOBIERNO | D82: Catalogo principal | E82: 6ZH-00748 | F82: OPEN-CSP GOBIERNO | G82: Catalogo principal | H82: USD | I82: N/A | J82: Microsoft®SfBServerStdCAL 2019 Government OLP 1License NoLevel UsrCAL | K82: Unidad | L82: Und | M82: Producto | N82: N/A | O82: N/A | P82: N/A | Q82: 6ZH-00748 | R82: Licencia | S82: 39.66 | T82: 1 | U82: 1 | V82: =SUMIF(ResumenCotizacion!$C:$C,E82,ResumenCotizacion!$P:$P) -> 0 | W82: =IF(H82="USD",S82*SolCotizacion!$J$18,S82) -> 145373.3334 | X82: =ROUND(W82/(1-VLOOKUP("Total porcentaje:",ResumenCotizacion!$F:$H,3,0)),2) -> 150802.21 | Y82: 0
A83: Catalogo principalOPEN-CSP GOBIERNO76M-01706 | B83: 76M-01706OPEN-CSP GOBIERNO | D83: Catalogo principal | E83: 76M-01706 | F83: OPEN-CSP GOBIERNO | G83: Catalogo principal | H83: USD | I83: N/A | J83: Microsoft®SharePointStandardCAL 2019 Government OLP 1License NoLevel DvcCAL | K83: Unidad | L83: Und | M83: Producto | N83: N/A | O83: N/A | P83: N/A | Q83: 76M-01706 | R83: Licencia | S83: 94.48 | T83: 1 | U83: 1 | V83: =SUMIF(ResumenCotizacion!$C:$C,E83,ResumenCotizacion!$P:$P) -> 0 | W83: =IF(H83="USD",S83*SolCotizacion!$J$18,S83) -> 346315.4952 | X83: =ROUND(W83/(1-VLOOKUP("Total porcentaje:",ResumenCotizacion!$F:$H,3,0)),2) -> 359248.44 | Y83: 0
A84: Catalogo principalOPEN-CSP GOBIERNO76M-01707 | B84: 76M-01707OPEN-CSP GOBIERNO | D84: Catalogo principal | E84: 76M-01707 | F84: OPEN-CSP GOBIERNO | G84: Catalogo principal | H84: USD | I84: N/A | J84: Microsoft®SharePointStandardCAL 2019 Government OLP 1License NoLevel UsrCAL | K84: Unidad | L84: Und | M84: Producto | N84: N/A | O84: N/A | P84: N/A | Q84: 76M-01707 | R84: Licencia | S84: 121.41 | T84: 1 | U84: 1 | V84: =SUMIF(ResumenCotizacion!$C:$C,E84,ResumenCotizacion!$P:$P) -> 0 | W84: =IF(H84="USD",S84*SolCotizacion!$J$18,S84) -> 445027.1409 | X84: =ROUND(W84/(1-VLOOKUP("Total porcentaje:",ResumenCotizacion!$F:$H,3,0)),2) -> 461646.41 | Y84: 0
A85: Catalogo principalOPEN-CSP GOBIERNO76N-00597 | B85: 76N-00597OPEN-CSP GOBIERNO | D85: Catalogo principal | E85: 76N-00597 | F85: OPEN-CSP GOBIERNO | G85: Catalogo principal | H85: USD | I85: N/A | J85: Microsoft®SharePointEnterpriseCAL License/SoftwareAssurancePack Government OLP 1License NoLevel DvcCAL | K85: Unidad | L85: Und | M85: Producto | N85: N/A | O85: N/A | P85: N/A | Q85: 76N-00597 | R85: Licencia | S85: 123.68 | T85: 1 | U85: 1 | V85: =SUMIF(ResumenCotizacion!$C:$C,E85,ResumenCotizacion!$P:$P) -> 0 | W85: =IF(H85="USD",S85*SolCotizacion!$J$18,S85) -> 453347.8032 | X85: =ROUND(W85/(1-VLOOKUP("Total porcentaje:",ResumenCotizacion!$F:$H,3,0)),2) -> 470277.8 | Y85: 0
A86: Catalogo principalOPEN-CSP GOBIERNO76N-00603 | B86: 76N-00603OPEN-CSP GOBIERNO | D86: Catalogo principal | E86: 76N-00603 | F86: OPEN-CSP GOBIERNO | G86: Catalogo principal | H86: USD | I86: N/A | J86: Microsoft®SharePointEnterpriseCAL License/SoftwareAssurancePack Government OLP 1License NoLevel UsrCAL | K86: Unidad | L86: Und | M86: Producto | N86: N/A | O86: N/A | P86: N/A | Q86: 76N-00603 | R86: Licencia | S86: 161.8 | T86: 1 | U86: 1 | V86: =SUMIF(ResumenCotizacion!$C:$C,E86,ResumenCotizacion!$P:$P) -> 0 | W86: =IF(H86="USD",S86*SolCotizacion!$J$18,S86) -> 593076.282 | X86: =ROUND(W86/(1-VLOOKUP("Total porcentaje:",ResumenCotizacion!$F:$H,3,0)),2) -> 615224.36 | Y86: 0
A87: Catalogo principalOPEN-CSP GOBIERNO76N-00654 | B87: 76N-00654OPEN-CSP GOBIERNO | D87: Catalogo principal | E87: 76N-00654 | F87: OPEN-CSP GOBIERNO | G87: Catalogo principal | H87: USD | I87: N/A | J87: Microsoft®SharePointEnterpriseCAL SoftwareAssurance Government OLP 1License NoLevel DvcCAL | K87: Unidad | L87: Und | M87: Producto | N87: N/A | O87: N/A | P87: N/A | Q87: 76N-00654 | R87: Licencia | S87: 41.18 | T87: 1 | U87: 1 | V87: =SUMIF(ResumenCotizacion!$C:$C,E87,ResumenCotizacion!$P:$P) -> 0 | W87: =IF(H87="USD",S87*SolCotizacion!$J$18,S87) -> 150944.8782 | X87: =ROUND(W87/(1-VLOOKUP("Total porcentaje:",ResumenCotizacion!$F:$H,3,0)),2) -> 156581.82 | Y87: 0
A88: Catalogo principalOPEN-CSP GOBIERNO76N-00660 | B88: 76N-00660OPEN-CSP GOBIERNO | D88: Catalogo principal | E88: 76N-00660 | F88: OPEN-CSP GOBIERNO | G88: Catalogo principal | H88: USD | I88: N/A | J88: Microsoft®SharePointEnterpriseCAL SoftwareAssurance Government OLP 1License NoLevel UsrCAL | K88: Unidad | L88: Und | M88: Producto | N88: N/A | O88: N/A | P88: N/A | Q88: 76N-00660 | R88: Licencia | S88: 53.98 | T88: 1 | U88: 1 | V88: =SUMIF(ResumenCotizacion!$C:$C,E88,ResumenCotizacion!$P:$P) -> 0 | W88: =IF(H88="USD",S88*SolCotizacion!$J$18,S88) -> 197863.1502 | X88: =ROUND(W88/(1-VLOOKUP("Total porcentaje:",ResumenCotizacion!$F:$H,3,0)),2) -> 205252.23 | Y88: 0
A89: Catalogo principalOPEN-CSP GOBIERNO76N-03869 | B89: 76N-03869OPEN-CSP GOBIERNO | D89: Catalogo principal | E89: 76N-03869 | F89: OPEN-CSP GOBIERNO | G89: Catalogo principal | H89: USD | I89: N/A | J89: Microsoft®SharePointEnterpriseCAL 2019 Government OLP 1License NoLevel DvcCAL | K89: Unidad | L89: Und | M89: Producto | N89: N/A | O89: N/A | P89: N/A | Q89: 76N-03869 | R89: Licencia | S89: 82.5 | T89: 1 | U89: 1 | V89: =SUMIF(ResumenCotizacion!$C:$C,E89,ResumenCotizacion!$P:$P) -> 0 | W89: =IF(H89="USD",S89*SolCotizacion!$J$18,S89) -> 302402.925 | X89: =ROUND(W89/(1-VLOOKUP("Total porcentaje:",ResumenCotizacion!$F:$H,3,0)),2) -> 313695.98 | Y89: 0
A90: Catalogo principalOPEN-CSP GOBIERNO76N-03870 | B90: 76N-03870OPEN-CSP GOBIERNO | D90: Catalogo principal | E90: 76N-03870 | F90: OPEN-CSP GOBIERNO | G90: Catalogo principal | H90: USD | I90: N/A | J90: Microsoft®SharePointEnterpriseCAL 2019 Government OLP 1License NoLevel UsrCAL | K90: Unidad | L90: Und | M90: Producto | N90: N/A | O90: N/A | P90: N/A | Q90: 76N-03870 | R90: Licencia | S90: 107.82 | T90: 1 | U90: 1 | V90: =SUMIF(ResumenCotizacion!$C:$C,E90,ResumenCotizacion!$P:$P) -> 0 | W90: =IF(H90="USD",S90*SolCotizacion!$J$18,S90) -> 395213.1318 | X90: =ROUND(W90/(1-VLOOKUP("Total porcentaje:",ResumenCotizacion!$F:$H,3,0)),2) -> 409972.13 | Y90: 0
A91: Catalogo principalOPEN-CSP GOBIERNO76P-02040 | B91: 76P-02040OPEN-CSP GOBIERNO | D91: Catalogo principal | E91: 76P-02040 | F91: OPEN-CSP GOBIERNO | G91: Catalogo principal | H91: USD | I91: N/A | J91: Microsoft®SharePointServer 2019 Government OLP 1License NoLevel | K91: Unidad | L91: Und | M91: Producto | N91: N/A | O91: N/A | P91: N/A | Q91: 76P-02040 | R91: Licencia | S91: 6850.06 | T91: 1 | U91: 1 | V91: =SUMIF(ResumenCotizacion!$C:$C,E91,ResumenCotizacion!$P:$P) -> 0 | W91: =IF(H91="USD",S91*SolCotizacion!$J$18,S91) -> 25108826.43 | X91: =ROUND(W91/(1-VLOOKUP("Total porcentaje:",ResumenCotizacion!$F:$H,3,0)),2) -> 26046500.45 | Y91: 0
A92: Catalogo principalOPEN-CSP GOBIERNO77D-00105 | B92: 77D-00105OPEN-CSP GOBIERNO | D92: Catalogo principal | E92: 77D-00105 | F92: OPEN-CSP GOBIERNO | G92: Catalogo principal | H92: USD | I92: N/A | J92: Microsoft®VisualStudioProSubMSDN License/SoftwareAssurancePack Government OLP 1License NoLevel Qualified | K92: Unidad | L92: Und | M92: Producto | N92: N/A | O92: N/A | P92: N/A | Q92: 77D-00105 | R92: Licencia | S92: 1146.13 | T92: 1 | U92: 1 | V92: =SUMIF(ResumenCotizacion!$C:$C,E92,ResumenCotizacion!$P:$P) -> 0 | W92: =IF(H92="USD",S92*SolCotizacion!$J$18,S92) -> 4201128.054 | X92: =ROUND(W92/(1-VLOOKUP("Total porcentaje:",ResumenCotizacion!$F:$H,3,0)),2) -> 4358016.65 | Y92: 0
A93: Catalogo principalOPEN-CSP GOBIERNO77D-00106 | B93: 77D-00106OPEN-CSP GOBIERNO | D93: Catalogo principal | E93: 77D-00106 | F93: OPEN-CSP GOBIERNO | G93: Catalogo principal | H93: USD | I93: N/A | J93: Microsoft®VisualStudioProSubMSDN SoftwareAssurance Government OLP 1License NoLevel Qualified | K93: Unidad | L93: Und | M93: Producto | N93: N/A | O93: N/A | P93: N/A | Q93: 77D-00106 | R93: Licencia | S93: 945.8 | T93: 1 | U93: 1 | V93: =SUMIF(ResumenCotizacion!$C:$C,E93,ResumenCotizacion!$P:$P) -> 0 | W93: =IF(H93="USD",S93*SolCotizacion!$J$18,S93) -> 3466820.442 | X93: =ROUND(W93/(1-VLOOKUP("Total porcentaje:",ResumenCotizacion!$F:$H,3,0)),2) -> 3596286.77 | Y93: 0
A94: Catalogo principalOPEN-CSP GOBIERNO79P-05738 | B94: 79P-05738OPEN-CSP GOBIERNO | D94: Catalogo principal | E94: 79P-05738 | F94: OPEN-CSP GOBIERNO | G94: Catalogo principal | H94: USD | I94: N/A | J94: Microsoft®OfficeProfessionalPlus 2019 Government OLP 1License NoLevel | K94: Unidad | L94: Und | M94: Producto | N94: N/A | O94: N/A | P94: N/A | Q94: 79P-05738 | R94: Licencia | S94: 510.94 | T94: 1 | U94: 1 | V94: =SUMIF(ResumenCotizacion!$C:$C,E94,ResumenCotizacion!$P:$P) -> 0 | W94: =IF(H94="USD",S94*SolCotizacion!$J$18,S94) -> 1872845.461 | X94: =ROUND(W94/(1-VLOOKUP("Total porcentaje:",ResumenCotizacion!$F:$H,3,0)),2) -> 1942785.75 | Y94: 0
A95: Catalogo principalOPEN-CSP GOBIERNO7AH-00419 | B95: 7AH-00419OPEN-CSP GOBIERNO | D95: Catalogo principal | E95: 7AH-00419 | F95: OPEN-CSP GOBIERNO | G95: Catalogo principal | H95: USD | I95: N/A | J95: Microsoft®SfBServerEntCAL License/SoftwareAssurancePack Government OLP 1License NoLevel DvcCAL | K95: Unidad | L95: Und | M95: Producto | N95: N/A | O95: N/A | P95: N/A | Q95: 7AH-00419 | R95: Licencia | S95: 161.8 | T95: 1 | U95: 1 | V95: =SUMIF(ResumenCotizacion!$C:$C,E95,ResumenCotizacion!$P:$P) -> 0 | W95: =IF(H95="USD",S95*SolCotizacion!$J$18,S95) -> 593076.282 | X95: =ROUND(W95/(1-VLOOKUP("Total porcentaje:",ResumenCotizacion!$F:$H,3,0)),2) -> 615224.36 | Y95: 0
A96: Catalogo principalOPEN-CSP GOBIERNO7AH-00420 | B96: 7AH-00420OPEN-CSP GOBIERNO | D96: Catalogo principal | E96: 7AH-00420 | F96: OPEN-CSP GOBIERNO | G96: Catalogo principal | H96: USD | I96: N/A | J96: Microsoft®SfBServerEntCAL License/SoftwareAssurancePack Government OLP 1License NoLevel UsrCAL | K96: Unidad | L96: Und | M96: Producto | N96: N/A | O96: N/A | P96: N/A | Q96: 7AH-00420 | R96: Licencia | S96: 209.38 | T96: 1 | U96: 1 | V96: =SUMIF(ResumenCotizacion!$C:$C,E96,ResumenCotizacion!$P:$P) -> 0 | W96: =IF(H96="USD",S96*SolCotizacion!$J$18,S96) -> 767480.2962 | X96: =ROUND(W96/(1-VLOOKUP("Total porcentaje:",ResumenCotizacion!$F:$H,3,0)),2) -> 796141.39 | Y96: 0
A97: Catalogo principalOPEN-CSP GOBIERNO7AH-00421 | B97: 7AH-00421OPEN-CSP GOBIERNO | D97: Catalogo principal | E97: 7AH-00421 | F97: OPEN-CSP GOBIERNO | G97: Catalogo principal | H97: USD | I97: N/A | J97: Microsoft®SfBServerEntCAL SoftwareAssurance Government OLP 1License NoLevel DvcCAL | K97: Unidad | L97: Und | M97: Producto | N97: N/A | O97: N/A | P97: N/A | Q97: 7AH-00421 | R97: Licencia | S97: 53.98 | T97: 1 | U97: 1 | V97: =SUMIF(ResumenCotizacion!$C:$C,E97,ResumenCotizacion!$P:$P) -> 0 | W97: =IF(H97="USD",S97*SolCotizacion!$J$18,S97) -> 197863.1502 | X97: =ROUND(W97/(1-VLOOKUP("Total porcentaje:",ResumenCotizacion!$F:$H,3,0)),2) -> 205252.23 | Y97: 0
A98: Catalogo principalOPEN-CSP GOBIERNO7AH-00422 | B98: 7AH-00422OPEN-CSP GOBIERNO | D98: Catalogo principal | E98: 7AH-00422 | F98: OPEN-CSP GOBIERNO | G98: Catalogo principal | H98: USD | I98: N/A | J98: Microsoft®SfBServerEntCAL SoftwareAssurance Government OLP 1License NoLevel UsrCAL | K98: Unidad | L98: Und | M98: Producto | N98: N/A | O98: N/A | P98: N/A | Q98: 7AH-00422 | R98: Licencia | S98: 69.84 | T98: 1 | U98: 1 | V98: =SUMIF(ResumenCotizacion!$C:$C,E98,ResumenCotizacion!$P:$P) -> 0 | W98: =IF(H98="USD",S98*SolCotizacion!$J$18,S98) -> 255997.8216 | X98: =ROUND(W98/(1-VLOOKUP("Total porcentaje:",ResumenCotizacion!$F:$H,3,0)),2) -> 265557.91 | Y98: 0
A99: Catalogo principalOPEN-CSP GOBIERNO7AH-00754 | B99: 7AH-00754OPEN-CSP GOBIERNO | D99: Catalogo principal | E99: 7AH-00754 | F99: OPEN-CSP GOBIERNO | G99: Catalogo principal | H99: USD | I99: N/A | J99: Microsoft®SfBServerEntCAL 2019 Government OLP 1License NoLevel DvcCAL | K99: Unidad | L99: Und | M99: Producto | N99: N/A | O99: N/A | P99: N/A | Q99: 7AH-00754 | R99: Licencia | S99: 107.82 | T99: 1 | U99: 1 | V99: =SUMIF(ResumenCotizacion!$C:$C,E99,ResumenCotizacion!$P:$P) -> 0 | W99: =IF(H99="USD",S99*SolCotizacion!$J$18,S99) -> 395213.1318 | X99: =ROUND(W99/(1-VLOOKUP("Total porcentaje:",ResumenCotizacion!$F:$H,3,0)),2) -> 409972.13 | Y99: 0
A100: Catalogo principalOPEN-CSP GOBIERNO7AH-00755 | B100: 7AH-00755OPEN-CSP GOBIERNO | D100: Catalogo principal | E100: 7AH-00755 | F100: OPEN-CSP GOBIERNO | G100: Catalogo principal | H100: USD | I100: N/A | J100: Microsoft®SfBServerEntCAL 2019 Government OLP 1License NoLevel UsrCAL | K100: Unidad | L100: Und | M100: Producto | N100: N/A | O100: N/A | P100: N/A | Q100: 7AH-00755 | R100: Licencia | S100: 139.54 | T100: 1 | U100: 1 | V100: =SUMIF(ResumenCotizacion!$C:$C,E100,ResumenCotizacion!$P:$P) -> 0 | W100: =IF(H100="USD",S100*SolCotizacion!$J$18,S100) -> 511482.4746 | X100: =ROUND(W100/(1-VLOOKUP("Total porcentaje:",ResumenCotizacion!$F:$H,3,0)),2) -> 530583.48 | Y100: 0
A101: Catalogo principalOPEN-CSP GOBIERNO7JQ-00314 | B101: 7JQ-00314OPEN-CSP GOBIERNO | D101: Catalogo principal | E101: 7JQ-00314 | F101: OPEN-CSP GOBIERNO | G101: Catalogo principal | H101: USD | I101: N/A | J101: Microsoft®SQLSvrEnterpriseCore License/SoftwareAssurancePack Government OLP 2Licenses NoLevel CoreLic Qualified | K101: Unidad | L101: Und | M101: Producto | N101: N/A | O101: N/A | P101: N/A | Q101: 7JQ-00314 | R101: Licencia | S101: 20780.73 | T101: 1 | U101: 1 | V101: =SUMIF(ResumenCotizacion!$C:$C,E101,ResumenCotizacion!$P:$P) -> 0 | W101: =IF(H101="USD",S101*SolCotizacion!$J$18,S101) -> 76171558.01 | X101: =ROUND(W101/(1-VLOOKUP("Total porcentaje:",ResumenCotizacion!$F:$H,3,0)),2) -> 79016139.01 | Y101: 0
A102: Catalogo principalOPEN-CSP GOBIERNO7JQ-00315 | B102: 7JQ-00315OPEN-CSP GOBIERNO | D102: Catalogo principal | E102: 7JQ-00315 | F102: OPEN-CSP GOBIERNO | G102: Catalogo principal | H102: USD | I102: N/A | J102: Microsoft®SQLSvrEnterpriseCore SoftwareAssurance Government OLP 2Licenses NoLevel CoreLic Qualified | K102: Unidad | L102: Und | M102: Producto | N102: N/A | O102: N/A | P102: N/A | Q102: 7JQ-00315 | R102: Licencia | S102: 6926.87 | T102: 1 | U102: 1 | V102: =SUMIF(ResumenCotizacion!$C:$C,E102,ResumenCotizacion!$P:$P) -> 0 | W102: =IF(H102="USD",S102*SolCotizacion!$J$18,S102) -> 25390372.72 | X102: =ROUND(W102/(1-VLOOKUP("Total porcentaje:",ResumenCotizacion!$F:$H,3,0)),2) -> 26338560.91 | Y102: 0
A103: Catalogo principalOPEN-CSP GOBIERNO7JQ-01624 | B103: 7JQ-01624OPEN-CSP GOBIERNO | D103: Catalogo principal | E103: 7JQ-01624 | F103: OPEN-CSP GOBIERNO | G103: Catalogo principal | H103: USD | I103: N/A | J103: Microsoft®SQLSvrEnterpriseCore 2019 Government OLP 2Licenses NoLevel CoreLic Qualified | K103: Unidad | L103: Und | M103: Producto | N103: N/A | O103: N/A | P103: N/A | Q103: 7JQ-01624 | R103: Licencia | S103: 13853.87 | T103: 1 | U103: 1 | V103: =SUMIF(ResumenCotizacion!$C:$C,E103,ResumenCotizacion!$P:$P) -> 0 | W103: =IF(H103="USD",S103*SolCotizacion!$J$18,S103) -> 50781221.95 | X103: =ROUND(W103/(1-VLOOKUP("Total porcentaje:",ResumenCotizacion!$F:$H,3,0)),2) -> 52677616.13 | Y103: 0
A104: Catalogo principalOPEN-CSP GOBIERNO7JT-00003 | B104: 7JT-00003OPEN-CSP GOBIERNO | D104: Catalogo principal | E104: 7JT-00003 | F104: OPEN-CSP GOBIERNO | G104: Catalogo principal | H104: USD | I104: N/A | J104: Microsoft®O365PlanE1Archiving ShrdSvr MonthlySubscriptions-VolumeLicense Government OLP 1License NoLevel Qualified Annual | K104: Unidad | L104: Und | M104: Producto | N104: N/A | O104: N/A | P104: N/A | Q104: 7JT-00003 | R104: Suscripción Anual | S104: 109.6 | T104: 1 | U104: 1 | V104: =SUMIF(ResumenCotizacion!$C:$C,E104,ResumenCotizacion!$P:$P) -> 886 | W104: =IF(H104="USD",S104*SolCotizacion!$J$18,S104) -> 401737.704 | X104: =ROUND(W104/(1-VLOOKUP("Total porcentaje:",ResumenCotizacion!$F:$H,3,0)),2) -> 416740.36 | Y104: 369231959
A105: Catalogo principalOPEN-CSP GOBIERNO7NQ-00266 | B105: 7NQ-00266OPEN-CSP GOBIERNO | D105: Catalogo principal | E105: 7NQ-00266 | F105: OPEN-CSP GOBIERNO | G105: Catalogo principal | H105: USD | I105: N/A | J105: Microsoft®SQLSvrStandardCore License/SoftwareAssurancePack Government OLP 2Licenses NoLevel CoreLic Qualified | K105: Unidad | L105: Und | M105: Producto | N105: N/A | O105: N/A | P105: N/A | Q105: 7NQ-00266 | R105: Licencia | S105: 5418.37 | T105: 1 | U105: 1 | V105: =SUMIF(ResumenCotizacion!$C:$C,E105,ResumenCotizacion!$P:$P) -> 0 | W105: =IF(H105="USD",S105*SolCotizacion!$J$18,S105) -> 19860981.05 | X105: =ROUND(W105/(1-VLOOKUP("Total porcentaje:",ResumenCotizacion!$F:$H,3,0)),2) -> 20602677.44 | Y105: 0
A106: Catalogo principalOPEN-CSP GOBIERNO7NQ-00267 | B106: 7NQ-00267OPEN-CSP GOBIERNO | D106: Catalogo principal | E106: 7NQ-00267 | F106: OPEN-CSP GOBIERNO | G106: Catalogo principal | H106: USD | I106: N/A | J106: Microsoft®SQLSvrStandardCore SoftwareAssurance Government OLP 2Licenses NoLevel CoreLic Qualified | K106: Unidad | L106: Und | M106: Producto | N106: N/A | O106: N/A | P106: N/A | Q106: 7NQ-00267 | R106: Licencia | S106: 1806.17 | T106: 1 | U106: 1 | V106: =SUMIF(ResumenCotizacion!$C:$C,E106,ResumenCotizacion!$P:$P) -> 0 | W106: =IF(H106="USD",S106*SolCotizacion!$J$18,S106) -> 6620498.073 | X106: =ROUND(W106/(1-VLOOKUP("Total porcentaje:",ResumenCotizacion!$F:$H,3,0)),2) -> 6867736.59 | Y106: 0
A107: Catalogo principalOPEN-CSP GOBIERNO7NQ-01581 | B107: 7NQ-01581OPEN-CSP GOBIERNO | D107: Catalogo principal | E107: 7NQ-01581 | F107: OPEN-CSP GOBIERNO | G107: Catalogo principal | H107: USD | I107: N/A | J107: Microsoft®SQLSvrStandardCore 2019 Government OLP 2Licenses NoLevel CoreLic Qualified | K107: Unidad | L107: Und | M107: Producto | N107: N/A | O107: N/A | P107: N/A | Q107: 7NQ-01581 | R107: Licencia | S107: 3612.21 | T107: 1 | U107: 1 | V107: =SUMIF(ResumenCotizacion!$C:$C,E107,ResumenCotizacion!$P:$P) -> 0 | W107: =IF(H107="USD",S107*SolCotizacion!$J$18,S107) -> 13240519.63 | X107: =ROUND(W107/(1-VLOOKUP("Total porcentaje:",ResumenCotizacion!$F:$H,3,0)),2) -> 13734978.87 | Y107: 0
A108: Catalogo principalOPEN-CSP GOBIERNO7NS-00006 | B108: 7NS-00006OPEN-CSP GOBIERNO | D108: Catalogo principal | E108: 7NS-00006 | F108: OPEN-CSP GOBIERNO | G108: Catalogo principal | H108: USD | I108: N/A | J108: Microsoft®ProjectPlan3Open ShrdSvr MonthlySubscriptions-VolumeLicense Government OLP 1License NoLevel Qualified Annual | K108: Unidad | L108: Und | M108: Producto | N108: N/A | O108: N/A | P108: N/A | Q108: 7NS-00006 | R108: Suscripción Anual | S108: 360.1 | T108: 1 | U108: 1 | V108: =SUMIF(ResumenCotizacion!$C:$C,E108,ResumenCotizacion!$P:$P) -> 0 | W108: =IF(H108="USD",S108*SolCotizacion!$J$18,S108) -> 1319942.949 | X108: =ROUND(W108/(1-VLOOKUP("Total porcentaje:",ResumenCotizacion!$F:$H,3,0)),2) -> 1369235.42 | Y108: 0
A109: Catalogo principalOPEN-CSP GOBIERNO7YC-00006 | B109: 7YC-00006OPEN-CSP GOBIERNO | D109: Catalogo principal | E109: 7YC-00006 | F109: OPEN-CSP GOBIERNO | G109: Catalogo principal | H109: USD | I109: N/A | J109: Microsoft®ProjectPlan5Open ShrdSvr MonthlySubscriptions-VolumeLicense Government OLP 1License NoLevel Qualified Annual | K109: Unidad | L109: Und | M109: Producto | N109: N/A | O109: N/A | P109: N/A | Q109: 7YC-00006 | R109: Suscripción Anual | S109: 660.1 | T109: 1 | U109: 1 | V109: =SUMIF(ResumenCotizacion!$C:$C,E109,ResumenCotizacion!$P:$P) -> 0 | W109: =IF(H109="USD",S109*SolCotizacion!$J$18,S109) -> 2419589.949 | X109: =ROUND(W109/(1-VLOOKUP("Total porcentaje:",ResumenCotizacion!$F:$H,3,0)),2) -> 2509948.08 | Y109: 0
A110: Catalogo principalOPEN-CSP GOBIERNO810-04848 | B110: 810-04848OPEN-CSP GOBIERNO | D110: Catalogo principal | E110: 810-04848 | F110: OPEN-CSP GOBIERNO | G110: Catalogo principal | H110: USD | I110: N/A | J110: Microsoft®SQLServerEnterpriseEdition SoftwareAssurance Government OLP 1License NoLevel | K110: Unidad | L110: Und | M110: Producto | N110: N/A | O110: N/A | P110: N/A | Q110: 810-04848 | R110: Licencia | S110: 4328.48 | T110: 1 | U110: 1 | V110: =SUMIF(ResumenCotizacion!$C:$C,E110,ResumenCotizacion!$P:$P) -> 0 | W110: =IF(H110="USD",S110*SolCotizacion!$J$18,S110) -> 15866000.16 | X110: =ROUND(W110/(1-VLOOKUP("Total porcentaje:",ResumenCotizacion!$F:$H,3,0)),2) -> 16458506.39 | Y110: 0
A111: Catalogo principalOPEN-CSP GOBIERNO9EA-00229 | B111: 9EA-00229OPEN-CSP GOBIERNO | D111: Catalogo principal | E111: 9EA-00229 | F111: OPEN-CSP GOBIERNO | G111: Catalogo principal | H111: USD | I111: N/A | J111: Microsoft®WindowsServerDCCore License/SoftwareAssurancePack Government OLP 16Licenses NoLevel CoreLic Qualified | K111: Unidad | L111: Und | M111: Producto | N111: N/A | O111: N/A | P111: N/A | Q111: 9EA-00229 | R111: Licencia | S111: 9268.06 | T111: 1 | U111: 1 | V111: =SUMIF(ResumenCotizacion!$C:$C,E111,ResumenCotizacion!$P:$P) -> 0 | W111: =IF(H111="USD",S111*SolCotizacion!$J$18,S111) -> 33971981.25 | X111: =ROUND(W111/(1-VLOOKUP("Total porcentaje:",ResumenCotizacion!$F:$H,3,0)),2) -> 35240644.45 | Y111: 0
A112: Catalogo principalOPEN-CSP GOBIERNO9EA-00230 | B112: 9EA-00230OPEN-CSP GOBIERNO | D112: Catalogo principal | E112: 9EA-00230 | F112: OPEN-CSP GOBIERNO | G112: Catalogo principal | H112: USD | I112: N/A | J112: Microsoft®WindowsServerDCCore SoftwareAssurance Government OLP 16Licenses NoLevel CoreLic Qualified | K112: Unidad | L112: Und | M112: Producto | N112: N/A | O112: N/A | P112: N/A | Q112: 9EA-00230 | R112: Licencia | S112: 3089.4 | T112: 1 | U112: 1 | V112: =SUMIF(ResumenCotizacion!$C:$C,E112,ResumenCotizacion!$P:$P) -> 0 | W112: =IF(H112="USD",S112*SolCotizacion!$J$18,S112) -> 11324164.81 | X112: =ROUND(W112/(1-VLOOKUP("Total porcentaje:",ResumenCotizacion!$F:$H,3,0)),2) -> 11747058.93 | Y112: 0
A113: Catalogo principalOPEN-CSP GOBIERNO9EA-00232 | B113: 9EA-00232OPEN-CSP GOBIERNO | D113: Catalogo principal | E113: 9EA-00232 | F113: OPEN-CSP GOBIERNO | G113: Catalogo principal | H113: USD | I113: N/A | J113: Microsoft®WindowsServerDCCore License/SoftwareAssurancePack Government OLP 2Licenses NoLevel CoreLic Qualified | K113: Unidad | L113: Und | M113: Producto | N113: N/A | O113: N/A | P113: N/A | Q113: 9EA-00232 | R113: Licencia | S113: 1159.13 | T113: 1 | U113: 1 | V113: =SUMIF(ResumenCotizacion!$C:$C,E113,ResumenCotizacion!$P:$P) -> 0 | W113: =IF(H113="USD",S113*SolCotizacion!$J$18,S113) -> 4248779.424 | X113: =ROUND(W113/(1-VLOOKUP("Total porcentaje:",ResumenCotizacion!$F:$H,3,0)),2) -> 4407447.53 | Y113: 0
A114: Catalogo principalOPEN-CSP GOBIERNO9EA-00233 | B114: 9EA-00233OPEN-CSP GOBIERNO | D114: Catalogo principal | E114: 9EA-00233 | F114: OPEN-CSP GOBIERNO | G114: Catalogo principal | H114: USD | I114: N/A | J114: Microsoft®WindowsServerDCCore SoftwareAssurance Government OLP 2Licenses NoLevel CoreLic Qualified | K114: Unidad | L114: Und | M114: Producto | N114: N/A | O114: N/A | P114: N/A | Q114: 9EA-00233 | R114: Licencia | S114: 386.28 | T114: 1 | U114: 1 | V114: =SUMIF(ResumenCotizacion!$C:$C,E114,ResumenCotizacion!$P:$P) -> 0 | W114: =IF(H114="USD",S114*SolCotizacion!$J$18,S114) -> 1415905.477 | X114: =ROUND(W114/(1-VLOOKUP("Total porcentaje:",ResumenCotizacion!$F:$H,3,0)),2) -> 1468781.62 | Y114: 0
A115: Catalogo principalOPEN-CSP GOBIERNO9EA-01062 | B115: 9EA-01062OPEN-CSP GOBIERNO | D115: Catalogo principal | E115: 9EA-01062 | F115: OPEN-CSP GOBIERNO | G115: Catalogo principal | H115: USD | I115: N/A | J115: Microsoft®WindowsServerDCCore 2019 Government OLP 16Licenses NoLevel CoreLic Qualified | K115: Unidad | L115: Und | M115: Producto | N115: N/A | O115: N/A | P115: N/A | Q115: 9EA-01062 | R115: Licencia | S115: 6178.65 | T115: 1 | U115: 1 | V115: =SUMIF(ResumenCotizacion!$C:$C,E115,ResumenCotizacion!$P:$P) -> 0 | W115: =IF(H115="USD",S115*SolCotizacion!$J$18,S115) -> 22647779.79 | X115: =ROUND(W115/(1-VLOOKUP("Total porcentaje:",ResumenCotizacion!$F:$H,3,0)),2) -> 23493547.5 | Y115: 0
A116: Catalogo principalOPEN-CSP GOBIERNO9EA-01063 | B116: 9EA-01063OPEN-CSP GOBIERNO | D116: Catalogo principal | E116: 9EA-01063 | F116: OPEN-CSP GOBIERNO | G116: Catalogo principal | H116: USD | I116: N/A | J116: Microsoft®WindowsServerDCCore 2019 Government OLP 2Licenses NoLevel CoreLic Qualified | K116: Unidad | L116: Und | M116: Producto | N116: N/A | O116: N/A | P116: N/A | Q116: 9EA-01063 | R116: Licencia | S116: 772.85 | T116: 1 | U116: 1 | V116: =SUMIF(ResumenCotizacion!$C:$C,E116,ResumenCotizacion!$P:$P) -> 0 | W116: =IF(H116="USD",S116*SolCotizacion!$J$18,S116) -> 2832873.947 | X116: =ROUND(W116/(1-VLOOKUP("Total porcentaje:",ResumenCotizacion!$F:$H,3,0)),2) -> 2938665.92 | Y116: 0
A117: Catalogo principalOPEN-CSP GOBIERNO9EM-00225 | B117: 9EM-00225OPEN-CSP GOBIERNO | D117: Catalogo principal | E117: 9EM-00225 | F117: OPEN-CSP GOBIERNO | G117: Catalogo principal | H117: USD | I117: N/A | J117: Microsoft®WindowsServerSTDCORE License/SoftwareAssurancePack Government OLP 16Licenses NoLevel CoreLic | K117: Unidad | L117: Und | M117: Producto | N117: N/A | O117: N/A | P117: N/A | Q117: 9EM-00225 | R117: Licencia | S117: 1297.56 | T117: 1 | U117: 1 | V117: =SUMIF(ResumenCotizacion!$C:$C,E117,ResumenCotizacion!$P:$P) -> 0 | W117: =IF(H117="USD",S117*SolCotizacion!$J$18,S117) -> 4756193.204 | X117: =ROUND(W117/(1-VLOOKUP("Total porcentaje:",ResumenCotizacion!$F:$H,3,0)),2) -> 4933810.38 | Y117: 0
A118: Catalogo principalOPEN-CSP GOBIERNO9EM-00226 | B118: 9EM-00226OPEN-CSP GOBIERNO | D118: Catalogo principal | E118: 9EM-00226 | F118: OPEN-CSP GOBIERNO | G118: Catalogo principal | H118: USD | I118: N/A | J118: Microsoft®WindowsServerSTDCORE SoftwareAssurance Government OLP 16Licenses NoLevel CoreLic | K118: Unidad | L118: Und | M118: Producto | N118: N/A | O118: N/A | P118: N/A | Q118: 9EM-00226 | R118: Licencia | S118: 432.47 | T118: 1 | U118: 1 | V118: =SUMIF(ResumenCotizacion!$C:$C,E118,ResumenCotizacion!$P:$P) -> 0 | W118: =IF(H118="USD",S118*SolCotizacion!$J$18,S118) -> 1585214.46 | X118: =ROUND(W118/(1-VLOOKUP("Total porcentaje:",ResumenCotizacion!$F:$H,3,0)),2) -> 1644413.34 | Y118: 0
A119: Catalogo principalOPEN-CSP GOBIERNO9EM-00228 | B119: 9EM-00228OPEN-CSP GOBIERNO | D119: Catalogo principal | E119: 9EM-00228 | F119: OPEN-CSP GOBIERNO | G119: Catalogo principal | H119: USD | I119: N/A | J119: Microsoft®WindowsServerSTDCORE License/SoftwareAssurancePack Government OLP 2Licenses NoLevel CoreLic | K119: Unidad | L119: Und | M119: Producto | N119: N/A | O119: N/A | P119: N/A | Q119: 9EM-00228 | R119: Licencia | S119: 164.22 | T119: 1 | U119: 1 | V119: =SUMIF(ResumenCotizacion!$C:$C,E119,ResumenCotizacion!$P:$P) -> 0 | W119: =IF(H119="USD",S119*SolCotizacion!$J$18,S119) -> 601946.7678 | X119: =ROUND(W119/(1-VLOOKUP("Total porcentaje:",ResumenCotizacion!$F:$H,3,0)),2) -> 624426.11 | Y119: 0
A120: Catalogo principalOPEN-CSP GOBIERNO9EM-00229 | B120: 9EM-00229OPEN-CSP GOBIERNO | D120: Catalogo principal | E120: 9EM-00229 | F120: OPEN-CSP GOBIERNO | G120: Catalogo principal | H120: USD | I120: N/A | J120: Microsoft®WindowsServerSTDCORE SoftwareAssurance Government OLP 2Licenses NoLevel CoreLic | K120: Unidad | L120: Und | M120: Producto | N120: N/A | O120: N/A | P120: N/A | Q120: 9EM-00229 | R120: Licencia | S120: 54.78 | T120: 1 | U120: 1 | V120: =SUMIF(ResumenCotizacion!$C:$C,E120,ResumenCotizacion!$P:$P) -> 0 | W120: =IF(H120="USD",S120*SolCotizacion!$J$18,S120) -> 200795.5422 | X120: =ROUND(W120/(1-VLOOKUP("Total porcentaje:",ResumenCotizacion!$F:$H,3,0)),2) -> 208294.13 | Y120: 0
A121: Catalogo principalOPEN-CSP GOBIERNO9EM-00670 | B121: 9EM-00670OPEN-CSP GOBIERNO | D121: Catalogo principal | E121: 9EM-00670 | F121: OPEN-CSP GOBIERNO | G121: Catalogo principal | H121: USD | I121: N/A | J121: Microsoft®WindowsServerSTDCORE 2019 Government OLP 16Licenses NoLevel CoreLic | K121: Unidad | L121: Und | M121: Producto | N121: N/A | O121: N/A | P121: N/A | Q121: 9EM-00670 | R121: Licencia | S121: 865.09 | T121: 1 | U121: 1 | V121: =SUMIF(ResumenCotizacion!$C:$C,E121,ResumenCotizacion!$P:$P) -> 0 | W121: =IF(H121="USD",S121*SolCotizacion!$J$18,S121) -> 3170978.744 | X121: =ROUND(W121/(1-VLOOKUP("Total porcentaje:",ResumenCotizacion!$F:$H,3,0)),2) -> 3289397.04 | Y121: 0
A122: Catalogo principalOPEN-CSP GOBIERNO9EM-00671 | B122: 9EM-00671OPEN-CSP GOBIERNO | D122: Catalogo principal | E122: 9EM-00671 | F122: OPEN-CSP GOBIERNO | G122: Catalogo principal | H122: USD | I122: N/A | J122: Microsoft®WindowsServerSTDCORE 2019 Government OLP 2Licenses NoLevel CoreLic | K122: Unidad | L122: Und | M122: Producto | N122: N/A | O122: N/A | P122: N/A | Q122: 9EM-00671 | R122: Licencia | S122: 109.43 | T122: 1 | U122: 1 | V122: =SUMIF(ResumenCotizacion!$C:$C,E122,ResumenCotizacion!$P:$P) -> 0 | W122: =IF(H122="USD",S122*SolCotizacion!$J$18,S122) -> 401114.5707 | X122: =ROUND(W122/(1-VLOOKUP("Total porcentaje:",ResumenCotizacion!$F:$H,3,0)),2) -> 416093.95 | Y122: 0
A123: Catalogo principalOPEN-CSP GOBIERNO9EN-00165 | B123: 9EN-00165OPEN-CSP GOBIERNO | D123: Catalogo principal | E123: 9EN-00165 | F123: OPEN-CSP GOBIERNO | G123: Catalogo principal | H123: USD | I123: N/A | J123: Microsoft®SysCtrStandardCore License/SoftwareAssurancePack Government OLP 16Licenses NoLevel CoreLic Qualified | K123: Unidad | L123: Und | M123: Producto | N123: N/A | O123: N/A | P123: N/A | Q123: 9EN-00165 | R123: Licencia | S123: 1324.25 | T123: 1 | U123: 1 | V123: =SUMIF(ResumenCotizacion!$C:$C,E123,ResumenCotizacion!$P:$P) -> 0 | W123: =IF(H123="USD",S123*SolCotizacion!$J$18,S123) -> 4854025.132 | X123: =ROUND(W123/(1-VLOOKUP("Total porcentaje:",ResumenCotizacion!$F:$H,3,0)),2) -> 5035295.78 | Y123: 0
A124: Catalogo principalOPEN-CSP GOBIERNO9EN-00166 | B124: 9EN-00166OPEN-CSP GOBIERNO | D124: Catalogo principal | E124: 9EN-00166 | F124: OPEN-CSP GOBIERNO | G124: Catalogo principal | H124: USD | I124: N/A | J124: Microsoft®SysCtrStandardCore SoftwareAssurance Government OLP 16Licenses NoLevel CoreLic Qualified | K124: Unidad | L124: Und | M124: Producto | N124: N/A | O124: N/A | P124: N/A | Q124: 9EN-00166 | R124: Licencia | S124: 441.32 | T124: 1 | U124: 1 | V124: =SUMIF(ResumenCotizacion!$C:$C,E124,ResumenCotizacion!$P:$P) -> 0 | W124: =IF(H124="USD",S124*SolCotizacion!$J$18,S124) -> 1617654.047 | X124: =ROUND(W124/(1-VLOOKUP("Total porcentaje:",ResumenCotizacion!$F:$H,3,0)),2) -> 1678064.36 | Y124: 0
A125: Catalogo principalOPEN-CSP GOBIERNO9EN-00167 | B125: 9EN-00167OPEN-CSP GOBIERNO | D125: Catalogo principal | E125: 9EN-00167 | F125: OPEN-CSP GOBIERNO | G125: Catalogo principal | H125: USD | I125: N/A | J125: Microsoft®SysCtrStandardCore License/SoftwareAssurancePack Government OLP 2Licenses NoLevel CoreLic Qualified | K125: Unidad | L125: Und | M125: Producto | N125: N/A | O125: N/A | P125: N/A | Q125: 9EN-00167 | R125: Licencia | S125: 165.43 | T125: 1 | U125: 1 | V125: =SUMIF(ResumenCotizacion!$C:$C,E125,ResumenCotizacion!$P:$P) -> 0 | W125: =IF(H125="USD",S125*SolCotizacion!$J$18,S125) -> 606382.0107 | X125: =ROUND(W125/(1-VLOOKUP("Total porcentaje:",ResumenCotizacion!$F:$H,3,0)),2) -> 629026.98 | Y125: 0
A126: Catalogo principalOPEN-CSP GOBIERNO9EN-00168 | B126: 9EN-00168OPEN-CSP GOBIERNO | D126: Catalogo principal | E126: 9EN-00168 | F126: OPEN-CSP GOBIERNO | G126: Catalogo principal | H126: USD | I126: N/A | J126: Microsoft®SysCtrStandardCore SoftwareAssurance Government OLP 2Licenses NoLevel CoreLic Qualified | K126: Unidad | L126: Und | M126: Producto | N126: N/A | O126: N/A | P126: N/A | Q126: 9EN-00168 | R126: Licencia | S126: 55.09 | T126: 1 | U126: 1 | V126: =SUMIF(ResumenCotizacion!$C:$C,E126,ResumenCotizacion!$P:$P) -> 0 | W126: =IF(H126="USD",S126*SolCotizacion!$J$18,S126) -> 201931.8441 | X126: =ROUND(W126/(1-VLOOKUP("Total porcentaje:",ResumenCotizacion!$F:$H,3,0)),2) -> 209472.87 | Y126: 0
A127: Catalogo principalOPEN-CSP GOBIERNO9EP-00171 | B127: 9EP-00171OPEN-CSP GOBIERNO | D127: Catalogo principal | E127: 9EP-00171 | F127: OPEN-CSP GOBIERNO | G127: Catalogo principal | H127: USD | I127: N/A | J127: Microsoft®SysCtrDataCenterCore License/SoftwareAssurancePack Government OLP 16Licenses NoLevel CoreLic Qualified | K127: Unidad | L127: Und | M127: Producto | N127: N/A | O127: N/A | P127: N/A | Q127: 9EP-00171 | R127: Licencia | S127: 3624.79 | T127: 1 | U127: 1 | V127: =SUMIF(ResumenCotizacion!$C:$C,E127,ResumenCotizacion!$P:$P) -> 0 | W127: =IF(H127="USD",S127*SolCotizacion!$J$18,S127) -> 13286631.5 | X127: =ROUND(W127/(1-VLOOKUP("Total porcentaje:",ResumenCotizacion!$F:$H,3,0)),2) -> 13782812.76 | Y127: 0
A128: Catalogo principalOPEN-CSP GOBIERNO9EP-00172 | B128: 9EP-00172OPEN-CSP GOBIERNO | D128: Catalogo principal | E128: 9EP-00172 | F128: OPEN-CSP GOBIERNO | G128: Catalogo principal | H128: USD | I128: N/A | J128: Microsoft®SysCtrDataCenterCore SoftwareAssurance Government OLP 16Licenses NoLevel CoreLic Qualified | K128: Unidad | L128: Und | M128: Producto | N128: N/A | O128: N/A | P128: N/A | Q128: 9EP-00172 | R128: Licencia | S128: 1208.22 | T128: 1 | U128: 1 | V128: =SUMIF(ResumenCotizacion!$C:$C,E128,ResumenCotizacion!$P:$P) -> 0 | W128: =IF(H128="USD",S128*SolCotizacion!$J$18,S128) -> 4428718.328 | X128: =ROUND(W128/(1-VLOOKUP("Total porcentaje:",ResumenCotizacion!$F:$H,3,0)),2) -> 4594106.15 | Y128: 0
A129: Catalogo principalOPEN-CSP GOBIERNO9EP-00173 | B129: 9EP-00173OPEN-CSP GOBIERNO | D129: Catalogo principal | E129: 9EP-00173 | F129: OPEN-CSP GOBIERNO | G129: Catalogo principal | H129: USD | I129: N/A | J129: Microsoft®SysCtrDataCenterCore License/SoftwareAssurancePack Government OLP 2Licenses NoLevel CoreLic Qualified | K129: Unidad | L129: Und | M129: Producto | N129: N/A | O129: N/A | P129: N/A | Q129: 9EP-00173 | R129: Licencia | S129: 453.01 | T129: 1 | U129: 1 | V129: =SUMIF(ResumenCotizacion!$C:$C,E129,ResumenCotizacion!$P:$P) -> 0 | W129: =IF(H129="USD",S129*SolCotizacion!$J$18,S129) -> 1660503.625 | X129: =ROUND(W129/(1-VLOOKUP("Total porcentaje:",ResumenCotizacion!$F:$H,3,0)),2) -> 1722514.13 | Y129: 0
A130: =D130&F130&E130 -> Catalogo principalOPEN-CSP GOBIERNO9EP-00174 | B130: =E130&F130 -> 9EP-00174OPEN-CSP GOBIERNO | D130: Catalogo principal | E130: 9EP-00174 | F130: OPEN-CSP GOBIERNO | G130: Catalogo principal | H130: USD | I130: N/A | J130: Microsoft®SysCtrDataCenterCore SoftwareAssurance Government OLP 2Licenses NoLevel CoreLic Qualified | K130: Unidad | L130: Und | M130: Producto | N130: N/A | O130: N/A | P130: N/A | Q130: =+E130 -> 9EP-00174 | R130: Licencia | S130: 150.96 | T130: 1 | U130: 1 | V130: =SUMIF(ResumenCotizacion!$C:$C,E130,ResumenCotizacion!$P:$P) -> 0 | W130: =IF(H130="USD",S130*SolCotizacion!$J$18,S130) -> 553342.3704 | X130: =ROUND(W130/(1-VLOOKUP("Total porcentaje:",ResumenCotizacion!$F:$H,3,0)),2) -> 574006.61 | Y130: 0
A131: Catalogo principalOPEN-CSP GOBIERNO9GA-00056 | B131: 9GA-00056OPEN-CSP GOBIERNO | D131: Catalogo principal | E131: 9GA-00056 | F131: OPEN-CSP GOBIERNO | G131: Catalogo principal | H131: USD | I131: N/A | J131: Microsoft®CoreInfraSvrSteStdCore License/SoftwareAssurancePack Government OLP 16Licenses NoLevel W/OSYSCTRSERVERLICENSE CoreLic Qualified | K131: Unidad | L131: Und | M131: Producto | N131: N/A | O131: N/A | P131: N/A | Q131: 9GA-00056 | R131: Licencia | S131: 1669.85 | T131: 1 | U131: 1 | V131: =SUMIF(ResumenCotizacion!$C:$C,E131,ResumenCotizacion!$P:$P) -> 0 | W131: =IF(H131="USD",S131*SolCotizacion!$J$18,S131) -> 6120818.476 | X131: =ROUND(W131/(1-VLOOKUP("Total porcentaje:",ResumenCotizacion!$F:$H,3,0)),2) -> 6349396.76 | Y131: =V131*X131 -> 0
A132: Catalogo principalOPEN-CSP GOBIERNO9GA-00057 | B132: 9GA-00057OPEN-CSP GOBIERNO | D132: Catalogo principal | E132: 9GA-00057 | F132: OPEN-CSP GOBIERNO | G132: Catalogo principal | H132: USD | I132: N/A | J132: Microsoft®CoreInfraSvrSteStdCore License/SoftwareAssurancePack Government OLP 2Licenses NoLevel W/OSYSCTRSERVERLICENSE CoreLic Qualified | K132: Unidad | L132: Und | M132: Producto | N132: N/A | O132: N/A | P132: N/A | Q132: 9GA-00057 | R132: Licencia | S132: 210.65 | T132: 1 | U132: 1 | V132: =SUMIF(ResumenCotizacion!$C:$C,E132,ResumenCotizacion!$P:$P) -> 0 | W132: =IF(H132="USD",S132*SolCotizacion!$J$18,S132) -> 772135.4685 | X132: =ROUND(W132/(1-VLOOKUP("Total porcentaje:",ResumenCotizacion!$F:$H,3,0)),2) -> 800970.4 | Y132: 0
A133: Catalogo principalOPEN-CSP GOBIERNO9GA-00292 | B133: 9GA-00292OPEN-CSP GOBIERNO | D133: Catalogo principal | E133: 9GA-00292 | F133: OPEN-CSP GOBIERNO | G133: Catalogo principal | H133: USD | I133: N/A | J133: Microsoft®CoreInfraSvrSteStdCore License/SoftwareAssurancePack Government OLP 16Licenses NoLevel CoreLic Qualified | K133: Unidad | L133: Und | M133: Producto | N133: N/A | O133: N/A | P133: N/A | Q133: 9GA-00292 | R133: Licencia | S133: 2445.7 | T133: 1 | U133: 1 | V133: =SUMIF(ResumenCotizacion!$C:$C,E133,ResumenCotizacion!$P:$P) -> 0 | W133: =IF(H133="USD",S133*SolCotizacion!$J$18,S133) -> 8964688.893 | X133: =ROUND(W133/(1-VLOOKUP("Total porcentaje:",ResumenCotizacion!$F:$H,3,0)),2) -> 9299469.81 | Y133: 0
A134: Catalogo principalOPEN-CSP GOBIERNO9GA-00293 | B134: 9GA-00293OPEN-CSP GOBIERNO | D134: Catalogo principal | E134: 9GA-00293 | F134: OPEN-CSP GOBIERNO | G134: Catalogo principal | H134: USD | I134: N/A | J134: Microsoft®CoreInfraSvrSteStdCore SoftwareAssurance Government OLP 16Licenses NoLevel CoreLic Qualified | K134: Unidad | L134: Und | M134: Producto | N134: N/A | O134: N/A | P134: N/A | Q134: 9GA-00293 | R134: Licencia | S134: 815.19 | T134: 1 | U134: 1 | V134: =SUMIF(ResumenCotizacion!$C:$C,E134,ResumenCotizacion!$P:$P) -> 0 | W134: =IF(H134="USD",S134*SolCotizacion!$J$18,S134) -> 2988070.793 | X134: =ROUND(W134/(1-VLOOKUP("Total porcentaje:",ResumenCotizacion!$F:$H,3,0)),2) -> 3099658.5 | Y134: 0
A135: Catalogo principalOPEN-CSP GOBIERNO9GA-00294 | B135: 9GA-00294OPEN-CSP GOBIERNO | D135: Catalogo principal | E135: 9GA-00294 | F135: OPEN-CSP GOBIERNO | G135: Catalogo principal | H135: USD | I135: N/A | J135: Microsoft®CoreInfraSvrSteStdCore License/SoftwareAssurancePack Government OLP 2Licenses NoLevel CoreLic Qualified | K135: Unidad | L135: Und | M135: Producto | N135: N/A | O135: N/A | P135: N/A | Q135: 9GA-00294 | R135: Licencia | S135: 307.62 | T135: 1 | U135: 1 | V135: =SUMIF(ResumenCotizacion!$C:$C,E135,ResumenCotizacion!$P:$P) -> 0 | W135: =IF(H135="USD",S135*SolCotizacion!$J$18,S135) -> 1127578.034 | X135: =ROUND(W135/(1-VLOOKUP("Total porcentaje:",ResumenCotizacion!$F:$H,3,0)),2) -> 1169686.76 | Y135: 0
A136: Catalogo principalOPEN-CSP GOBIERNO9GA-00295 | B136: 9GA-00295OPEN-CSP GOBIERNO | D136: Catalogo principal | E136: 9GA-00295 | F136: OPEN-CSP GOBIERNO | G136: Catalogo principal | H136: USD | I136: N/A | J136: Microsoft®CoreInfraSvrSteStdCore SoftwareAssurance Government OLP 2Licenses NoLevel CoreLic Qualified | K136: Unidad | L136: Und | M136: Producto | N136: N/A | O136: N/A | P136: N/A | Q136: 9GA-00295 | R136: Licencia | S136: 102.45 | T136: 1 | U136: 1 | V136: =SUMIF(ResumenCotizacion!$C:$C,E136,ResumenCotizacion!$P:$P) -> 0 | W136: =IF(H136="USD",S136*SolCotizacion!$J$18,S136) -> 375529.4505 | X136: =ROUND(W136/(1-VLOOKUP("Total porcentaje:",ResumenCotizacion!$F:$H,3,0)),2) -> 389553.37 | Y136: 0
A137: Catalogo principalOPEN-CSP GOBIERNO9GA-00601 | B137: 9GA-00601OPEN-CSP GOBIERNO | D137: Catalogo principal | E137: 9GA-00601 | F137: OPEN-CSP GOBIERNO | G137: Catalogo principal | H137: USD | I137: N/A | J137: Microsoft®CoreInfraSvrSteStdCore License/SoftwareAssurancePack Government OLP 16Licenses NoLevel W/OWinServerLicense CoreLic Qualified | K137: Unidad | L137: Und | M137: Producto | N137: N/A | O137: N/A | P137: N/A | Q137: 9GA-00601 | R137: Licencia | S137: 1591.04 | T137: 1 | U137: 1 | V137: =SUMIF(ResumenCotizacion!$C:$C,E137,ResumenCotizacion!$P:$P) -> 0 | W137: =IF(H137="USD",S137*SolCotizacion!$J$18,S137) -> 5831941.21 | X137: =ROUND(W137/(1-VLOOKUP("Total porcentaje:",ResumenCotizacion!$F:$H,3,0)),2) -> 6049731.55 | Y137: 0
A138: Catalogo principalOPEN-CSP GOBIERNO9GA-00602 | B138: 9GA-00602OPEN-CSP GOBIERNO | D138: Catalogo principal | E138: 9GA-00602 | F138: OPEN-CSP GOBIERNO | G138: Catalogo principal | H138: USD | I138: N/A | J138: Microsoft®CoreInfraSvrSteStdCore License/SoftwareAssurancePack Government OLP 2Licenses NoLevel W/OWinServerLicense CoreLic Qualified | K138: Unidad | L138: Und | M138: Producto | N138: N/A | O138: N/A | P138: N/A | Q138: 9GA-00602 | R138: Licencia | S138: 199.42 | T138: 1 | U138: 1 | V138: =SUMIF(ResumenCotizacion!$C:$C,E138,ResumenCotizacion!$P:$P) -> 0 | W138: =IF(H138="USD",S138*SolCotizacion!$J$18,S138) -> 730972.0158 | X138: =ROUND(W138/(1-VLOOKUP("Total porcentaje:",ResumenCotizacion!$F:$H,3,0)),2) -> 758269.73 | Y138: 0
A139: Catalogo principalOPEN-CSP GOBIERNO9GS-00110 | B139: 9GS-00110OPEN-CSP GOBIERNO | D139: Catalogo principal | E139: 9GS-00110 | F139: OPEN-CSP GOBIERNO | G139: Catalogo principal | H139: USD | I139: N/A | J139: Microsoft®CoreInfrastructureSvrSteDCCore License/SoftwareAssurancePack Government OLP 16Licenses NoLevel CoreLic Qualified | K139: Unidad | L139: Und | M139: Producto | N139: N/A | O139: N/A | P139: N/A | Q139: 9GS-00110 | R139: Licencia | S139: 12258.65 | T139: 1 | U139: 1 | V139: =SUMIF(ResumenCotizacion!$C:$C,E139,ResumenCotizacion!$P:$P) -> 0 | W139: =IF(H139="USD",S139*SolCotizacion!$J$18,S139) -> 44933958.99 | X139: =ROUND(W139/(1-VLOOKUP("Total porcentaje:",ResumenCotizacion!$F:$H,3,0)),2) -> 46611990.65 | Y139: 0
A140: Catalogo principalOPEN-CSP GOBIERNO9GS-00111 | B140: 9GS-00111OPEN-CSP GOBIERNO | D140: Catalogo principal | E140: 9GS-00111 | F140: OPEN-CSP GOBIERNO | G140: Catalogo principal | H140: USD | I140: N/A | J140: Microsoft®CoreInfrastructureSvrSteDCCore SoftwareAssurance Government OLP 16Licenses NoLevel CoreLic Qualified | K140: Unidad | L140: Und | M140: Producto | N140: N/A | O140: N/A | P140: N/A | Q140: 9GS-00111 | R140: Licencia | S140: 4086.21 | T140: 1 | U140: 1 | V140: =SUMIF(ResumenCotizacion!$C:$C,E140,ResumenCotizacion!$P:$P) -> 0 | W140: =IF(H140="USD",S140*SolCotizacion!$J$18,S140) -> 14977961.89 | X140: =ROUND(W140/(1-VLOOKUP("Total porcentaje:",ResumenCotizacion!$F:$H,3,0)),2) -> 15537304.87 | Y140: 0
A141: Catalogo principalOPEN-CSP GOBIERNO9GS-00112 | B141: 9GS-00112OPEN-CSP GOBIERNO | D141: Catalogo principal | E141: 9GS-00112 | F141: OPEN-CSP GOBIERNO | G141: Catalogo principal | H141: USD | I141: N/A | J141: Microsoft®CoreInfrastructureSvrSteDCCore License/SoftwareAssurancePack Government OLP 2Licenses NoLevel CoreLic Qualified | K141: Unidad | L141: Und | M141: Producto | N141: N/A | O141: N/A | P141: N/A | Q141: 9GS-00112 | R141: Licencia | S141: 1533.08 | T141: 1 | U141: 1 | V141: =SUMIF(ResumenCotizacion!$C:$C,E141,ResumenCotizacion!$P:$P) -> 0 | W141: =IF(H141="USD",S141*SolCotizacion!$J$18,S141) -> 5619489.409 | X141: =ROUND(W141/(1-VLOOKUP("Total porcentaje:",ResumenCotizacion!$F:$H,3,0)),2) -> 5829345.86 | Y141: 0
A142: Catalogo principalOPEN-CSP GOBIERNO9GS-00113 | B142: 9GS-00113OPEN-CSP GOBIERNO | D142: Catalogo principal | E142: 9GS-00113 | F142: OPEN-CSP GOBIERNO | G142: Catalogo principal | H142: USD | I142: N/A | J142: Microsoft®CoreInfrastructureSvrSteDCCore SoftwareAssurance Government OLP 2Licenses NoLevel CoreLic Qualified | K142: Unidad | L142: Und | M142: Producto | N142: N/A | O142: N/A | P142: N/A | Q142: 9GS-00113 | R142: Licencia | S142: 511.03 | T142: 1 | U142: 1 | V142: =SUMIF(ResumenCotizacion!$C:$C,E142,ResumenCotizacion!$P:$P) -> 0 | W142: =IF(H142="USD",S142*SolCotizacion!$J$18,S142) -> 1873175.355 | X142: =ROUND(W142/(1-VLOOKUP("Total porcentaje:",ResumenCotizacion!$F:$H,3,0)),2) -> 1943127.96 | Y142: 0
A143: Catalogo principalOPEN-CSP GOBIERNO9GS-00545 | B143: 9GS-00545OPEN-CSP GOBIERNO | D143: Catalogo principal | E143: 9GS-00545 | F143: OPEN-CSP GOBIERNO | G143: Catalogo principal | H143: USD | I143: N/A | J143: Microsoft®CoreInfrastructureSvrSteDCCore License/SoftwareAssurancePack Government OLP 16Licenses NoLevel W/OSYSCTRSERVERLICENSE CoreLic Qualified | K143: Unidad | L143: Und | M143: Producto | N143: N/A | O143: N/A | P143: N/A | Q143: 9GS-00545 | R143: Licencia | S143: 9963.01 | T143: 1 | U143: 1 | V143: =SUMIF(ResumenCotizacion!$C:$C,E143,ResumenCotizacion!$P:$P) -> 0 | W143: =IF(H143="USD",S143*SolCotizacion!$J$18,S143) -> 36519313.52 | X143: =ROUND(W143/(1-VLOOKUP("Total porcentaje:",ResumenCotizacion!$F:$H,3,0)),2) -> 37883105.32 | Y143: 0
A144: Catalogo principalOPEN-CSP GOBIERNO9GS-00546 | B144: 9GS-00546OPEN-CSP GOBIERNO | D144: Catalogo principal | E144: 9GS-00546 | F144: OPEN-CSP GOBIERNO | G144: Catalogo principal | H144: USD | I144: N/A | J144: Microsoft®CoreInfrastructureSvrSteDCCore License/SoftwareAssurancePack Government OLP 2Licenses NoLevel W/OSYSCTRSERVERLICENSE CoreLic Qualified | K144: Unidad | L144: Und | M144: Producto | N144: N/A | O144: N/A | P144: N/A | Q144: 9GS-00546 | R144: Licencia | S144: 1246.06 | T144: 1 | U144: 1 | V144: =SUMIF(ResumenCotizacion!$C:$C,E144,ResumenCotizacion!$P:$P) -> 0 | W144: =IF(H144="USD",S144*SolCotizacion!$J$18,S144) -> 4567420.469 | X144: =ROUND(W144/(1-VLOOKUP("Total porcentaje:",ResumenCotizacion!$F:$H,3,0)),2) -> 4737988.04 | Y144: 0
A145: Catalogo principalOPEN-CSP GOBIERNO9GS-00725 | B145: 9GS-00725OPEN-CSP GOBIERNO | D145: Catalogo principal | E145: 9GS-00725 | F145: OPEN-CSP GOBIERNO | G145: Catalogo principal | H145: USD | I145: N/A | J145: Microsoft®CoreInfrastructureSvrSteDCCore License/SoftwareAssurancePack Government OLP 16Licenses NoLevel W/OWinServerLicense CoreLic Qualified | K145: Unidad | L145: Und | M145: Producto | N145: N/A | O145: N/A | P145: N/A | Q145: 9GS-00725 | R145: Licencia | S145: 6381.86 | T145: 1 | U145: 1 | V145: =SUMIF(ResumenCotizacion!$C:$C,E145,ResumenCotizacion!$P:$P) -> 0 | W145: =IF(H145="USD",S145*SolCotizacion!$J$18,S145) -> 23392644.01 | X145: =ROUND(W145/(1-VLOOKUP("Total porcentaje:",ResumenCotizacion!$F:$H,3,0)),2) -> 24266228.23 | Y145: 0
A146: Catalogo principalOPEN-CSP GOBIERNO9GS-00726 | B146: 9GS-00726OPEN-CSP GOBIERNO | D146: Catalogo principal | E146: 9GS-00726 | F146: OPEN-CSP GOBIERNO | G146: Catalogo principal | H146: USD | I146: N/A | J146: Microsoft®CoreInfrastructureSvrSteDCCore License/SoftwareAssurancePack Government OLP 2Licenses NoLevel W/OWinServerLicense CoreLic Qualified | K146: Unidad | L146: Und | M146: Producto | N146: N/A | O146: N/A | P146: N/A | Q146: 9GS-00726 | R146: Licencia | S146: 798.03 | T146: 1 | U146: 1 | V146: =SUMIF(ResumenCotizacion!$C:$C,E146,ResumenCotizacion!$P:$P) -> 0 | W146: =IF(H146="USD",S146*SolCotizacion!$J$18,S146) -> 2925170.985 | X146: =ROUND(W146/(1-VLOOKUP("Total porcentaje:",ResumenCotizacion!$F:$H,3,0)),2) -> 3034409.74 | Y146: 0
A147: Catalogo principalOPEN-CSP GOBIERNO9TX-00209 | B147: 9TX-00209OPEN-CSP GOBIERNO | D147: Catalogo principal | E147: 9TX-00209 | F147: OPEN-CSP GOBIERNO | G147: Catalogo principal | H147: USD | I147: N/A | J147: Microsoft®SysCtrOpsMgrCltMgmtLic License/SoftwareAssurancePack Government OLP 1License NoLevel PerUsr | K147: Unidad | L147: Und | M147: Producto | N147: N/A | O147: N/A | P147: N/A | Q147: 9TX-00209 | R147: Licencia | S147: 35.5 | T147: 1 | U147: 1 | V147: =SUMIF(ResumenCotizacion!$C:$C,E147,ResumenCotizacion!$P:$P) -> 0 | W147: =IF(H147="USD",S147*SolCotizacion!$J$18,S147) -> 130124.895 | X147: =ROUND(W147/(1-VLOOKUP("Total porcentaje:",ResumenCotizacion!$F:$H,3,0)),2) -> 134984.33 | Y147: 0
A148: Catalogo principalOPEN-CSP GOBIERNO9TX-00226 | B148: 9TX-00226OPEN-CSP GOBIERNO | D148: Catalogo principal | E148: 9TX-00226 | F148: OPEN-CSP GOBIERNO | G148: Catalogo principal | H148: USD | I148: N/A | J148: Microsoft®SysCtrOpsMgrCltMgmtLic SoftwareAssurance Government OLP 1License NoLevel PerUsr | K148: Unidad | L148: Und | M148: Producto | N148: N/A | O148: N/A | P148: N/A | Q148: 9TX-00226 | R148: Licencia | S148: 11.79 | T148: 1 | U148: 1 | V148: =SUMIF(ResumenCotizacion!$C:$C,E148,ResumenCotizacion!$P:$P) -> 0 | W148: =IF(H148="USD",S148*SolCotizacion!$J$18,S148) -> 43216.1271 | X148: =ROUND(W148/(1-VLOOKUP("Total porcentaje:",ResumenCotizacion!$F:$H,3,0)),2) -> 44830.01 | Y148: 0
A149: Catalogo principalOPEN-CSP GOBIERNO9TX-00605 | B149: 9TX-00605OPEN-CSP GOBIERNO | D149: Catalogo principal | E149: 9TX-00605 | F149: OPEN-CSP GOBIERNO | G149: Catalogo principal | H149: USD | I149: N/A | J149: Microsoft®SysCtrOpsMgrCltMgmtLic SoftwareAssurance Government OLP 1License NoLevel PerOSE | K149: Unidad | L149: Und | M149: Producto | N149: N/A | O149: N/A | P149: N/A | Q149: 9TX-00605 | R149: Licencia | S149: 9.05 | T149: 1 | U149: 1 | V149: =SUMIF(ResumenCotizacion!$C:$C,E149,ResumenCotizacion!$P:$P) -> 0 | W149: =IF(H149="USD",S149*SolCotizacion!$J$18,S149) -> 33172.6845 | X149: =ROUND(W149/(1-VLOOKUP("Total porcentaje:",ResumenCotizacion!$F:$H,3,0)),2) -> 34411.5 | Y149: 0
A150: Catalogo principalOPEN-CSP GOBIERNO9TX-00606 | B150: 9TX-00606OPEN-CSP GOBIERNO | D150: Catalogo principal | E150: 9TX-00606 | F150: OPEN-CSP GOBIERNO | G150: Catalogo principal | H150: USD | I150: N/A | J150: Microsoft®SysCtrOpsMgrCltMgmtLic License/SoftwareAssurancePack Government OLP 1License NoLevel PerOSE | K150: Unidad | L150: Und | M150: Producto | N150: N/A | O150: N/A | P150: N/A | Q150: 9TX-00606 | R150: Licencia | S150: 27.29 | T150: 1 | U150: 1 | V150: =SUMIF(ResumenCotizacion!$C:$C,E150,ResumenCotizacion!$P:$P) -> 0 | W150: =IF(H150="USD",S150*SolCotizacion!$J$18,S150) -> 100031.2221 | X150: =ROUND(W150/(1-VLOOKUP("Total porcentaje:",ResumenCotizacion!$F:$H,3,0)),2) -> 103766.83 | Y150: 0
A151: Catalogo principalOPEN-CSP GOBIERNOC5E-01388 | B151: C5E-01388OPEN-CSP GOBIERNO | D151: Catalogo principal | E151: C5E-01388 | F151: OPEN-CSP GOBIERNO | G151: Catalogo principal | H151: USD | I151: N/A | J151: Microsoft®VisualStudio®Professional 2019 Government OLP 1License NoLevel | K151: Unidad | L151: Und | M151: Producto | N151: N/A | O151: N/A | P151: N/A | Q151: C5E-01388 | R151: Licencia | S151: 500.59 | T151: 1 | U151: 1 | V151: =SUMIF(ResumenCotizacion!$C:$C,E151,ResumenCotizacion!$P:$P) -> 0 | W151: =IF(H151="USD",S151*SolCotizacion!$J$18,S151) -> 1834907.639 | X151: =ROUND(W151/(1-VLOOKUP("Total porcentaje:",ResumenCotizacion!$F:$H,3,0)),2) -> 1903431.16 | Y151: 0
A152: Catalogo principalOPEN-CSP GOBIERNOCF3-00007 | B152: CF3-00007OPEN-CSP GOBIERNO | D152: Catalogo principal | E152: CF3-00007 | F152: OPEN-CSP GOBIERNO | G152: Catalogo principal | H152: USD | I152: N/A | J152: Microsoft®EntMobandSecurityE5Open ShrdSvr MonthlySubscriptions-VolumeLicense Government OLP 1License NoLevel Qualified Annual | K152: Unidad | L152: Und | M152: Producto | N152: N/A | O152: N/A | P152: N/A | Q152: CF3-00007 | R152: Suscripción Anual | S152: 177.6 | T152: 1 | U152: 1 | V152: =SUMIF(ResumenCotizacion!$C:$C,E152,ResumenCotizacion!$P:$P) -> 0 | W152: =IF(H152="USD",S152*SolCotizacion!$J$18,S152) -> 650991.024 | X152: =ROUND(W152/(1-VLOOKUP("Total porcentaje:",ResumenCotizacion!$F:$H,3,0)),2) -> 675301.89 | Y152: 0
A153: Catalogo principalOPEN-CSP GOBIERNOCGJ-00006 | B153: CGJ-00006OPEN-CSP GOBIERNO | D153: Catalogo principal | E153: CGJ-00006 | F153: OPEN-CSP GOBIERNO | G153: Catalogo principal | H153: USD | I153: N/A | J153: Microsoft®AzureInfoProtPremP2Open ShrdSvr MonthlySubscriptions-VolumeLicense Government OLP 1License NoLevel Qualified Annual | K153: Unidad | L153: Und | M153: Producto | N153: N/A | O153: N/A | P153: N/A | Q153: CGJ-00006 | R153: Suscripción Anual | S153: 60 | T153: 1 | U153: 1 | V153: =SUMIF(ResumenCotizacion!$C:$C,E153,ResumenCotizacion!$P:$P) -> 0 | W153: =IF(H153="USD",S153*SolCotizacion!$J$18,S153) -> 219929.4 | X153: =ROUND(W153/(1-VLOOKUP("Total porcentaje:",ResumenCotizacion!$F:$H,3,0)),2) -> 228142.53 | Y153: 0
A154: Catalogo principalOPEN-CSP GOBIERNOD75-01971 | B154: D75-01971OPEN-CSP GOBIERNO | D154: Catalogo principal | E154: D75-01971 | F154: OPEN-CSP GOBIERNO | G154: Catalogo principal | H154: USD | I154: N/A | J154: Microsoft®BizTalk®ServerStandard License/SoftwareAssurancePack Government OLP 2Licenses NoLevel CoreLic Qualified | K154: Unidad | L154: Und | M154: Producto | N154: N/A | O154: N/A | P154: N/A | Q154: D75-01971 | R154: Licencia | S154: 7661.41 | T154: 1 | U154: 1 | V154: =SUMIF(ResumenCotizacion!$C:$C,E154,ResumenCotizacion!$P:$P) -> 0 | W154: =IF(H154="USD",S154*SolCotizacion!$J$18,S154) -> 28082821.74 | X154: =ROUND(W154/(1-VLOOKUP("Total porcentaje:",ResumenCotizacion!$F:$H,3,0)),2) -> 29131557.82 | Y154: 0
A155: Catalogo principalOPEN-CSP GOBIERNOD75-01972 | B155: D75-01972OPEN-CSP GOBIERNO | D155: Catalogo principal | E155: D75-01972 | F155: OPEN-CSP GOBIERNO | G155: Catalogo principal | H155: USD | I155: N/A | J155: Microsoft®BizTalk®ServerStandard SoftwareAssurance Government OLP 2Licenses NoLevel CoreLic Qualified | K155: Unidad | L155: Und | M155: Producto | N155: N/A | O155: N/A | P155: N/A | Q155: D75-01972 | R155: Licencia | S155: 2553.85 | T155: 1 | U155: 1 | V155: =SUMIF(ResumenCotizacion!$C:$C,E155,ResumenCotizacion!$P:$P) -> 0 | W155: =IF(H155="USD",S155*SolCotizacion!$J$18,S155) -> 9361111.636 | X155: =ROUND(W155/(1-VLOOKUP("Total porcentaje:",ResumenCotizacion!$F:$H,3,0)),2) -> 9710696.72 | Y155: 0
A156: Catalogo principalOPEN-CSP GOBIERNOD75-02468 | B156: D75-02468OPEN-CSP GOBIERNO | D156: Catalogo principal | E156: D75-02468 | F156: OPEN-CSP GOBIERNO | G156: Catalogo principal | H156: USD | I156: N/A | J156: Microsoft®BizTalk®ServerStandard 2020 Government OLP 2Licenses NoLevel CoreLic Qualified | K156: Unidad | L156: Und | M156: Producto | N156: N/A | O156: N/A | P156: N/A | Q156: D75-02468 | R156: Licencia | S156: 5107.56 | T156: 1 | U156: 1 | V156: =SUMIF(ResumenCotizacion!$C:$C,E156,ResumenCotizacion!$P:$P) -> 0 | W156: =IF(H156="USD",S156*SolCotizacion!$J$18,S156) -> 18721710.1 | X156: =ROUND(W156/(1-VLOOKUP("Total porcentaje:",ResumenCotizacion!$F:$H,3,0)),2) -> 19420861.1 | Y156: 0
A157: Catalogo principalOPEN-CSP GOBIERNOD86-02331 | B157: D86-02331OPEN-CSP GOBIERNO | D157: Catalogo principal | E157: D86-02331 | F157: OPEN-CSP GOBIERNO | G157: Catalogo principal | H157: USD | I157: N/A | J157: Microsoft®Visio®Standard License/SoftwareAssurancePack Government OLP 1License NoLevel | K157: Unidad | L157: Und | M157: Producto | N157: N/A | O157: N/A | P157: N/A | Q157: D86-02331 | R157: Licencia | S157: 395.89 | T157: 1 | U157: 1 | V157: =SUMIF(ResumenCotizacion!$C:$C,E157,ResumenCotizacion!$P:$P) -> 0 | W157: =IF(H157="USD",S157*SolCotizacion!$J$18,S157) -> 1451130.836 | X157: =ROUND(W157/(1-VLOOKUP("Total porcentaje:",ResumenCotizacion!$F:$H,3,0)),2) -> 1505322.44 | Y157: 0
A158: Catalogo principalOPEN-CSP GOBIERNOD86-02333 | B158: D86-02333OPEN-CSP GOBIERNO | D158: Catalogo principal | E158: D86-02333 | F158: OPEN-CSP GOBIERNO | G158: Catalogo principal | H158: USD | I158: N/A | J158: Microsoft®Visio®Standard SoftwareAssurance Government OLP 1License NoLevel | K158: Unidad | L158: Und | M158: Producto | N158: N/A | O158: N/A | P158: N/A | Q158: D86-02333 | R158: Licencia | S158: 145.34 | T158: 1 | U158: 1 | V158: =SUMIF(ResumenCotizacion!$C:$C,E158,ResumenCotizacion!$P:$P) -> 0 | W158: =IF(H158="USD",S158*SolCotizacion!$J$18,S158) -> 532742.3166 | X158: =ROUND(W158/(1-VLOOKUP("Total porcentaje:",ResumenCotizacion!$F:$H,3,0)),2) -> 552637.26 | Y158: 0
A159: Catalogo principalOPEN-CSP GOBIERNOD86-05877 | B159: D86-05877OPEN-CSP GOBIERNO | D159: Catalogo principal | E159: D86-05877 | F159: OPEN-CSP GOBIERNO | G159: Catalogo principal | H159: USD | I159: N/A | J159: Microsoft®Visio®Standard 2019 Government OLP 1License NoLevel | K159: Unidad | L159: Und | M159: Producto | N159: N/A | O159: N/A | P159: N/A | Q159: D86-05877 | R159: Licencia | S159: 250.55 | T159: 1 | U159: 1 | V159: =SUMIF(ResumenCotizacion!$C:$C,E159,ResumenCotizacion!$P:$P) -> 0 | W159: =IF(H159="USD",S159*SolCotizacion!$J$18,S159) -> 918388.5195 | X159: =ROUND(W159/(1-VLOOKUP("Total porcentaje:",ResumenCotizacion!$F:$H,3,0)),2) -> 952685.19 | Y159: 0
A160: Catalogo principalOPEN-CSP GOBIERNOD87-02285 | B160: D87-02285OPEN-CSP GOBIERNO | D160: Catalogo principal | E160: D87-02285 | F160: OPEN-CSP GOBIERNO | G160: Catalogo principal | H160: USD | I160: N/A | J160: Microsoft®Visio®Professional License/SoftwareAssurancePack Government OLP 1License NoLevel | K160: Unidad | L160: Und | M160: Producto | N160: N/A | O160: N/A | P160: N/A | Q160: D87-02285 | R160: Licencia | S160: 765.96 | T160: 1 | U160: 1 | V160: =SUMIF(ResumenCotizacion!$C:$C,E160,ResumenCotizacion!$P:$P) -> 0 | W160: =IF(H160="USD",S160*SolCotizacion!$J$18,S160) -> 2807618.72 | X160: =ROUND(W160/(1-VLOOKUP("Total porcentaje:",ResumenCotizacion!$F:$H,3,0)),2) -> 2912467.55 | Y160: 0
A161: Catalogo principalOPEN-CSP GOBIERNOD87-02286 | B161: D87-02286OPEN-CSP GOBIERNO | D161: Catalogo principal | E161: D87-02286 | F161: OPEN-CSP GOBIERNO | G161: Catalogo principal | H161: USD | I161: N/A | J161: Microsoft®Visio®Professional SoftwareAssurance Government OLP 1License NoLevel | K161: Unidad | L161: Und | M161: Producto | N161: N/A | O161: N/A | P161: N/A | Q161: D87-02286 | R161: Licencia | S161: 281.24 | T161: 1 | U161: 1 | V161: =SUMIF(ResumenCotizacion!$C:$C,E161,ResumenCotizacion!$P:$P) -> 0 | W161: =IF(H161="USD",S161*SolCotizacion!$J$18,S161) -> 1030882.408 | X161: =ROUND(W161/(1-VLOOKUP("Total porcentaje:",ResumenCotizacion!$F:$H,3,0)),2) -> 1069380.09 | Y161: 0
A162: Catalogo principalOPEN-CSP GOBIERNOD87-07508 | B162: D87-07508OPEN-CSP GOBIERNO | D162: Catalogo principal | E162: D87-07508 | F162: OPEN-CSP GOBIERNO | G162: Catalogo principal | H162: USD | I162: N/A | J162: Microsoft®Visio®Professional 2019 Government OLP 1License NoLevel | K162: Unidad | L162: Und | M162: Producto | N162: N/A | O162: N/A | P162: N/A | Q162: D87-07508 | R162: Licencia | S162: 484.72 | T162: 1 | U162: 1 | V162: =SUMIF(ResumenCotizacion!$C:$C,E162,ResumenCotizacion!$P:$P) -> 0 | W162: =IF(H162="USD",S162*SolCotizacion!$J$18,S162) -> 1776736.313 | X162: =ROUND(W162/(1-VLOOKUP("Total porcentaje:",ResumenCotizacion!$F:$H,3,0)),2) -> 1843087.46 | Y162: 0
A163: Catalogo principalOPEN-CSP GOBIERNODW6-00006 | B163: DW6-00006OPEN-CSP GOBIERNO | D163: Catalogo principal | E163: DW6-00006 | F163: OPEN-CSP GOBIERNO | G163: Catalogo principal | H163: USD | I163: N/A | J163: Microsoft®PowerBIProOpen ShrdSvr MonthlySubscriptions-VolumeLicense Government OLP 1License NoLevel Qualified Annual | K163: Unidad | L163: Und | M163: Producto | N163: N/A | O163: N/A | P163: N/A | Q163: DW6-00006 | R163: Suscripción Anual | S163: 119.9 | T163: 1 | U163: 1 | V163: =SUMIF(ResumenCotizacion!$C:$C,E163,ResumenCotizacion!$P:$P) -> 20 | W163: =IF(H163="USD",S163*SolCotizacion!$J$18,S163) -> 439492.251 | X163: =ROUND(W163/(1-VLOOKUP("Total porcentaje:",ResumenCotizacion!$F:$H,3,0)),2) -> 455904.82 | Y163: 9118096.4
A164: Catalogo principalOPEN-CSP GOBIERNOEMJ-00129 | B164: EMJ-00129OPEN-CSP GOBIERNO | D164: Catalogo principal | E164: EMJ-00129 | F164: OPEN-CSP GOBIERNO | G164: Catalogo principal | H164: USD | I164: N/A | J164: Microsoft®Dyn365TeamMembers License/SoftwareAssurancePack Government OLP 1License NoLevel DvcCAL Qualified | K164: Unidad | L164: Und | M164: Producto | N164: N/A | O164: N/A | P164: N/A | Q164: EMJ-00129 | R164: Licencia | S164: 295.01 | T164: 1 | U164: 1 | V164: =SUMIF(ResumenCotizacion!$C:$C,E164,ResumenCotizacion!$P:$P) -> 0 | W164: =IF(H164="USD",S164*SolCotizacion!$J$18,S164) -> 1081356.205 | X164: =ROUND(W164/(1-VLOOKUP("Total porcentaje:",ResumenCotizacion!$F:$H,3,0)),2) -> 1121738.8 | Y164: 0
A165: Catalogo principalOPEN-CSP GOBIERNOEMJ-00130 | B165: EMJ-00130OPEN-CSP GOBIERNO | D165: Catalogo principal | E165: EMJ-00130 | F165: OPEN-CSP GOBIERNO | G165: Catalogo principal | H165: USD | I165: N/A | J165: Microsoft®Dyn365TeamMembers License/SoftwareAssurancePack Government OLP 1License NoLevel UsrCAL Qualified | K165: Unidad | L165: Und | M165: Producto | N165: N/A | O165: N/A | P165: N/A | Q165: EMJ-00130 | R165: Licencia | S165: 196.57 | T165: 1 | U165: 1 | V165: =SUMIF(ResumenCotizacion!$C:$C,E165,ResumenCotizacion!$P:$P) -> 0 | W165: =IF(H165="USD",S165*SolCotizacion!$J$18,S165) -> 720525.3693 | X165: =ROUND(W165/(1-VLOOKUP("Total porcentaje:",ResumenCotizacion!$F:$H,3,0)),2) -> 747432.96 | Y165: 0
A166: Catalogo principalOPEN-CSP GOBIERNOEMJ-00131 | B166: EMJ-00131OPEN-CSP GOBIERNO | D166: Catalogo principal | E166: EMJ-00131 | F166: OPEN-CSP GOBIERNO | G166: Catalogo principal | H166: USD | I166: N/A | J166: Microsoft®Dyn365TeamMembers SoftwareAssurance Government OLP 1License NoLevel DvcCAL Qualified | K166: Unidad | L166: Und | M166: Producto | N166: N/A | O166: N/A | P166: N/A | Q166: EMJ-00131 | R166: Licencia | S166: 98.29 | T166: 1 | U166: 1 | V166: =SUMIF(ResumenCotizacion!$C:$C,E166,ResumenCotizacion!$P:$P) -> 0 | W166: =IF(H166="USD",S166*SolCotizacion!$J$18,S166) -> 360281.0121 | X166: =ROUND(W166/(1-VLOOKUP("Total porcentaje:",ResumenCotizacion!$F:$H,3,0)),2) -> 373735.49 | Y166: 0
A167: Catalogo principalOPEN-CSP GOBIERNOEMJ-00132 | B167: EMJ-00132OPEN-CSP GOBIERNO | D167: Catalogo principal | E167: EMJ-00132 | F167: OPEN-CSP GOBIERNO | G167: Catalogo principal | H167: USD | I167: N/A | J167: Microsoft®Dyn365TeamMembers SoftwareAssurance Government OLP 1License NoLevel UsrCAL Qualified | K167: Unidad | L167: Und | M167: Producto | N167: N/A | O167: N/A | P167: N/A | Q167: EMJ-00132 | R167: Licencia | S167: 65.43 | T167: 1 | U167: 1 | V167: =SUMIF(ResumenCotizacion!$C:$C,E167,ResumenCotizacion!$P:$P) -> 0 | W167: =IF(H167="USD",S167*SolCotizacion!$J$18,S167) -> 239833.0107 | X167: =ROUND(W167/(1-VLOOKUP("Total porcentaje:",ResumenCotizacion!$F:$H,3,0)),2) -> 248789.43 | Y167: 0
A168: Catalogo principalOPEN-CSP GOBIERNOEMT-00129 | B168: EMT-00129OPEN-CSP GOBIERNO | D168: Catalogo principal | E168: EMT-00129 | F168: OPEN-CSP GOBIERNO | G168: Catalogo principal | H168: USD | I168: N/A | J168: Microsoft®Dyn365CustomerService License/SoftwareAssurancePack Government OLP 1License NoLevel DvcCAL Qualified | K168: Unidad | L168: Und | M168: Producto | N168: N/A | O168: N/A | P168: N/A | Q168: EMT-00129 | R168: Licencia | S168: 3699.31 | T168: 1 | U168: 1 | V168: =SUMIF(ResumenCotizacion!$C:$C,E168,ResumenCotizacion!$P:$P) -> 0 | W168: =IF(H168="USD",S168*SolCotizacion!$J$18,S168) -> 13559783.81 | X168: =ROUND(W168/(1-VLOOKUP("Total porcentaje:",ResumenCotizacion!$F:$H,3,0)),2) -> 14066165.78 | Y168: 0
A169: Catalogo principalOPEN-CSP GOBIERNOEMT-00130 | B169: EMT-00130OPEN-CSP GOBIERNO | D169: Catalogo principal | E169: EMT-00130 | F169: OPEN-CSP GOBIERNO | G169: Catalogo principal | H169: USD | I169: N/A | J169: Microsoft®Dyn365CustomerService License/SoftwareAssurancePack Government OLP 1License NoLevel UsrCAL Qualified | K169: Unidad | L169: Und | M169: Producto | N169: N/A | O169: N/A | P169: N/A | Q169: EMT-00130 | R169: Licencia | S169: 2466.39 | T169: 1 | U169: 1 | V169: =SUMIF(ResumenCotizacion!$C:$C,E169,ResumenCotizacion!$P:$P) -> 0 | W169: =IF(H169="USD",S169*SolCotizacion!$J$18,S169) -> 9040527.881 | X169: =ROUND(W169/(1-VLOOKUP("Total porcentaje:",ResumenCotizacion!$F:$H,3,0)),2) -> 9378140.96 | Y169: 0
A170: Catalogo principalOPEN-CSP GOBIERNOEMT-00131 | B170: EMT-00131OPEN-CSP GOBIERNO | D170: Catalogo principal | E170: EMT-00131 | F170: OPEN-CSP GOBIERNO | G170: Catalogo principal | H170: USD | I170: N/A | J170: Microsoft®Dyn365CustomerService SoftwareAssurance Government OLP 1License NoLevel DvcCAL Qualified | K170: Unidad | L170: Und | M170: Producto | N170: N/A | O170: N/A | P170: N/A | Q170: EMT-00131 | R170: Licencia | S170: 1233.05 | T170: 1 | U170: 1 | V170: =SUMIF(ResumenCotizacion!$C:$C,E170,ResumenCotizacion!$P:$P) -> 0 | W170: =IF(H170="USD",S170*SolCotizacion!$J$18,S170) -> 4519732.444 | X170: =ROUND(W170/(1-VLOOKUP("Total porcentaje:",ResumenCotizacion!$F:$H,3,0)),2) -> 4688519.13 | Y170: 0
A171: Catalogo principalOPEN-CSP GOBIERNOEMT-00132 | B171: EMT-00132OPEN-CSP GOBIERNO | D171: Catalogo principal | E171: EMT-00132 | F171: OPEN-CSP GOBIERNO | G171: Catalogo principal | H171: USD | I171: N/A | J171: Microsoft®Dyn365CustomerService SoftwareAssurance Government OLP 1License NoLevel UsrCAL Qualified | K171: Unidad | L171: Und | M171: Producto | N171: N/A | O171: N/A | P171: N/A | Q171: EMT-00132 | R171: Licencia | S171: 822.13 | T171: 1 | U171: 1 | V171: =SUMIF(ResumenCotizacion!$C:$C,E171,ResumenCotizacion!$P:$P) -> 0 | W171: =IF(H171="USD",S171*SolCotizacion!$J$18,S171) -> 3013509.294 | X171: =ROUND(W171/(1-VLOOKUP("Total porcentaje:",ResumenCotizacion!$F:$H,3,0)),2) -> 3126046.99 | Y171: 0
A172: Catalogo principalOPEN-CSP GOBIERNOENJ-00129 | B172: ENJ-00129OPEN-CSP GOBIERNO | D172: Catalogo principal | E172: ENJ-00129 | F172: OPEN-CSP GOBIERNO | G172: Catalogo principal | H172: USD | I172: N/A | J172: Microsoft®Dyn365Sales License/SoftwareAssurancePack Government OLP 1License NoLevel DvcCAL Qualified | K172: Unidad | L172: Und | M172: Producto | N172: N/A | O172: N/A | P172: N/A | Q172: ENJ-00129 | R172: Licencia | S172: 3699.31 | T172: 1 | U172: 1 | V172: =SUMIF(ResumenCotizacion!$C:$C,E172,ResumenCotizacion!$P:$P) -> 0 | W172: =IF(H172="USD",S172*SolCotizacion!$J$18,S172) -> 13559783.81 | X172: =ROUND(W172/(1-VLOOKUP("Total porcentaje:",ResumenCotizacion!$F:$H,3,0)),2) -> 14066165.78 | Y172: 0
A173: Catalogo principalOPEN-CSP GOBIERNOENJ-00130 | B173: ENJ-00130OPEN-CSP GOBIERNO | D173: Catalogo principal | E173: ENJ-00130 | F173: OPEN-CSP GOBIERNO | G173: Catalogo principal | H173: USD | I173: N/A | J173: Microsoft®Dyn365Sales License/SoftwareAssurancePack Government OLP 1License NoLevel UsrCAL Qualified | K173: Unidad | L173: Und | M173: Producto | N173: N/A | O173: N/A | P173: N/A | Q173: ENJ-00130 | R173: Licencia | S173: 2466.39 | T173: 1 | U173: 1 | V173: =SUMIF(ResumenCotizacion!$C:$C,E173,ResumenCotizacion!$P:$P) -> 0 | W173: =IF(H173="USD",S173*SolCotizacion!$J$18,S173) -> 9040527.881 | X173: =ROUND(W173/(1-VLOOKUP("Total porcentaje:",ResumenCotizacion!$F:$H,3,0)),2) -> 9378140.96 | Y173: 0
A174: Catalogo principalOPEN-CSP GOBIERNOENJ-00131 | B174: ENJ-00131OPEN-CSP GOBIERNO | D174: Catalogo principal | E174: ENJ-00131 | F174: OPEN-CSP GOBIERNO | G174: Catalogo principal | H174: USD | I174: N/A | J174: Microsoft®Dyn365Sales SoftwareAssurance Government OLP 1License NoLevel DvcCAL Qualified | K174: Unidad | L174: Und | M174: Producto | N174: N/A | O174: N/A | P174: N/A | Q174: ENJ-00131 | R174: Licencia | S174: 1233.05 | T174: 1 | U174: 1 | V174: =SUMIF(ResumenCotizacion!$C:$C,E174,ResumenCotizacion!$P:$P) -> 0 | W174: =IF(H174="USD",S174*SolCotizacion!$J$18,S174) -> 4519732.444 | X174: =ROUND(W174/(1-VLOOKUP("Total porcentaje:",ResumenCotizacion!$F:$H,3,0)),2) -> 4688519.13 | Y174: 0
A175: Catalogo principalOPEN-CSP GOBIERNOENJ-00132 | B175: ENJ-00132OPEN-CSP GOBIERNO | D175: Catalogo principal | E175: ENJ-00132 | F175: OPEN-CSP GOBIERNO | G175: Catalogo principal | H175: USD | I175: N/A | J175: Microsoft®Dyn365Sales SoftwareAssurance Government OLP 1License NoLevel UsrCAL Qualified | K175: Unidad | L175: Und | M175: Producto | N175: N/A | O175: N/A | P175: N/A | Q175: ENJ-00132 | R175: Licencia | S175: 822.13 | T175: 1 | U175: 1 | V175: =SUMIF(ResumenCotizacion!$C:$C,E175,ResumenCotizacion!$P:$P) -> 0 | W175: =IF(H175="USD",S175*SolCotizacion!$J$18,S175) -> 3013509.294 | X175: =ROUND(W175/(1-VLOOKUP("Total porcentaje:",ResumenCotizacion!$F:$H,3,0)),2) -> 3126046.99 | Y175: 0
A176: Catalogo principalOPEN-CSP GOBIERNOEVQ-00006 | B176: EVQ-00006OPEN-CSP GOBIERNO | D176: Catalogo principal | E176: EVQ-00006 | F176: OPEN-CSP GOBIERNO | G176: Catalogo principal | H176: USD | I176: N/A | J176: Microsoft®StreamPlan1OPEN ShrdSvr MonthlySubscriptions-VolumeLicense Government OLP 1License NoLevel RenewalOnly Qualified Annual | K176: Unidad | L176: Und | M176: Producto | N176: N/A | O176: N/A | P176: N/A | Q176: EVQ-00006 | R176: Suscripción Anual | S176: 36 | T176: 1 | U176: 1 | V176: =SUMIF(ResumenCotizacion!$C:$C,E176,ResumenCotizacion!$P:$P) -> 0 | W176: =IF(H176="USD",S176*SolCotizacion!$J$18,S176) -> 131957.64 | X176: =ROUND(W176/(1-VLOOKUP("Total porcentaje:",ResumenCotizacion!$F:$H,3,0)),2) -> 136885.52 | Y176: 0
A177: Catalogo principalOPEN-CSP GOBIERNOEVY-00006 | B177: EVY-00006OPEN-CSP GOBIERNO | D177: Catalogo principal | E177: EVY-00006 | F177: OPEN-CSP GOBIERNO | G177: Catalogo principal | H177: USD | I177: N/A | J177: Microsoft®StreamStorageOPEN ShrdSvr MonthlySubscriptions-VolumeLicense Government OLP 1License NoLevel ExtraStorage500GB AddOn Qualified Annual | K177: Unidad | L177: Und | M177: Producto | N177: N/A | O177: N/A | P177: N/A | Q177: EVY-00006 | R177: Suscripción Anual | S177: 1200.1 | T177: 1 | U177: 1 | V177: =SUMIF(ResumenCotizacion!$C:$C,E177,ResumenCotizacion!$P:$P) -> 0 | W177: =IF(H177="USD",S177*SolCotizacion!$J$18,S177) -> 4398954.549 | X177: =ROUND(W177/(1-VLOOKUP("Total porcentaje:",ResumenCotizacion!$F:$H,3,0)),2) -> 4563230.86 | Y177: 0
A178: Catalogo principalOPEN-CSP GOBIERNOEWH-00006 | B178: EWH-00006OPEN-CSP GOBIERNO | D178: Catalogo principal | E178: EWH-00006 | F178: OPEN-CSP GOBIERNO | G178: Catalogo principal | H178: USD | I178: N/A | J178: Microsoft®MSStreamOPEN ShrdSvr MonthlySubscriptions-VolumeLicense Government OLP 1License NoLevel Qualified Annual | K178: Unidad | L178: Und | M178: Producto | N178: N/A | O178: N/A | P178: N/A | Q178: EWH-00006 | R178: Suscripción Anual | S178: 60 | T178: 1 | U178: 1 | V178: =SUMIF(ResumenCotizacion!$C:$C,E178,ResumenCotizacion!$P:$P) -> 0 | W178: =IF(H178="USD",S178*SolCotizacion!$J$18,S178) -> 219929.4 | X178: =ROUND(W178/(1-VLOOKUP("Total porcentaje:",ResumenCotizacion!$F:$H,3,0)),2) -> 228142.53 | Y178: 0
A179: Catalogo principalOPEN-CSP GOBIERNOF52-02136 | B179: F52-02136OPEN-CSP GOBIERNO | D179: Catalogo principal | E179: F52-02136 | F179: OPEN-CSP GOBIERNO | G179: Catalogo principal | H179: USD | I179: N/A | J179: Microsoft®BizTalk®ServerEnterprise License/SoftwareAssurancePack Government OLP 2Licenses NoLevel CoreLic Qualified | K179: Unidad | L179: Und | M179: Producto | N179: N/A | O179: N/A | P179: N/A | Q179: F52-02136 | R179: Licencia | S179: 33426.5 | T179: 1 | U179: 1 | V179: =SUMIF(ResumenCotizacion!$C:$C,E179,ResumenCotizacion!$P:$P) -> 0 | W179: =IF(H179="USD",S179*SolCotizacion!$J$18,S179) -> 122524501.5 | X179: =ROUND(W179/(1-VLOOKUP("Total porcentaje:",ResumenCotizacion!$F:$H,3,0)),2) -> 127100105.3 | Y179: 0
A180: Catalogo principalOPEN-CSP GOBIERNOF52-02137 | B180: F52-02137OPEN-CSP GOBIERNO | D180: Catalogo principal | E180: F52-02137 | F180: OPEN-CSP GOBIERNO | G180: Catalogo principal | H180: USD | I180: N/A | J180: Microsoft®BizTalk®ServerEnterprise SoftwareAssurance Government OLP 2Licenses NoLevel CoreLic Qualified | K180: Unidad | L180: Und | M180: Producto | N180: N/A | O180: N/A | P180: N/A | Q180: F52-02137 | R180: Licencia | S180: 11142.21 | T180: 1 | U180: 1 | V180: =SUMIF(ResumenCotizacion!$C:$C,E180,ResumenCotizacion!$P:$P) -> 0 | W180: =IF(H180="USD",S180*SolCotizacion!$J$18,S180) -> 40841659.33 | X180: =ROUND(W180/(1-VLOOKUP("Total porcentaje:",ResumenCotizacion!$F:$H,3,0)),2) -> 42366866.53 | Y180: 0
A181: Catalogo principalOPEN-CSP GOBIERNOF52-02765 | B181: F52-02765OPEN-CSP GOBIERNO | D181: Catalogo principal | E181: F52-02765 | F181: OPEN-CSP GOBIERNO | G181: Catalogo principal | H181: USD | I181: N/A | J181: Microsoft®BizTalk®ServerEnterprise 2020 Government OLP 2Licenses NoLevel CoreLic Qualified | K181: Unidad | L181: Und | M181: Producto | N181: N/A | O181: N/A | P181: N/A | Q181: F52-02765 | R181: Licencia | S181: 22284.29 | T181: 1 | U181: 1 | V181: =SUMIF(ResumenCotizacion!$C:$C,E181,ResumenCotizacion!$P:$P) -> 0 | W181: =IF(H181="USD",S181*SolCotizacion!$J$18,S181) -> 81682842.15 | X181: =ROUND(W181/(1-VLOOKUP("Total porcentaje:",ResumenCotizacion!$F:$H,3,0)),2) -> 84733238.75 | Y181: 0
A182: Catalogo principalOPEN-CSP GOBIERNOFQC-09478 | B182: FQC-09478OPEN-CSP GOBIERNO | D182: Catalogo principal | E182: FQC-09478 | F182: OPEN-CSP GOBIERNO | G182: Catalogo principal | H182: USD | I182: N/A | J182: Microsoft®WindowsProfessional 10 Sngl OLP 1License NoLevel Legalization GetGenuine | K182: Unidad | L182: Und | M182: Producto | N182: N/A | O182: N/A | P182: N/A | Q182: FQC-09478 | R182: Licencia | S182: 217.04 | T182: 1 | U182: 1 | V182: =SUMIF(ResumenCotizacion!$C:$C,E182,ResumenCotizacion!$P:$P) -> 0 | W182: =IF(H182="USD",S182*SolCotizacion!$J$18,S182) -> 795557.9496 | X182: =ROUND(W182/(1-VLOOKUP("Total porcentaje:",ResumenCotizacion!$F:$H,3,0)),2) -> 825267.58 | Y182: 0
A183: Catalogo principalOPEN-CSP GOBIERNOFQC-09543 | B183: FQC-09543OPEN-CSP GOBIERNO | D183: Catalogo principal | E183: FQC-09543 | F183: OPEN-CSP GOBIERNO | G183: Catalogo principal | H183: USD | I183: N/A | J183: Microsoft®WindowsProfessional 10 Upgrade Government OLP 1License NoLevel | K183: Unidad | L183: Und | M183: Producto | N183: N/A | O183: N/A | P183: N/A | Q183: FQC-09543 | R183: Licencia | S183: 187.92 | T183: 1 | U183: 1 | V183: =SUMIF(ResumenCotizacion!$C:$C,E183,ResumenCotizacion!$P:$P) -> 0 | W183: =IF(H183="USD",S183*SolCotizacion!$J$18,S183) -> 688818.8808 | X183: =ROUND(W183/(1-VLOOKUP("Total porcentaje:",ResumenCotizacion!$F:$H,3,0)),2) -> 714542.41 | Y183: 0
A184: Catalogo principalOPEN-CSP GOBIERNOFTH-00006 | B184: FTH-00006OPEN-CSP GOBIERNO | D184: Catalogo principal | E184: FTH-00006 | F184: OPEN-CSP GOBIERNO | G184: Catalogo principal | H184: USD | I184: N/A | J184: Microsoft® Defender for O365 Plan 2 Open Monthly Subscriptions-Volume License Government OLP 1 License No Level Qualified Annual | K184: Unidad | L184: Und | M184: Producto | N184: N/A | O184: N/A | P184: N/A | Q184: FTH-00006 | R184: Suscripción Anual | S184: 60 | T184: 1 | U184: 1 | V184: =SUMIF(ResumenCotizacion!$C:$C,E184,ResumenCotizacion!$P:$P) -> 0 | W184: =IF(H184="USD",S184*SolCotizacion!$J$18,S184) -> 219929.4 | X184: =ROUND(W184/(1-VLOOKUP("Total porcentaje:",ResumenCotizacion!$F:$H,3,0)),2) -> 228142.53 | Y184: 0
A185: Catalogo principalOPEN-CSP GOBIERNOG3S-00505 | B185: G3S-00505OPEN-CSP GOBIERNO | D185: Catalogo principal | E185: G3S-00505 | F185: OPEN-CSP GOBIERNO | G185: Catalogo principal | H185: USD | I185: N/A | J185: Microsoft®WindowsServerEssentials License/SoftwareAssurancePack Government OLP 1License NoLevel | K185: Unidad | L185: Und | M185: Producto | N185: N/A | O185: N/A | P185: N/A | Q185: G3S-00505 | R185: Licencia | S185: 755.11 | T185: 1 | U185: 1 | V185: =SUMIF(ResumenCotizacion!$C:$C,E185,ResumenCotizacion!$P:$P) -> 0 | W185: =IF(H185="USD",S185*SolCotizacion!$J$18,S185) -> 2767848.154 | X185: =ROUND(W185/(1-VLOOKUP("Total porcentaje:",ResumenCotizacion!$F:$H,3,0)),2) -> 2871211.78 | Y185: 0
A186: Catalogo principalOPEN-CSP GOBIERNOG3S-00506 | B186: G3S-00506OPEN-CSP GOBIERNO | D186: Catalogo principal | E186: G3S-00506 | F186: OPEN-CSP GOBIERNO | G186: Catalogo principal | H186: USD | I186: N/A | J186: Microsoft®WindowsServerEssentials SoftwareAssurance Government OLP 1License NoLevel | K186: Unidad | L186: Und | M186: Producto | N186: N/A | O186: N/A | P186: N/A | Q186: G3S-00506 | R186: Licencia | S186: 251.65 | T186: 1 | U186: 1 | V186: =SUMIF(ResumenCotizacion!$C:$C,E186,ResumenCotizacion!$P:$P) -> 0 | W186: =IF(H186="USD",S186*SolCotizacion!$J$18,S186) -> 922420.5585 | X186: =ROUND(W186/(1-VLOOKUP("Total porcentaje:",ResumenCotizacion!$F:$H,3,0)),2) -> 956867.8 | Y186: 0
A187: Catalogo principalOPEN-CSP GOBIERNOG3S-01268 | B187: G3S-01268OPEN-CSP GOBIERNO | D187: Catalogo principal | E187: G3S-01268 | F187: OPEN-CSP GOBIERNO | G187: Catalogo principal | H187: USD | I187: N/A | J187: Microsoft®WindowsServerEssentials 2019 Government OLP 1License NoLevel | K187: Unidad | L187: Und | M187: Producto | N187: N/A | O187: N/A | P187: N/A | Q187: G3S-01268 | R187: Licencia | S187: 503.45 | T187: 1 | U187: 1 | V187: =SUMIF(ResumenCotizacion!$C:$C,E187,ResumenCotizacion!$P:$P) -> 0 | W187: =IF(H187="USD",S187*SolCotizacion!$J$18,S187) -> 1845390.94 | X187: =ROUND(W187/(1-VLOOKUP("Total porcentaje:",ResumenCotizacion!$F:$H,3,0)),2) -> 1914305.95 | Y187: 0
A188: Catalogo principalOPEN-CSP GOBIERNOGLX-00002 | B188: GLX-00002OPEN-CSP GOBIERNO | D188: Catalogo principal | E188: GLX-00002 | F188: OPEN-CSP GOBIERNO | G188: Catalogo principal | H188: USD | I188: N/A | J188: Microsoft®Dyn365ProDirectSupportOpen ShrdSvr MonthlySubscriptions-VolumeLicense Government OLP 1License NoLevel PerUsr FORAPPS/CEPL/UNIOPSPL Annual | K188: Unidad | L188: Und | M188: Producto | N188: N/A | O188: N/A | P188: N/A | Q188: GLX-00002 | R188: Suscripción Anual | S188: 108 | T188: 1 | U188: 1 | V188: =SUMIF(ResumenCotizacion!$C:$C,E188,ResumenCotizacion!$P:$P) -> 0 | W188: =IF(H188="USD",S188*SolCotizacion!$J$18,S188) -> 395872.92 | X188: =ROUND(W188/(1-VLOOKUP("Total porcentaje:",ResumenCotizacion!$F:$H,3,0)),2) -> 410656.56 | Y188: 0
A189: Catalogo principalOPEN-CSP GOBIERNOGMG-00004 | B189: GMG-00004OPEN-CSP GOBIERNO | D189: Catalogo principal | E189: GMG-00004 | F189: OPEN-CSP GOBIERNO | G189: Catalogo principal | H189: USD | I189: N/A | J189: Microsoft®Dyn365ECstEngAddlDBStorOpen ShrdSvr MonthlySubscriptions-VolumeLicense Government OLP 1License NoLevel AddOn ExtraStorage1GB Annual | K189: Unidad | L189: Und | M189: Producto | N189: N/A | O189: N/A | P189: N/A | Q189: GMG-00004 | R189: Suscripción Anual | S189: 60 | T189: 1 | U189: 1 | V189: =SUMIF(ResumenCotizacion!$C:$C,E189,ResumenCotizacion!$P:$P) -> 0 | W189: =IF(H189="USD",S189*SolCotizacion!$J$18,S189) -> 219929.4 | X189: =ROUND(W189/(1-VLOOKUP("Total porcentaje:",ResumenCotizacion!$F:$H,3,0)),2) -> 228142.53 | Y189: 0
A190: Catalogo principalOPEN-CSP GOBIERNOGMS-00007 | B190: GMS-00007OPEN-CSP GOBIERNO | D190: Catalogo principal | E190: GMS-00007 | F190: OPEN-CSP GOBIERNO | G190: Catalogo principal | H190: USD | I190: N/A | J190: Microsoft®Dyn365EforCustServAddOnOpen ShrdSvr MonthlySubscriptions-VolumeLicense Government OLP 1License NoLevel PerDvc Annual | K190: Unidad | L190: Und | M190: Producto | N190: N/A | O190: N/A | P190: N/A | Q190: GMS-00007 | R190: Suscripción Anual | S190: 1740 | T190: 1 | U190: 1 | V190: =SUMIF(ResumenCotizacion!$C:$C,E190,ResumenCotizacion!$P:$P) -> 0 | W190: =IF(H190="USD",S190*SolCotizacion!$J$18,S190) -> 6377952.6 | X190: =ROUND(W190/(1-VLOOKUP("Total porcentaje:",ResumenCotizacion!$F:$H,3,0)),2) -> 6616133.4 | Y190: 0
A191: Catalogo principalOPEN-CSP GOBIERNOGMS-00008 | B191: GMS-00008OPEN-CSP GOBIERNO | D191: Catalogo principal | E191: GMS-00008 | F191: OPEN-CSP GOBIERNO | G191: Catalogo principal | H191: USD | I191: N/A | J191: Microsoft®Dyn365EforCustServAddOnOpen ShrdSvr MonthlySubscriptions-VolumeLicense Government OLP 1License NoLevel PerUsr Annual | K191: Unidad | L191: Und | M191: Producto | N191: N/A | O191: N/A | P191: N/A | Q191: GMS-00008 | R191: Suscripción Anual | S191: 1140 | T191: 1 | U191: 1 | V191: =SUMIF(ResumenCotizacion!$C:$C,E191,ResumenCotizacion!$P:$P) -> 0 | W191: =IF(H191="USD",S191*SolCotizacion!$J$18,S191) -> 4178658.6 | X191: =ROUND(W191/(1-VLOOKUP("Total porcentaje:",ResumenCotizacion!$F:$H,3,0)),2) -> 4334708.09 | Y191: 0
A192: Catalogo principalOPEN-CSP GOBIERNOGMS-00020 | B192: GMS-00020OPEN-CSP GOBIERNO | D192: Catalogo principal | E192: GMS-00020 | F192: OPEN-CSP GOBIERNO | G192: Catalogo principal | H192: USD | I192: N/A | J192: Microsoft®Dyn365EforCustServAddOnOpen ShrdSvr MonthlySubscriptions-VolumeLicense Government OLP 1License NoLevel PerDvc toCustService Annual | K192: Unidad | L192: Und | M192: Producto | N192: N/A | O192: N/A | P192: N/A | Q192: GMS-00020 | R192: Suscripción Anual | S192: 958.32 | T192: 1 | U192: 1 | V192: =SUMIF(ResumenCotizacion!$C:$C,E192,ResumenCotizacion!$P:$P) -> 0 | W192: =IF(H192="USD",S192*SolCotizacion!$J$18,S192) -> 3512712.377 | X192: =ROUND(W192/(1-VLOOKUP("Total porcentaje:",ResumenCotizacion!$F:$H,3,0)),2) -> 3643892.51 | Y192: 0
A193: Catalogo principalOPEN-CSP GOBIERNOGMS-00021 | B193: GMS-00021OPEN-CSP GOBIERNO | D193: Catalogo principal | E193: GMS-00021 | F193: OPEN-CSP GOBIERNO | G193: Catalogo principal | H193: USD | I193: N/A | J193: Microsoft®Dyn365EforCustServAddOnOpen ShrdSvr MonthlySubscriptions-VolumeLicense Government OLP 1License NoLevel PerUsr toCustService Annual | K193: Unidad | L193: Und | M193: Producto | N193: N/A | O193: N/A | P193: N/A | Q193: GMS-00021 | R193: Suscripción Anual | S193: 621.84 | T193: 1 | U193: 1 | V193: =SUMIF(ResumenCotizacion!$C:$C,E193,ResumenCotizacion!$P:$P) -> 0 | W193: =IF(H193="USD",S193*SolCotizacion!$J$18,S193) -> 2279348.302 | X193: =ROUND(W193/(1-VLOOKUP("Total porcentaje:",ResumenCotizacion!$F:$H,3,0)),2) -> 2364469.19 | Y193: 0
A194: =D194&F194&E194 -> Catalogo principalOPEN-CSP GOBIERNOGMV-00012 | B194: =E194&F194 -> GMV-00012OPEN-CSP GOBIERNO | D194: Catalogo principal | E194: GMV-00012 | F194: OPEN-CSP GOBIERNO | G194: Catalogo principal | H194: USD | I194: N/A | J194: Microsoft®Dyn365EforCustServFromSAOpen ShrdSvr MonthlySubscriptions-VolumeLicense Government OLP 1License NoLevel PerDvc Annual | K194: Unidad | L194: Und | M194: Producto | N194: N/A | O194: N/A | P194: N/A | Q194: =+E194 -> GMV-00012 | R194: Suscripción Anual | S194: 1479 | T194: 1 | U194: 1 | V194: =SUMIF(ResumenCotizacion!$C:$C,E194,ResumenCotizacion!$P:$P) -> 0 | W194: =IF(H194="USD",S194*SolCotizacion!$J$18,S194) -> 5421259.71 | X194: =ROUND(W194/(1-VLOOKUP("Total porcentaje:",ResumenCotizacion!$F:$H,3,0)),2) -> 5623713.39 | Y194: 0
A195: Catalogo principalOPEN-CSP GOBIERNOGMV-00013 | B195: GMV-00013OPEN-CSP GOBIERNO | D195: Catalogo principal | E195: GMV-00013 | F195: OPEN-CSP GOBIERNO | G195: Catalogo principal | H195: USD | I195: N/A | J195: Microsoft®Dyn365EforCustServFromSAOpen ShrdSvr MonthlySubscriptions-VolumeLicense Government OLP 1License NoLevel PerUsr Annual | K195: Unidad | L195: Und | M195: Producto | N195: N/A | O195: N/A | P195: N/A | Q195: GMV-00013 | R195: Suscripción Anual | S195: 969 | T195: 1 | U195: 1 | V195: =SUMIF(ResumenCotizacion!$C:$C,E195,ResumenCotizacion!$P:$P) -> 0 | W195: =IF(H195="USD",S195*SolCotizacion!$J$18,S195) -> 3551859.81 | X195: =ROUND(W195/(1-VLOOKUP("Total porcentaje:",ResumenCotizacion!$F:$H,3,0)),2) -> 3684501.88 | Y195: =V195*X195 -> 0
A196: Catalogo principalOPEN-CSP GOBIERNOGMY-00007 | B196: GMY-00007OPEN-CSP GOBIERNO | D196: Catalogo principal | E196: GMY-00007 | F196: OPEN-CSP GOBIERNO | G196: Catalogo principal | H196: USD | I196: N/A | J196: Microsoft®Dyn365EforCustomerServiceOpen ShrdSvr MonthlySubscriptions-VolumeLicense Government OLP 1License NoLevel PerDvc Annual | K196: Unidad | L196: Und | M196: Producto | N196: N/A | O196: N/A | P196: N/A | Q196: GMY-00007 | R196: Suscripción Anual | S196: 1740 | T196: 1 | U196: 1 | V196: =SUMIF(ResumenCotizacion!$C:$C,E196,ResumenCotizacion!$P:$P) -> 0 | W196: =IF(H196="USD",S196*SolCotizacion!$J$18,S196) -> 6377952.6 | X196: =ROUND(W196/(1-VLOOKUP("Total porcentaje:",ResumenCotizacion!$F:$H,3,0)),2) -> 6616133.4 | Y196: 0
A197: Catalogo principalOPEN-CSP GOBIERNOGMY-00008 | B197: GMY-00008OPEN-CSP GOBIERNO | D197: Catalogo principal | E197: GMY-00008 | F197: OPEN-CSP GOBIERNO | G197: Catalogo principal | H197: USD | I197: N/A | J197: Microsoft®Dyn365EforCustomerServiceOpen ShrdSvr MonthlySubscriptions-VolumeLicense Government OLP 1License NoLevel PerUsr Annual | K197: Unidad | L197: Und | M197: Producto | N197: N/A | O197: N/A | P197: N/A | Q197: GMY-00008 | R197: Suscripción Anual | S197: 1140 | T197: 1 | U197: 1 | V197: =SUMIF(ResumenCotizacion!$C:$C,E197,ResumenCotizacion!$P:$P) -> 0 | W197: =IF(H197="USD",S197*SolCotizacion!$J$18,S197) -> 4178658.6 | X197: =ROUND(W197/(1-VLOOKUP("Total porcentaje:",ResumenCotizacion!$F:$H,3,0)),2) -> 4334708.09 | Y197: 0
A198: Catalogo principalOPEN-CSP GOBIERNOGMY-00014 | B198: GMY-00014OPEN-CSP GOBIERNO | D198: Catalogo principal | E198: GMY-00014 | F198: OPEN-CSP GOBIERNO | G198: Catalogo principal | H198: USD | I198: N/A | J198: Microsoft®Dyn365EforCustomerServiceOpen ShrdSvr MonthlySubscriptions-VolumeLicense Government OLP 1Lic NL QualifiedOffer PerUsr CRMProtoO365 Annual | K198: Unidad | L198: Und | M198: Producto | N198: N/A | O198: N/A | P198: N/A | Q198: GMY-00014 | R198: Suscripción Anual | S198: 702.24 | T198: 1 | U198: 1 | V198: =SUMIF(ResumenCotizacion!$C:$C,E198,ResumenCotizacion!$P:$P) -> 0 | W198: =IF(H198="USD",S198*SolCotizacion!$J$18,S198) -> 2574053.698 | X198: =ROUND(W198/(1-VLOOKUP("Total porcentaje:",ResumenCotizacion!$F:$H,3,0)),2) -> 2670180.18 | Y198: 0
A199: Catalogo principalOPEN-CSP GOBIERNOGMY-00019 | B199: GMY-00019OPEN-CSP GOBIERNO | D199: Catalogo principal | E199: GMY-00019 | F199: OPEN-CSP GOBIERNO | G199: Catalogo principal | H199: USD | I199: N/A | J199: Microsoft®Dyn365EforCustomerServiceOpen ShrdSvr MonthlySubscriptions-VolumeLicense Government OLP 1Lic NL QualifiedOffer PerUsr forCRMOLBasic Annual | K199: Unidad | L199: Und | M199: Producto | N199: N/A | O199: N/A | P199: N/A | Q199: GMY-00019 | R199: Suscripción Anual | S199: 600 | T199: 1 | U199: 1 | V199: =SUMIF(ResumenCotizacion!$C:$C,E199,ResumenCotizacion!$P:$P) -> 0 | W199: =IF(H199="USD",S199*SolCotizacion!$J$18,S199) -> 2199294 | X199: =ROUND(W199/(1-VLOOKUP("Total porcentaje:",ResumenCotizacion!$F:$H,3,0)),2) -> 2281425.31 | Y199: 0
A200: Catalogo principalOPEN-CSP GOBIERNOGMY-00024 | B200: GMY-00024OPEN-CSP GOBIERNO | D200: Catalogo principal | E200: GMY-00024 | F200: OPEN-CSP GOBIERNO | G200: Catalogo principal | H200: USD | I200: N/A | J200: Microsoft®Dyn365EforCustomerServiceOpen ShrdSvr MonthlySubscriptions-VolumeLicense Government OLP 1Lic NL QualifiedOffer PerUsr forCRMOLPro Annual | K200: Unidad | L200: Und | M200: Producto | N200: N/A | O200: N/A | P200: N/A | Q200: GMY-00024 | R200: Suscripción Anual | S200: 912 | T200: 1 | U200: 1 | V200: =SUMIF(ResumenCotizacion!$C:$C,E200,ResumenCotizacion!$P:$P) -> 0 | W200: =IF(H200="USD",S200*SolCotizacion!$J$18,S200) -> 3342926.88 | X200: =ROUND(W200/(1-VLOOKUP("Total porcentaje:",ResumenCotizacion!$F:$H,3,0)),2) -> 3467766.47 | Y200: 0
... 1996 more rows

Sheet tempListas (hidden)
A1: PROVEEDOR
A2: Alfapeople
A3: Colsof
A4: Controles Empresariales
A5: Soluciones Orión
A6: UT DELL EMC
A7: UT Nimbit
A8: UT Soft-IG
A9: UT Softlinebext 20202

Sheet ProveeSoloCatPrinci (hidden)
A1: Proveedores solo catalogo principal
A2: Colombia Telecomunicaciones S.A. ESP.
